Workbook

Sheet MainBoard
D2: Ключові показники економічної ефективності | P2: Панель навігації
D3: NPV | H3: =Cash_Flow!F39 -> 188.7077917 | P3: Розрахунок Грошових Потоків | S3: Перейти >> | U3: детальна форма з обчисленням ключових показників ефективності (автоматична)
D4: IRR | H4: =Cash_Flow!F48 -> 0.227972145 | P4: Розрахунок собівартості | S4: Перейти >> | U4: змінити розрахунок собівартості та ефекти від реалізації проекту
D5: PI | H5: =Cash_Flow!F47 -> 1.32017846 | P5: Графік інвестицій | S5: Перейти >> | U5: змінити обсяг та графік інвестицій
D6: DPP, mio | H6: =Cash_Flow!F49 -> 104.1646991 | P6: Рорахунок амортизації | S6: Перейти >> | U6: внести зміни до структури Інвестицій в Основні Засоби
D7: Ставка дисконтування | H7: 0.18 | I7: якщо змінити показники ефективності будуть перераховані | P7: Аналіз ризиків | S7: Перейти >> | U7: детальная форма з аналізом беззбитковості та аналізу чутливості (автоматична)
D8: Скільки років буде існувати проект | H8: 10 | I8: впливає на розрахунок грошових потоків | P8: Довідник | S8: Перейти >> | U8: переглянути / внести зміни до коефіцієнтів, що використовуються для прогнозування
B10: Факторний аналіз NPV | P10: Грошові потоки
C15: № | D15: Факторний аналіз NPV - загальний: | E15: NPV | F15: (+) / (-) | G15: вплив | H15: Підпис
D16: NPV без реалізації проекту | F16: + | G16: =E16 -> 0 | H16: =G16 -> 0
C17: 1 | D17: + Прирістні операційні доходи | E17: =G16 -> 0 | F17: + | G17: =ABS(Cash_Flow!AC12) -> 9410.189881 | H17: =IF(F17="+",G17,-G17) -> 9410.189881
C18: 2 | D18: - Прирістні операційні видатки | E18: =IF(F18="+",IF(F17="+",E17+G17,E17),IF(F17="+",E17+G17-G18,E17-G18)) -> 3310.794257 | F18: - | G18: =ABS(Cash_Flow!AC13) -> 6099.395624 | H18: =IF(F18="+",G18,-G18) -> -6099.395624
C19: 3 | D19: - Некапіталізовані капітальні ремонти | E19: 3307.794257 | F19: - | G19: =ABS(Cash_Flow!AC14) -> 3 | H19: -3
C20: 4 | D20: - Операційні видатки на реалізацію проекту | E20: 3047.794257 | F20: - | G20: =ABS(Cash_Flow!AC15) -> 260 | H20: -260
C21: 5 | D21: - Прирістний податок на прибуток з поправками на амортизацію | E21: 2814.323336 | F21: - | G21: =ABS(Cash_Flow!AC19) -> 233.4709208 | H21: -233.4709208
C22: 6 | D22: Інвестиційні грошові потоки: | E22: 2161.323336 | F22: - | G22: =ABS(Cash_Flow!AC25) -> 653 | H22: -653
C23: 7 | D23: Дисконтування | E23: 188.7077917 | F23: - | G23: =G17-SUM(G18:G22)-Cash_Flow!$F$39 -> 1972.615544 | H23: -1972.615544
D24: NPV проекту | G24: =ROUND(IF(F23="+",E23+G23,E23),2) -> 188.71 | H24: =G24 -> 188.71
B40: Аналіз беззбитковості (при зміні будь-яких показників - слід натиснути кнопку "Змоделювати") | P40: Аналіз чутливості

Sheet Cash_Flow
C2: Розрахунок грошових потоків та економічного ефекту
F3: Місяць | G3: Рік
E4: Початок видатків по проекту: | F4: 12 | G4: 2018
E5: Рік введення проекту в експлуатацію: | G5: 2019
E6: Калькуляція грошових потоків на: | G6: =MainBoard!$H$8 -> 10 | H6: років експлуатації
E7: Рішення прийнято у | F7: 0 | G7: 2018 | H7: (важливо для корегування коефіцієнту дисконтування грошових потоків)
C9: Розрахунок вільних грошових потоків | AC9: (тис.грн., без ПДВ)
F10: =G4 -> 2018 | G10: =IF(F10=0,0,IF(($G$5+$G$6-1)>=F10+1,F10+1,0)) -> 2019 | H10: 2020 | I10: 2021 | J10: 2022 | K10: 2023 | L10: 2024 | M10: 2025 | N10: 2026 | O10: 2027 | P10: 2028 | Q10: 0 | R10: 0 | S10: 0 | T10: 0 | U10: 0 | V10: 0 | W10: 0 | X10: 0 | Y10: 0 | Z10: 0 | AA10: 0 | AB10: 0 | AC10: Всього | AD10: =ROW()-ROW($AD$10)+1 -> 1
C11: Операційні грошові потоки | AD11: 2
C12: + Прирістні операційні доходи | F12: =IF(F10>0,Net_cost!F82-Net_cost!F7,0) -> 202.5 | G12: =IF(G10>0,Net_cost!G82-Net_cost!G7,0) -> 237.9915 | H12: =IF(H10>0,Net_cost!H82-Net_cost!H7,0) -> 265.7245095 | I12: =IF(I10>0,Net_cost!I82-Net_cost!I7,0) -> 343.9174428 | J12: =IF(J10>0,Net_cost!J82-Net_cost!J7,0) -> 512.2732196 | K12: =IF(K10>0,Net_cost!K82-Net_cost!K7,0) -> 670.9665539 | L12: =IF(L10>0,Net_cost!L82-Net_cost!L7,0) -> 949.873931 | M12: =IF(M10>0,Net_cost!M82-Net_cost!M7,0) -> 1182.050259 | N12: =IF(N10>0,Net_cost!N82-Net_cost!N7,0) -> 1416.727987 | O12: =IF(O10>0,Net_cost!O82-Net_cost!O7,0) -> 1661.367755 | P12: =IF(P10>0,Net_cost!P82-Net_cost!P7,0) -> 1966.796724 | Q12: =IF(Q10>0,Net_cost!Q82-Net_cost!Q7,0) -> 0 | R12: =IF(R10>0,Net_cost!R82-Net_cost!R7,0) -> 0 | S12: =IF(S10>0,Net_cost!S82-Net_cost!S7,0) -> 0 | T12: =IF(T10>0,Net_cost!T82-Net_cost!T7,0) -> 0 | U12: =IF(U10>0,Net_cost!U82-Net_cost!U7,0) -> 0 | V12: =IF(V10>0,Net_cost!V82-Net_cost!V7,0) -> 0 | W12: =IF(W10>0,Net_cost!W82-Net_cost!W7,0) -> 0 | X12: =IF(X10>0,Net_cost!X82-Net_cost!X7,0) -> 0 | Y12: =IF(Y10>0,Net_cost!Y82-Net_cost!Y7,0) -> 0 | Z12: =IF(Z10>0,Net_cost!Z82-Net_cost!Z7,0) -> 0 | AA12: =IF(AA10>0,Net_cost!AA82-Net_cost!AA7,0) -> 0 | AB12: =IF(AB10>0,Net_cost!AB82-Net_cost!AB7,0) -> 0 | AC12: =SUM(F12:AB12) -> 9410.189881 | AD12: 3
C13: - Прирістні операційні видатки | F13: =IF(F10>0,Net_cost!F93-Net_cost!F18,0) -> 127.2274077 | G13: =IF(G10>0,Net_cost!G93-Net_cost!G18,0) -> 145.8783843 | H13: =IF(H10>0,Net_cost!H93-Net_cost!H18,0) -> 189.5583561 | I13: =IF(I10>0,Net_cost!I93-Net_cost!I18,0) -> 278.1366982 | J13: =IF(J10>0,Net_cost!J93-Net_cost!J18,0) -> 363.5095751 | K13: =IF(K10>0,Net_cost!K93-Net_cost!K18,0) -> 493.0941111 | L13: =IF(L10>0,Net_cost!L93-Net_cost!L18,0) -> 619.176999 | M13: =IF(M10>0,Net_cost!M93-Net_cost!M18,0) -> 748.8678822 | N13: =IF(N10>0,Net_cost!N93-Net_cost!N18,0) -> 885.7139051 | O13: =IF(O10>0,Net_cost!O93-Net_cost!O18,0) -> 1031.175186 | P13: =IF(P10>0,Net_cost!P93-Net_cost!P18,0) -> 1217.057119 | Q13: =IF(Q10>0,Net_cost!Q93-Net_cost!Q18,0) -> 0 | R13: =IF(R10>0,Net_cost!R93-Net_cost!R18,0) -> 0 | S13: =IF(S10>0,Net_cost!S93-Net_cost!S18,0) -> 0 | T13: =IF(T10>0,Net_cost!T93-Net_cost!T18,0) -> 0 | U13: =IF(U10>0,Net_cost!U93-Net_cost!U18,0) -> 0 | V13: =IF(V10>0,Net_cost!V93-Net_cost!V18,0) -> 0 | W13: =IF(W10>0,Net_cost!W93-Net_cost!W18,0) -> 0 | X13: =IF(X10>0,Net_cost!X93-Net_cost!X18,0) -> 0 | Y13: =IF(Y10>0,Net_cost!Y93-Net_cost!Y18,0) -> 0 | Z13: =IF(Z10>0,Net_cost!Z93-Net_cost!Z18,0) -> 0 | AA13: =IF(AA10>0,Net_cost!AA93-Net_cost!AA18,0) -> 0 | AB13: =IF(AB10>0,Net_cost!AB93-Net_cost!AB18,0) -> 0 | AC13: =SUM(F13:AB13) -> 6099.395624 | AD13: 4
C14: - Некапіталізовані капітальні ремонти | F14: =Fin.costs!E23 -> 0 | G14: =Fin.costs!F23 -> 0 | H14: =Fin.costs!G23 -> 0 | I14: =Fin.costs!H23 -> 0 | J14: =Fin.costs!I23 -> 2 | K14: =Fin.costs!J23 -> 0 | L14: =Fin.costs!K23 -> 0 | M14: =Fin.costs!L23 -> 1 | N14: =Fin.costs!M23 -> 0 | O14: =Fin.costs!N23 -> 0 | P14: =Fin.costs!O23 -> 0 | Q14: =Fin.costs!P23 -> 0 | R14: =Fin.costs!Q23 -> 0 | S14: =Fin.costs!R23 -> 0 | T14: =Fin.costs!S23 -> 0 | U14: =Fin.costs!T23 -> 0 | V14: =Fin.costs!U23 -> 0 | W14: =Fin.costs!V23 -> 0 | X14: =Fin.costs!W23 -> 0 | Y14: =Fin.costs!X23 -> 0 | Z14: =Fin.costs!Y23 -> 0 | AA14: =Fin.costs!Z23 -> 0 | AB14: =Fin.costs!AA23 -> 0 | AC14: =SUM(F14:AB14) -> 3 | AD14: 5
C15: - Операційні видатки на реалізацію проекту | F15: =Fin.costs!E39 -> 100 | G15: =Fin.costs!F39 -> 160 | H15: =Fin.costs!G39 -> 0 | I15: =Fin.costs!H39 -> 0 | J15: =Fin.costs!I39 -> 0 | K15: =Fin.costs!J39 -> 0 | L15: =Fin.costs!K39 -> 0 | M15: =Fin.costs!L39 -> 0 | N15: =Fin.costs!M39 -> 0 | O15: =Fin.costs!N39 -> 0 | P15: =Fin.costs!O39 -> 0 | Q15: =Fin.costs!P39 -> 0 | R15: =Fin.costs!Q39 -> 0 | S15: =Fin.costs!R39 -> 0 | T15: =Fin.costs!S39 -> 0 | U15: =Fin.costs!T39 -> 0 | V15: =Fin.costs!U39 -> 0 | W15: =Fin.costs!V39 -> 0 | X15: =Fin.costs!W39 -> 0 | Y15: =Fin.costs!X39 -> 0 | Z15: =Fin.costs!Y39 -> 0 | AA15: =Fin.costs!Z39 -> 0 | AB15: =Fin.costs!AA39 -> 0 | AC15: =SUM(F15:AB15) -> 260 | AD15: 6
AD16: 7
C17: = Прирістний прибуток (EBITDA) | F17: =F12-F13-F14-F15 -> -24.72740769 | G17: =G12-G13-G14-G15 -> -67.88688432 | H17: 76.16615338 | I17: 65.78074456 | J17: 146.7636444 | K17: 177.8724428 | L17: 330.6969319 | M17: 432.1823767 | N17: 531.0140817 | O17: 630.1925686 | P17: 749.7396049 | Q17: 0 | R17: =R12-R13-R14-R15 -> 0 | S17: 0 | T17: 0 | U17: 0 | V17: 0 | W17: 0 | X17: 0 | Y17: 0 | Z17: 0 | AA17: 0 | AB17: 0 | AC17: =SUM(F17:AB17) -> 3047.794257 | AD17: 8
C18: - Амортизація (прямолінійний метод) | F18: =Depreciation!G116 -> 24.58333333 | G18: =Depreciation!H116 -> 63.91666667 | H18: =Depreciation!I116 -> 63.91666667 | I18: =Depreciation!J116 -> 63.91666667 | J18: =Depreciation!K116 -> 64.11333333 | K18: =Depreciation!L116 -> 64.11333333 | L18: =Depreciation!M116 -> 64.11333333 | M18: =Depreciation!N116 -> 64.21166667 | N18: =Depreciation!O116 -> 64.21166667 | O18: =Depreciation!P116 -> 64.21166667 | P18: =Depreciation!Q116 -> 64.21166667 | Q18: =Depreciation!R116 -> 0 | R18: =Depreciation!S116 -> 0 | S18: =Depreciation!T116 -> 0 | T18: =Depreciation!U116 -> 0 | U18: =Depreciation!V116 -> 0 | V18: =Depreciation!W116 -> 0 | W18: =Depreciation!X116 -> 0 | X18: =Depreciation!Y116 -> 0 | Y18: =Depreciation!Z116 -> 0 | Z18: =Depreciation!AA116 -> 0 | AA18: =Depreciation!AB116 -> 0 | AB18: =Depreciation!AC116 -> 0 | AC18: =SUM(F18:AB18) -> 665.52 | AD18: 9
C19: - Прирістний податок на прибуток з поправками на амортизацію | F19: =(F17-F18)*IF(F10=0,0,HLOOKUP(F10,directory!$D$1:$Q$5,2)) -> -1.824497418 | G19: =(G17-G18)*IF(G10=0,0,HLOOKUP(G10,directory!$D$1:$Q$5,2)) -> 0.131803551 | H19: =(H17-H18)*IF(H10=0,0,HLOOKUP(H10,directory!$D$1:$Q$5,2)) -> 2.094662228 | I19: =(I17-I18)*IF(I10=0,0,HLOOKUP(I10,directory!$D$1:$Q$5,2)) -> 0.6710680428 | J19: =(J17-J18)*IF(J10=0,0,HLOOKUP(J10,directory!$D$1:$Q$5,2)) -> 16.94331377 | K19: =(K17-K18)*IF(K10=0,0,HLOOKUP(K10,directory!$D$1:$Q$5,2)) -> 30.03240489 | L19: =(L17-L18)*IF(L10=0,0,HLOOKUP(L10,directory!$D$1:$Q$5,2)) -> 33.05636623 | M19: =(M17-M18)*IF(M10=0,0,HLOOKUP(M10,directory!$D$1:$Q$5,2)) -> 34.14084986 | N19: =(N17-N18)*IF(N10=0,0,HLOOKUP(N10,directory!$D$1:$Q$5,2)) -> 36.22260956 | O19: =(O17-O18)*IF(O10=0,0,HLOOKUP(O10,directory!$D$1:$Q$5,2)) -> 38.68202711 | P19: =(P17-P18)*IF(P10=0,0,HLOOKUP(P10,directory!$D$1:$Q$5,2)) -> 43.320313 | Q19: =(Q17-Q18)*IF(Q10=0,0,HLOOKUP(Q10,directory!$D$1:$Q$5,2)) -> 0 | R19: =(R17-R18)*IF(R10=0,0,HLOOKUP(R10,directory!$D$1:$Q$5,2)) -> 0 | S19: =(S17-S18)*IF(S10=0,0,HLOOKUP(S10,directory!$D$1:$Q$5,2)) -> 0 | T19: =(T17-T18)*IF(T10=0,0,HLOOKUP(T10,directory!$D$1:$Q$5,2)) -> 0 | U19: =(U17-U18)*IF(U10=0,0,HLOOKUP(U10,directory!$D$1:$Q$5,2)) -> 0 | V19: =(V17-V18)*IF(V10=0,0,HLOOKUP(V10,directory!$D$1:$Q$5,2)) -> 0 | W19: =(W17-W18)*IF(W10=0,0,HLOOKUP(W10,directory!$D$1:$Q$5,2)) -> 0 | X19: =(X17-X18)*IF(X10=0,0,HLOOKUP(X10,directory!$D$1:$Q$5,2)) -> 0 | Y19: =(Y17-Y18)*IF(Y10=0,0,HLOOKUP(Y10,directory!$D$1:$Q$5,2)) -> 0 | Z19: =(Z17-Z18)*IF(Z10=0,0,HLOOKUP(Z10,directory!$D$1:$Q$5,2)) -> 0 | AA19: =(AA17-AA18)*IF(AA10=0,0,HLOOKUP(AA10,directory!$D$1:$Q$5,2)) -> 0 | AB19: =(AB17-AB18)*IF(AB10=0,0,HLOOKUP(AB10,directory!$D$1:$Q$5,2)) -> 0 | AC19: 233.4709208 | AD19: 10
AD20: 11
C21: Прирістний прибуток після податків (Net Income) | F21: =F17-F19 -> -22.90291027 | G21: -68.01868787 | H21: 74.07149115 | I21: 65.10967652 | J21: 129.8203307 | K21: 147.8400379 | L21: 297.6405657 | M21: 398.0415269 | N21: 494.7914721 | O21: 591.5105415 | P21: 706.4192919 | Q21: 0 | R21: 0 | S21: 0 | T21: 0 | U21: 0 | V21: 0 | W21: 0 | X21: 0 | Y21: 0 | Z21: 0 | AA21: 0 | AB21: 0 | AC21: 2814.323336 | AD21: 12
C22: Зміна оборотного капіталу ( + увеличение; - уменьшение) | F22: =Fin.costs!E56 -> 0 | G22: =Fin.costs!F56 -> 0 | H22: =Fin.costs!G56 -> 0 | I22: =Fin.costs!H56 -> 0 | J22: =Fin.costs!I56 -> 0 | K22: =Fin.costs!J56 -> 0 | L22: =Fin.costs!K56 -> 0 | M22: =Fin.costs!L56 -> 0 | N22: =Fin.costs!M56 -> 0 | O22: =Fin.costs!N56 -> 0 | P22: =Fin.costs!O56 -> 0 | Q22: =Fin.costs!P56 -> 0 | R22: =Fin.costs!Q56 -> 0 | S22: =Fin.costs!R56 -> 0 | T22: =Fin.costs!S56 -> 0 | U22: =Fin.costs!T56 -> 0 | V22: =Fin.costs!U56 -> 0 | W22: =Fin.costs!V56 -> 0 | X22: =Fin.costs!W56 -> 0 | Y22: =Fin.costs!X56 -> 0 | Z22: =Fin.costs!Y56 -> 0 | AA22: =Fin.costs!Z56 -> 0 | AB22: =Fin.costs!AA56 -> 0 | AC22: 0 | AD22: 13
C23: Операційний грошовий потік | F23: =F21-F22 -> -22.90291027 | G23: -68.01868787 | H23: 74.07149115 | I23: 65.10967652 | J23: 129.8203307 | K23: 147.8400379 | L23: 297.6405657 | M23: 398.0415269 | N23: 494.7914721 | O23: 591.5105415 | P23: 706.4192919 | Q23: 0 | R23: 0 | S23: 0 | T23: 0 | U23: 0 | V23: 0 | W23: 0 | X23: 0 | Y23: 0 | Z23: 0 | AA23: 0 | AB23: 0 | AC23: 2814.323336 | AD23: 14
AD24: 15
C25: Інвестиційні грошові потоки: | F25: =SUM(F26:F27) -> 250 | G25: 400 | H25: 0 | I25: 0 | J25: 2 | K25: 0 | L25: 0 | M25: 1 | N25: 0 | O25: 0 | P25: 0 | Q25: 0 | R25: 0 | S25: 0 | T25: 0 | U25: 0 | V25: 0 | W25: 0 | X25: 0 | Y25: 0 | Z25: 0 | AA25: 0 | AB25: 0 | AC25: 653 | AD25: 16
C26: Бюджет проекту | F26: =Fin.costs!E8 -> 250 | G26: =Fin.costs!F8 -> 400 | H26: =Fin.costs!G8 -> 0 | I26: =Fin.costs!H8 -> 0 | J26: =Fin.costs!I8 -> 0 | K26: =Fin.costs!J8 -> 0 | L26: =Fin.costs!K8 -> 0 | M26: =Fin.costs!L8 -> 0 | N26: =Fin.costs!M8 -> 0 | O26: =Fin.costs!N8 -> 0 | P26: =Fin.costs!O8 -> 0 | Q26: =Fin.costs!P8 -> 0 | R26: =Fin.costs!Q8 -> 0 | S26: =Fin.costs!R8 -> 0 | T26: =Fin.costs!S8 -> 0 | U26: =Fin.costs!T8 -> 0 | V26: =Fin.costs!U8 -> 0 | W26: =Fin.costs!V8 -> 0 | X26: =Fin.costs!W8 -> 0 | Y26: =Fin.costs!X8 -> 0 | Z26: =Fin.costs!Y8 -> 0 | AA26: =Fin.costs!Z8 -> 0 | AB26: =Fin.costs!AA8 -> 0 | AC26: 650 | AD26: 17
C27: Капітальні ремонти (капіталізовані) | F27: =Fin.costs!E25 -> 0 | G27: =Fin.costs!F25 -> 0 | H27: =Fin.costs!G25 -> 0 | I27: =Fin.costs!H25 -> 0 | J27: =Fin.costs!I25 -> 2 | K27: =Fin.costs!J25 -> 0 | L27: =Fin.costs!K25 -> 0 | M27: =Fin.costs!L25 -> 1 | N27: =Fin.costs!M25 -> 0 | O27: =Fin.costs!N25 -> 0 | P27: =Fin.costs!O25 -> 0 | Q27: =Fin.costs!P25 -> 0 | R27: =Fin.costs!Q25 -> 0 | S27: =Fin.costs!R25 -> 0 | T27: =Fin.costs!S25 -> 0 | U27: =Fin.costs!T25 -> 0 | V27: =Fin.costs!U25 -> 0 | W27: =Fin.costs!V25 -> 0 | X27: =Fin.costs!W25 -> 0 | Y27: =Fin.costs!X25 -> 0 | Z27: =Fin.costs!Y25 -> 0 | AA27: =Fin.costs!Z25 -> 0 | AB27: =Fin.costs!AA25 -> 0 | AC27: 3 | AD27: 18
AD28: 19
C29: Вільний грошовий потік | F29: =IF(F10=0,0,F23-F25) -> -272.9029103 | G29: -468.0186879 | H29: 74.07149115 | I29: 65.10967652 | J29: 127.8203307 | K29: 147.8400379 | L29: 297.6405657 | M29: 397.0415269 | N29: 494.7914721 | O29: 591.5105415 | P29: 706.4192919 | Q29: 0 | R29: 0 | S29: 0 | T29: 0 | U29: 0 | V29: 0 | W29: 0 | X29: 0 | Y29: 0 | Z29: 0 | AA29: 0 | AB29: 0 | AC29: =SUM(F29:AB29) -> 2161.323336 | AD29: 20
C30: Вільний грошовий потік накопичувальним підсумком | F30: =F29 -> -272.9029103 | G30: =F30+G29 -> -740.9215981 | H30: =G30+H29 -> -666.850107 | I30: -601.7404305 | J30: -473.9200998 | K30: -326.0800619 | L30: -28.43949623 | M30: 368.6020306 | N30: 863.3935027 | O30: 1454.904044 | P30: 2161.323336 | Q30: 2161.323336 | R30: 2161.323336 | S30: 2161.323336 | T30: 2161.323336 | U30: 2161.323336 | V30: 2161.323336 | W30: 2161.323336 | X30: 2161.323336 | Y30: 2161.323336 | Z30: 2161.323336 | AA30: 2161.323336 | AB30: 2161.323336 | AD30: 21
AD31: 22
C32: Ставка дисконтування | F32: =F51 -> 0.18 | G32: =F32 -> 0.18 | H32: =G32 -> 0.18 | I32: 0.18 | J32: 0.18 | K32: 0.18 | L32: 0.18 | M32: 0.18 | N32: 0.18 | O32: 0.18 | P32: 0.18 | Q32: 0.18 | R32: 0.18 | S32: 0.18 | T32: =L32 -> 0.18 | U32: 0.18 | V32: 0.18 | W32: 0.18 | X32: 0.18 | Y32: 0.18 | Z32: 0.18 | AA32: 0.18 | AB32: =S32 -> 0.18 | AD32: 23
C33: коефіцієнт дисконтування | F33: =1/((1+F32)^(1/12))^F7 -> 1 | G33: =F33/(1+G32) -> 0.8474576271 | H33: =G33/(1+H32) -> 0.7181844298 | I33: 0.6086308727 | J33: 0.5157888752 | K33: 0.4371092162 | L33: 0.3704315392 | M33: 0.3139250332 | N33: 0.2660381637 | O33: 0.225456071 | P33: 0.1910644669 | Q33: 0.1619190398 | R33: 0.1372195252 | S33: 0.1162877332 | T33: 0.09854892647 | U33: 0.08351603938 | V33: 0.07077630456 | W33: 0.05997991912 | X33: 0.05083043993 | Y33: 0.04307664401 | Z33: 0.03650563052 | AA33: 0.03093697501 | AB33: 0.02621777544 | AD33: 24
C34: Дисконтований вільний грошовий потік (DCF) | F34: =IF(F33="","",F29*F33) -> -272.9029103 | G34: -396.6260067 | H34: 53.19699164 | I34: 39.62775924 | J34: 65.92830457 | K34: 64.62224308 | L34: 110.2554529 | M34: 124.6412745 | N34: 131.6334147 | O34: 133.3596426 | P34: 134.9716254 | Q34: 0 | R34: 0 | S34: 0 | T34: 0 | U34: 0 | V34: 0 | W34: 0 | X34: 0 | Y34: 0 | Z34: 0 | AA34: 0 | AB34: =IF(AB33="","",AB29*AB33) -> 0 | AC34: =SUM(F34:AB34) -> 188.7077917 | AD34: 25
C35: DCF накопичувальним підсумком | F35: =IF(F34="","",SUM($F$34:F$34)) -> -272.9029103 | G35: =IF(G34="","",SUM($F$34:G$34)) -> -669.5289169 | H35: =IF(H34="","",SUM($F$34:H$34)) -> -616.3319253 | I35: =IF(I34="","",SUM($F$34:I$34)) -> -576.7041661 | J35: =IF(J34="","",SUM($F$34:J$34)) -> -510.7758615 | K35: =IF(K34="","",SUM($F$34:K$34)) -> -446.1536184 | L35: =IF(L34="","",SUM($F$34:L$34)) -> -335.8981655 | M35: =IF(M34="","",SUM($F$34:M$34)) -> -211.256891 | N35: =IF(N34="","",SUM($F$34:N$34)) -> -79.62347637 | O35: =IF(O34="","",SUM($F$34:O$34)) -> 53.73616625 | P35: =IF(P34="","",SUM($F$34:P$34)) -> 188.7077917 | Q35: =IF(Q34="","",SUM($F$34:Q$34)) -> 188.7077917 | R35: =IF(R34="","",SUM($F$34:R$34)) -> 188.7077917 | S35: =IF(S34="","",SUM($F$34:S$34)) -> 188.7077917 | T35: =IF(T34="","",SUM($F$34:T$34)) -> 188.7077917 | U35: =IF(U34="","",SUM($F$34:U$34)) -> 188.7077917 | V35: =IF(V34="","",SUM($F$34:V$34)) -> 188.7077917 | W35: =IF(W34="","",SUM($F$34:W$34)) -> 188.7077917 | X35: =IF(X34="","",SUM($F$34:X$34)) -> 188.7077917 | Y35: =IF(Y34="","",SUM($F$34:Y$34)) -> 188.7077917 | Z35: =IF(Z34="","",SUM($F$34:Z$34)) -> 188.7077917 | AA35: =IF(AA34="","",SUM($F$34:AA$34)) -> 188.7077917 | AB35: =IF(AB34="","",SUM($F$34:AB$34)) -> 188.7077917 | AD35: 26
C38: Розрахунок NPV | N38: =CONCATENATE("РОЗРАХУНОК ЗАЛИШКОВОЇ ВАРТОСТІ НА КІНЕЦЬ ",AC39," РОКУ ЕКСПЛУАТАЦІЇ") -> РОЗРАХУНОК ЗАЛИШКОВОЇ ВАРТОСТІ НА КІНЕЦЬ 10 РОКУ ЕКСПЛУАТАЦІЇ
C39: NPV без врахування залишкової вартості | F39: =AC34 -> 188.7077917 | N39: =CONCATENATE("Розрахунок потоків виконаний на ",AC39," років експлуатації о'єкту інвестицій") -> Розрахунок потоків виконаний на 10 років експлуатації о'єкту інвестицій | AC39: =G6 -> 10
C40: Залишкова вартість | D40: ліквідаційна | F40: =IF(D40="ліквідаційна",IF(AC42>AC43,AC42-(AC42-AC43)*HLOOKUP($G$4+$G$6,directory!$D$1:$Q$7,2),AC42+(AC43-AC42)*HLOOKUP($G$4+$G$6,directory!$D$1:$Q$7,2)),IF(D40="подовжена",AC44,0)) -> -0.7911717211 | N40: Максимальний термін експлуатації об'єктів інвестицій, років | AC40: 10
C41: Дисконтована залишкова вартість | F41: =F40*HLOOKUP(G5+G6-1,F59:AB61,3,0)/IF(D40="подовжена",1,(1+F51)) -> -0.1281057654 | N41: Загальна (початкова) вартість об'єктів інвестицій, тис.грн. | AC41: =Depreciation!$AD$6+Depreciation!$AD$28 -> 653
C42: NPV з урахуванням залишкової вартості | F42: =F41+F39 -> 188.5796859 | N42: Ринкова залишкова вартість (продажна), тис.грн. | AC42: =AC41*(AC40-AC39)/AC40 -> 0
C43: % залишкової вартості у NPV | F43: =IF(F39>0,IF(F42=0,"",F41/F42),"") -> -0.0006793190091 | N43: Бухгалтерська залишкова вартість, тис. грн. | AC43: =HLOOKUP($G$5+$G$6-1,Depreciation!G5:AC138,Depreciation!$AE$50,FALSE) -> -12.52
N44: Подовжена вартість проекту в пост-прогнозний період, тис. грн. | AC44: =HLOOKUP(G5+G6-1,F10:AB29,$AD$29,FALSE)*(1+F52)/(F51-F52) -> 3924.551622
C45: Показники економічної ефективності
C46: Дисконтовані інвесиційні видатки (PVI) | F46: =SUMPRODUCT(F26:AB26,F33:AB33) -> 588.9830508
C47: Індекс прибутковості (PI) | F47: =IF(F46=0,"-",F42/F46+1) -> 1.32017846
C48: Внутрішня норма рентабельності (IRR) | F48: =IFERROR(IRR($F$29:$AB$29,F51),"не окуповується") -> 0.227972145
C49: Дисконтований термін окупності (DPP), міс. | F49: =IF(F39>0,IF(SUM(G62:AB62)=0,"<12",SUM(F62:AB62)),"не окуповується") -> 104.1646991
C50: Недисконтований термін окупності (PB), міс. | F50: =IF(AB30>0,IF(SUM(G63:AB63)=0,"<12",SUM(F63:AB63)),"не окуповується") -> 73.85954222
C51: Ставка дисконтування | F51: =MainBoard!H7 -> 0.18
C52: Прогнозна середньорічна зміна вільного грошовогу
C53: потоку в після-разрахунковий період, %
C59: Рік | F59: =F10 -> 2018 | G59: =F59+1 -> 2019 | H59: =G59+1 -> 2020 | I59: 2021 | J59: 2022 | K59: 2023 | L59: 2024 | M59: 2025 | N59: 2026 | O59: 2027 | P59: 2028 | Q59: 2029 | R59: 2030 | S59: 2031 | T59: 2032 | U59: 2033 | V59: 2034 | W59: 2035 | X59: 2036 | Y59: 2037 | Z59: 2038 | AA59: 2039 | AB59: 2040
C60: Ставка дисконтування | F60: =$F$51 -> 0.18 | G60: 0.18 | H60: 0.18 | I60: 0.18 | J60: 0.18 | K60: 0.18 | L60: 0.18 | M60: 0.18 | N60: 0.18 | O60: 0.18 | P60: 0.18 | Q60: 0.18 | R60: 0.18 | S60: 0.18 | T60: 0.18 | U60: 0.18 | V60: 0.18 | W60: 0.18 | X60: 0.18 | Y60: 0.18 | Z60: 0.18 | AA60: 0.18 | AB60: 0.18
C61: Коефіцієнт дисконтування | F61: =1/((1+F32)^(1/12))^F7 -> 1 | G61: =F61/(1+G60) -> 0.8474576271 | H61: 0.7181844298 | I61: 0.6086308727 | J61: 0.5157888752 | K61: 0.4371092162 | L61: 0.3704315392 | M61: 0.3139250332 | N61: 0.2660381637 | O61: 0.225456071 | P61: 0.1910644669 | Q61: 0.1619190398 | R61: 0.1372195252 | S61: 0.1162877332 | T61: 0.09854892647 | U61: 0.08351603938 | V61: 0.07077630456 | W61: 0.05997991912 | X61: 0.05083043993 | Y61: 0.04307664401 | Z61: 0.03650563052 | AA61: 0.03093697501 | AB61: 0.02621777544
C62: для обчислення DPP | F62: =13-F4 -> 1 | G62: =IF(G35<0,12,IF(H35<0,12,IF(F35>0,0,-F35/G34*12))) -> 12 | H62: 12 | I62: 12 | J62: 12 | K62: 12 | L62: 12 | M62: 12 | N62: 12 | O62: 7.164699137 | P62: 0 | Q62: 0 | R62: 0 | S62: 0 | T62: 0 | U62: 0 | V62: 0 | W62: 0 | X62: 0 | Y62: 0 | Z62: 0 | AA62: 0 | AB62: 0
C63: для обчислення PB | F63: =13-F4 -> 1 | G63: =IF(G30<0,12,IF(H30<0,12,IF(F30>0,0,-F30/G29*12))) -> 12 | H63: 12 | I63: 12 | J63: 12 | K63: 12 | L63: 12 | M63: 0.8595422181 | N63: 0 | O63: 0 | P63: 0 | Q63: 0 | R63: 0 | S63: 0 | T63: 0 | U63: 0 | V63: 0 | W63: 0 | X63: 0 | Y63: 0 | Z63: 0 | AA63: 0 | AB63: 0
C64: для обчислення змін. оборотного капіталу | F64: =IF(F10<($G$5+$AC$39),F22,0) -> 0 | G64: 0 | H64: 0 | I64: 0 | J64: 0 | K64: 0 | L64: 0 | M64: 0 | N64: 0 | O64: 0 | P64: 0 | Q64: 0 | R64: 0 | S64: 0 | T64: 0 | U64: 0 | V64: 0 | W64: 0 | X64: 0 | Y64: 0 | Z64: 0 | AA64: 0 | AB64: 0

Sheet Net_cost
B2: Розрахунок собівартості
B4: № з/п | C4: Показник | D4: од. виміру | E4: =F4-1 -> 2017 | F4: =Cash_Flow!F10 -> 2018 | G4: =F4+1 -> 2019 | H4: =G4+1 -> 2020 | I4: 2021 | J4: 2022 | K4: 2023 | L4: 2024 | M4: 2025 | N4: 2026 | O4: 2027 | P4: 2028 | Q4: 2029 | R4: 2030 | S4: Всього
B6: Поточний стан (якщо не реалізовувати проект)
B7: 1 | C7: Операційні доходи | D7: тис.грн. | E7: =E8+E11+E14 -> 480 | F7: 497.76 | G7: 497.26224 | H7: 582.294083 | I7: 791.9199529 | J7: 954.2635433 | K7: 1206.189119 | L7: 1355.756569 | M7: 1481.545607 | N7: 1596.509554 | O7: 1705.623175 | P7: 1813.405989 | Q7: 1928.293588 | R7: 2049.561941 | S7: =IFERROR(SUM(E7:R7),"") -> 16940.38536
C8: Доход від послуги №1 | D8: тис.грн. | E8: =E9*E10/1000 -> 300 | F8: 311.1 | G8: 310.7889 | H8: 363.9338019 | I8: 494.9499706 | J8: 596.4147146 | K8: 753.8681992 | L8: 847.3478559 | M8: 925.9660044 | N8: 997.8184712 | O8: 1066.014485 | P8: 1133.378743 | Q8: 1205.183493 | R8: 1280.976213 | S8: 10587.74085
C9: Кількість наданих послуг | D9: од. | E9: 100 | F9: =E9 -> 100 | G9: 100 | H9: 100 | I9: 100 | J9: 100 | K9: 100 | L9: 100 | M9: 100 | N9: 100 | O9: 100 | P9: 100 | Q9: 100 | R9: 100 | S9: 1400
C10: Ціна | D10: грн./од. | E10: =3000*'Sensitivity analysis'!$I$7 -> 3000 | F10: =E10*(1+directory!E2) -> 3111 | G10: =F10*(1+directory!F2) -> 3107.889 | H10: =G10*(1+directory!G2) -> 3639.338019 | I10: =H10*(1+directory!H2) -> 4949.499706 | J10: =I10*(1+directory!I2) -> 5964.147146 | K10: =J10*(1+directory!J2) -> 7538.681992 | L10: =K10*(1+directory!K2) -> 8473.478559 | M10: =L10*(1+directory!L2) -> 9259.660044 | N10: =M10*(1+directory!M2) -> 9978.184712 | O10: =N10*(1+directory!N2) -> 10660.14485 | P10: =O10*(1+directory!O2) -> 11333.78743 | Q10: =P10*(1+directory!P2) -> 12051.83493 | R10: =Q10*(1+directory!Q2) -> 12809.76213 | S10: =IFERROR(S8/S9*1000,"") -> 7562.672036
C11: Доход від послуги №2 | D11: тис.грн. | E11: =E12*E13/1000 -> 180 | F11: 186.66 | G11: 186.47334 | H11: 218.3602811 | I11: 296.9699824 | J11: 357.8488287 | K11: 452.3209195 | L11: 508.4087135 | M11: 555.5796026 | N11: 598.6910827 | O11: 639.6086908 | P11: 680.0272458 | Q11: 723.1100955 | R11: 768.5857279 | S11: 6352.644511
C12: Кількість наданих послуг | D12: од. | E12: 20 | F12: =E12 -> 20 | G12: 20 | H12: 20 | I12: 20 | J12: 20 | K12: 20 | L12: 20 | M12: 20 | N12: 20 | O12: 20 | P12: 20 | Q12: 20 | R12: 20 | S12: 280
C13: Ціна | D13: грн./од. | E13: =9000*'Sensitivity analysis'!$I$7 -> 9000 | F13: =E13*(1+directory!E2) -> 9333 | G13: =F13*(1+directory!F2) -> 9323.667 | H13: =G13*(1+directory!G2) -> 10918.01406 | I13: =H13*(1+directory!H2) -> 14848.49912 | J13: =I13*(1+directory!I2) -> 17892.44144 | K13: =J13*(1+directory!J2) -> 22616.04598 | L13: =K13*(1+directory!K2) -> 25420.43568 | M13: =L13*(1+directory!L2) -> 27778.98013 | N13: =M13*(1+directory!M2) -> 29934.55414 | O13: =N13*(1+directory!N2) -> 31980.43454 | P13: =O13*(1+directory!O2) -> 34001.36229 | Q13: =P13*(1+directory!P2) -> 36155.50478 | R13: =Q13*(1+directory!Q2) -> 38429.2864 | S13: =IFERROR(S11/S12*1000,"") -> 22688.01611
C14: Доход від послуги n | D14: тис.грн. | E14: =E15*E16/1000 -> 0 | F14: 0 | G14: 0 | H14: 0 | I14: 0 | J14: 0 | K14: 0 | L14: 0 | M14: 0 | N14: 0 | O14: 0 | P14: 0 | Q14: 0 | R14: 0 | S14: 0
C15: Кількість наданих послуг | D15: од. | S15: 0
C16: Ціна | D16: грн./од. | S16: =IFERROR(S14/S15,"") -> 
B18: 2 | C18: Операційні витрати | D18: тис.грн. | E18: =E29+E19 -> 175.408 | F18: 183.7880823 | G18: 184.9825081 | H18: 215.6638551 | I18: 289.0759346 | J18: 346.3021144 | K18: 434.4111581 | L18: 487.5187355 | M18: 532.6177943 | N18: 574.1678718 | O18: 613.89102 | P18: 653.354282 | Q18: 695.4702577 | R18: 740.0089871 | S18: =SUM(E18:R18) -> 6126.660601
B19: 2.1 | C19: Постійні витрати | D19: тис.грн. | E19: =E20+E23+E24+E25+E27 -> 31 | F19: =F20+F23+F24+F25+F27 -> 33.92196833 | G19: 35.18238697 | H19: 40.30576726 | I19: 50.84616998 | J19: 59.35905361 | K19: 71.91685121 | L19: 80.12134938 | M19: 87.42962698 | N19: 94.42089124 | O19: 101.3263718 | P19: 108.3585597 | Q19: 115.9025548 | R19: 123.9441151 | S19: =SUM(E19:R19) -> 1034.035666
C20: Заробітня платня адмін. Персоналу | D20: тис.грн. | E20: =E21*E22/1000 -> 10 | F20: =F21*F22/1000 -> 12.14496833 | G20: 13.42716397 | H20: 14.83040113 | I20: 16.19967204 | J20: 17.61002359 | K20: 19.14607727 | L20: 20.80699947 | M20: 22.61200667 | N20: 24.57359825 | O20: 26.7053579 | P20: 29.0220477 | Q20: 31.53971034 | R20: 34.27578021 | S20: =SUM(E20:R20) -> 292.8938069
C21: Середня заробітня платня адмін.блоку | D21: грн./чол. | E21: 400 | F21: =E21*directory!E$5 -> 485.7987333 | G21: =F21*directory!F$5 -> 537.0865588 | H21: =G21*directory!G$5 -> 593.216045 | I21: =H21*directory!H$5 -> 647.9868816 | J21: =I21*directory!I$5 -> 704.4009435 | K21: =J21*directory!J$5 -> 765.8430907 | L21: =K21*directory!K$5 -> 832.2799788 | M21: =L21*directory!L$5 -> 904.480267 | N21: =M21*directory!M$5 -> 982.9439301 | O21: =N21*directory!N$5 -> 1068.214316 | P21: =O21*directory!O$5 -> 1160.881908 | Q21: =P21*directory!P$5 -> 1261.588413 | R21: =Q21*directory!Q$5 -> 1371.031208 | S21: =AVERAGE(E21:R21) -> 836.8394482
C22: Кількість співробітників адмін.блоку | D22: чол. | E22: 25 | F22: =E22 -> 25 | G22: =F22 -> 25 | H22: 25 | I22: 25 | J22: 25 | K22: 25 | L22: 25 | M22: 25 | N22: 25 | O22: 25 | P22: 25 | Q22: 25 | R22: 25 | S22: =AVERAGE(E22:R22) -> 25
C23: Оренда приміщень | D23: тис.грн. | E23: 3 | F23: =E23*(1+directory!E2) -> 3.111 | G23: =F23*(1+directory!F2) -> 3.107889 | H23: =G23*(1+directory!G2) -> 3.639338019 | I23: =H23*(1+directory!H2) -> 4.949499706 | J23: =I23*(1+directory!I2) -> 5.964147146 | K23: =J23*(1+directory!J2) -> 7.538681992 | L23: =K23*(1+directory!K2) -> 8.473478559 | M23: =L23*(1+directory!L2) -> 9.259660044 | N23: =M23*(1+directory!M2) -> 9.978184712 | O23: =N23*(1+directory!N2) -> 10.66014485 | P23: =O23*(1+directory!O2) -> 11.33378743 | Q23: =P23*(1+directory!P2) -> 12.05183493 | R23: =Q23*(1+directory!Q2) -> 12.80976213 | S23: =SUM(E23:R23) -> 105.8774085
C24: Оренда автомобілю | D24: тис.грн. | E24: 2 | F24: =E24*(1+directory!E2) -> 2.074 | G24: =F24*(1+directory!F2) -> 2.071926 | H24: =G24*(1+directory!G2) -> 2.426225346 | I24: =H24*(1+directory!H2) -> 3.299666471 | J24: =I24*(1+directory!I2) -> 3.976098097 | K24: =J24*(1+directory!J2) -> 5.025787995 | L24: =K24*(1+directory!K2) -> 5.648985706 | M24: =L24*(1+directory!L2) -> 6.173106696 | N24: =M24*(1+directory!M2) -> 6.652123142 | O24: =N24*(1+directory!N2) -> 7.106763231 | P24: =O24*(1+directory!O2) -> 7.555858286 | Q24: =P24*(1+directory!P2) -> 8.034556617 | R24: =Q24*(1+directory!Q2) -> 8.539841421 | S24: =SUM(E24:R24) -> 70.58493901
C25: Комунальні платежі | D25: тис.грн. | E25: 15 | F25: =E25*(1+directory!E$2) -> 15.555 | G25: =F25*(1+directory!F2) -> 15.539445 | H25: =G25*(1+directory!G2) -> 18.1966901 | I25: =H25*(1+directory!H2) -> 24.74749853 | J25: =I25*(1+directory!I2) -> 29.82073573 | K25: =J25*(1+directory!J2) -> 37.69340996 | L25: =K25*(1+directory!K2) -> 42.36739279 | M25: =L25*(1+directory!L2) -> 46.29830022 | N25: =M25*(1+directory!M2) -> 49.89092356 | O25: =N25*(1+directory!N2) -> 53.30072423 | P25: =O25*(1+directory!O2) -> 56.66893715 | Q25: =P25*(1+directory!P2) -> 60.25917463 | R25: =Q25*(1+directory!Q2) -> 64.04881066 | S25: =SUM(E25:R25) -> 529.3870426
C26: Оренда програмного забезпечення | D26: тис.грн. | E26: 8 | F26: =E26*(1+directory!E$2) -> 8.296 | G26: =F26*(1+directory!F$2) -> 8.287704 | H26: =G26*(1+directory!G$2) -> 9.704901384 | I26: =H26*(1+directory!H$2) -> 13.19866588 | J26: =I26*(1+directory!I$2) -> 15.90439239 | K26: =J26*(1+directory!J$2) -> 20.10315198 | L26: =K26*(1+directory!K$2) -> 22.59594282 | M26: =L26*(1+directory!L$2) -> 24.69242678 | N26: =M26*(1+directory!M$2) -> 26.60849257 | O26: =N26*(1+directory!N$2) -> 28.42705292 | P26: =O26*(1+directory!O$2) -> 30.22343315 | Q26: =P26*(1+directory!P$2) -> 32.13822647 | R26: =Q26*(1+directory!Q$2) -> 34.15936569 | S26: 282.339756
C27: Видаткові матеріали | D27: тис.грн. | E27: 1 | F27: =E27*(1+directory!E2) -> 1.037 | G27: =F27*(1+directory!F2) -> 1.035963 | H27: =G27*(1+directory!G2) -> 1.213112673 | I27: =H27*(1+directory!H2) -> 1.649833235 | J27: =I27*(1+directory!I2) -> 1.988049049 | K27: =J27*(1+directory!J2) -> 2.512893997 | L27: =K27*(1+directory!K2) -> 2.824492853 | M27: =L27*(1+directory!L2) -> 3.086553348 | N27: =M27*(1+directory!M2) -> 3.326061571 | O27: =N27*(1+directory!N2) -> 3.553381615 | P27: =O27*(1+directory!O2) -> 3.777929143 | Q27: =P27*(1+directory!P2) -> 4.017278308 | R27: =Q27*(1+directory!Q2) -> 4.269920711 | S27: =SUM(E27:R27) -> 35.2924695
B29: 2.2 | C29: Змінні витрати | D29: тис.грн. | E29: =E30+E43+E56 -> 144.408 | F29: 149.8661139 | G29: 149.8001211 | H29: 175.3580879 | I29: 238.2297647 | J29: 286.9430607 | K29: 362.4943069 | L29: 407.3973861 | M29: 445.1881673 | N29: 479.7469806 | O29: 512.5646482 | P29: 544.9957223 | Q29: 579.5677028 | R29: 616.0648719 | S29: =IFERROR(SUM(E29:R29),"") -> 5092.624934
C30: Змінні витрати на послугу №1 | D30: тис.грн. | E30: =E31*E32/1000 -> 49.04 | F30: 50.95032829 | G30: 50.96927235 | H30: 59.6368063 | I30: 80.8916942 | J30: 97.37132013 | K30: 122.909247 | L30: 138.1114813 | M30: 150.9188857 | N30: 162.6409605 | O30: 173.7810977 | P30: 184.796754 | Q30: 196.5411423 | R30: 208.9420466 | S30: =IFERROR(SUM(E30:R30),"") -> 1727.501036
C31: Кількість наданих послуг | D31: одиниць | E31: =E9 -> 100 | F31: 100 | G31: 100 | H31: 100 | I31: 100 | J31: 100 | K31: 100 | L31: 100 | M31: 100 | N31: 100 | O31: 100 | P31: 100 | Q31: 100 | R31: 100 | S31: =IFERROR(SUM(E31:R31),"") -> 1400
C32: Змінна собівартість послуги №1 | D32: грн./од. | E32: =E33+E36+E39+E42 -> 490.4 | F32: 509.5032829 | G32: 509.6927235 | H32: 596.368063 | I32: 808.916942 | J32: 973.7132013 | K32: 1229.09247 | L32: 1381.114813 | M32: 1509.188857 | N32: 1626.409605 | O32: 1737.810977 | P32: 1847.96754 | Q32: 1965.411423 | R32: 2089.420466 | S32: =SUM(E32:R32) -> 17275.01036
C33: Оплата праці | D33: грн./послугу | E33: =E34*E35 -> 5.4 | F33: =F34*F35 -> 6.558282899 | G33: 7.250668543 | H33: 8.008416608 | I33: 8.747822902 | J33: 9.509412738 | K33: 10.33888172 | L33: 11.23577971 | M33: 12.2104836 | N33: 13.26974306 | O33: 14.42089327 | P33: 15.67190576 | Q33: 17.03144358 | R33: 18.50892131 | S33: =IFERROR(AVERAGE(E33:R33),"") -> 11.29733255
C34: Кількість витрачених годин | D34: год./од. | E34: 1.08 | F34: 1.08 | G34: 1.08 | H34: 1.08 | I34: 1.08 | J34: 1.08 | K34: 1.08 | L34: 1.08 | M34: 1.08 | N34: 1.08 | O34: 1.08 | P34: 1.08 | Q34: 1.08 | R34: 1.08 | S34: =IFERROR(AVERAGE(E34:R34),"") -> 1.08
C35: Середня вартість години | D35: грн./год. | E35: =5*'Sensitivity analysis'!$I$9 -> 5 | F35: =E35*directory!E$5 -> 6.072484166 | G35: =F35*directory!F$5 -> 6.713581985 | H35: =G35*directory!G$5 -> 7.415200563 | I35: =H35*directory!H$5 -> 8.09983602 | J35: =I35*directory!I$5 -> 8.805011794 | K35: =J35*directory!J$5 -> 9.573038634 | L35: =K35*directory!K$5 -> 10.40349974 | M35: =L35*directory!L$5 -> 11.30600334 | N35: =M35*directory!M$5 -> 12.28679913 | O35: =N35*directory!N$5 -> 13.35267895 | P35: =O35*directory!O$5 -> 14.51102385 | Q35: =P35*directory!P$5 -> 15.76985517 | R35: =Q35*directory!Q$5 -> 17.1378901 | S35: 10.4604931
C36: Видатки | D36: грн./послугу | E36: =E37*E38 -> 480 | F36: 497.76 | G36: 497.26224 | H36: 582.294083 | I36: 791.9199529 | J36: 954.2635433 | K36: 1206.189119 | L36: 1355.756569 | M36: 1481.545607 | N36: 1596.509554 | O36: 1705.623175 | P36: 1813.405989 | Q36: 1928.293588 | R36: 2049.561941 | S36: 1210.027526
C37: Видатки … | D37: од./од. | E37: 32 | F37: =E37 -> 32 | G37: =F37 -> 32 | H37: 32 | I37: 32 | J37: 32 | K37: 32 | L37: 32 | M37: 32 | N37: 32 | O37: 32 | P37: 32 | Q37: 32 | R37: 32 | S37: 32
C38: вартість видатків | D38: грн./од. | E38: 15 | F38: =E38*(1+directory!E$2) -> 15.555 | G38: =F38*(1+directory!F2) -> 15.539445 | H38: =G38*(1+directory!G2) -> 18.1966901 | I38: =H38*(1+directory!H2) -> 24.74749853 | J38: =I38*(1+directory!I2) -> 29.82073573 | K38: =J38*(1+directory!J2) -> 37.69340996 | L38: =K38*(1+directory!K2) -> 42.36739279 | M38: =L38*(1+directory!L2) -> 46.29830022 | N38: =M38*(1+directory!M2) -> 49.89092356 | O38: =N38*(1+directory!N2) -> 53.30072423 | P38: =O38*(1+directory!O2) -> 56.66893715 | Q38: =P38*(1+directory!P2) -> 60.25917463 | R38: =Q38*(1+directory!Q2) -> 64.04881066 | S38: 37.81336018
C39: Сировина ХХХ | D39: грн./послугу | E39: =E40*E41 -> 0 | F39: 0 | G39: 0 | H39: 0 | I39: 0 | J39: 0 | K39: 0 | L39: 0 | M39: 0 | N39: 0 | O39: 0 | P39: 0 | Q39: 0 | R39: 0 | S39: 0
C40: Витрати сировини XXX | D40: од./од.
C41: Вартість сировини ХХХ | D41: грн./од.
C42: Інші видатки | D42: грн./од. | E42: 5 | F42: =E42*(1+directory!E$2) -> 5.185 | G42: =F42*(1+directory!F$2) -> 5.179815 | H42: =G42*(1+directory!G$2) -> 6.065563365 | I42: =H42*(1+directory!H$2) -> 8.249166176 | J42: =I42*(1+directory!I$2) -> 9.940245243 | K42: =J42*(1+directory!J$2) -> 12.56446999 | L42: =K42*(1+directory!K$2) -> 14.12246426 | M42: =L42*(1+directory!L$2) -> 15.43276674 | N42: =M42*(1+directory!M$2) -> 16.63030785 | O42: =N42*(1+directory!N$2) -> 17.76690808 | P42: =O42*(1+directory!O$2) -> 18.88964572 | Q42: =P42*(1+directory!P$2) -> 20.08639154 | R42: =Q42*(1+directory!Q$2) -> 21.34960355 | S42: 12.60445339
C43: Змінні витрати на послугу №2 | D43: тис.грн. | E43: =E44*E45/1000 -> 95.368 | F43: 98.91578566 | G43: 98.83084875 | H43: 115.7212816 | I43: 157.3380705 | J43: 189.5717406 | K43: 239.5850598 | L43: 269.2859048 | M43: 294.2692816 | N43: 317.1060201 | O43: 338.7835505 | P43: 360.1989683 | Q43: 383.0265605 | R43: 407.1228253 | S43: =IFERROR(SUM(E43:R43),"") -> 3365.123898
C44: Кількість наданих послуг | D44: одиниць | E44: =E12 -> 20 | F44: 20 | G44: 20 | H44: 20 | I44: 20 | J44: 20 | K44: 20 | L44: 20 | M44: 20 | N44: 20 | O44: 20 | P44: 20 | Q44: 20 | R44: 20 | S44: =IFERROR(SUM(E44:R44),"") -> 280
C45: Змінна собівартість послуги №2 | D45: грн./од. | E45: =E46+E49+E52+E55 -> 4768.4 | F45: 4945.789283 | G45: 4941.542438 | H45: 5786.064078 | I45: 7866.903523 | J45: 9478.587031 | K45: 11979.25299 | L45: 13464.29524 | M45: 14713.46408 | N45: 15855.301 | O45: 16939.17753 | P45: 18009.94841 | Q45: 19151.32803 | R45: 20356.14127 | S45: =SUM(E45:R45) -> 168256.1949
C46: Оплата праці | D46: грн./послугу | E46: =E47*E48 -> 5.4 | F46: =F47*F48 -> 6.558282899 | G46: 7.250668543 | H46: 8.008416608 | I46: 8.747822902 | J46: 9.509412738 | K46: 10.33888172 | L46: 11.23577971 | M46: 12.2104836 | N46: 13.26974306 | O46: 14.42089327 | P46: 15.67190576 | Q46: 17.03144358 | R46: 18.50892131 | S46: =IFERROR(AVERAGE(E46:R46),"") -> 11.29733255
C47: Кількість витрачених годин | D47: год./од. | E47: 1.08 | F47: 1.08 | G47: 1.08 | H47: 1.08 | I47: 1.08 | J47: 1.08 | K47: 1.08 | L47: 1.08 | M47: 1.08 | N47: 1.08 | O47: 1.08 | P47: 1.08 | Q47: 1.08 | R47: 1.08 | S47: 1.08
C48: Середня вартість години | D48: грн./год. | E48: =5*'Sensitivity analysis'!$I$9 -> 5 | F48: =E48*directory!E$5 -> 6.072484166 | G48: =F48*directory!F$5 -> 6.713581985 | H48: =G48*directory!G$5 -> 7.415200563 | I48: =H48*directory!H$5 -> 8.09983602 | J48: =I48*directory!I$5 -> 8.805011794 | K48: =J48*directory!J$5 -> 9.573038634 | L48: =K48*directory!K$5 -> 10.40349974 | M48: =L48*directory!L$5 -> 11.30600334 | N48: =M48*directory!M$5 -> 12.28679913 | O48: =N48*directory!N$5 -> 13.35267895 | P48: =O48*directory!O$5 -> 14.51102385 | Q48: =P48*directory!P$5 -> 15.76985517 | R48: =Q48*directory!Q$5 -> 17.1378901 | S48: 10.4604931
C49: Видатки | D49: грн./послугу | E49: =E50*E51 -> 4760 | F49: 4936.12 | G49: 4931.18388 | H49: 5774.416323 | I49: 7853.2062 | J49: 9463.113471 | K49: 11961.37543 | L49: 13444.58598 | M49: 14691.99394 | N49: 15832.05308 | O49: 16914.09649 | P49: 17982.94272 | Q49: 19122.24475 | R49: 20324.82258 | S49: 11999.43963
C50: Видатки … | D50: од./од. | E50: 680 | F50: =E50 -> 680 | G50: 680 | H50: 680 | I50: 680 | J50: 680 | K50: 680 | L50: 680 | M50: 680 | N50: 680 | O50: 680 | P50: 680 | Q50: 680 | R50: 680 | S50: 680
C51: вартість видатків | D51: грн./од. | E51: 7 | F51: =E51*(1+directory!E$2) -> 7.259 | G51: =F51*(1+directory!F$2) -> 7.251741 | H51: =G51*(1+directory!G$2) -> 8.491788711 | I51: =H51*(1+directory!H$2) -> 11.54883265 | J51: =I51*(1+directory!I$2) -> 13.91634334 | K51: =J51*(1+directory!J$2) -> 17.59025798 | L51: =K51*(1+directory!K$2) -> 19.77144997 | M51: =L51*(1+directory!L$2) -> 21.60587344 | N51: =M51*(1+directory!M$2) -> 23.282431 | O51: =N51*(1+directory!N$2) -> 24.87367131 | P51: =O51*(1+directory!O$2) -> 26.445504 | Q51: =P51*(1+directory!P$2) -> 28.12094816 | R51: =Q51*(1+directory!Q$2) -> 29.88944497 | S51: 17.64623475
C52: Сировина ХХХ | D52: грн./послугу | E52: =E53*E54 -> 0 | F52: 0 | G52: 0 | H52: 0 | I52: 0 | J52: 0 | K52: 0 | L52: 0 | M52: 0 | N52: 0 | O52: 0 | P52: 0 | Q52: 0 | R52: 0 | S52: 0
C53: Витрати сировини XXX | D53: од./од.
C54: Вартість сировини ХХХ | D54: грн./од.
C55: Інші видатки | D55: грн./од. | E55: 3 | F55: =E55*(1+directory!E$2) -> 3.111 | G55: =F55*(1+directory!F$2) -> 3.107889 | H55: =G55*(1+directory!G$2) -> 3.639338019 | I55: =H55*(1+directory!H$2) -> 4.949499706 | J55: =I55*(1+directory!I$2) -> 5.964147146 | K55: =J55*(1+directory!J$2) -> 7.538681992 | L55: =K55*(1+directory!K$2) -> 8.473478559 | M55: =L55*(1+directory!L$2) -> 9.259660044 | N55: =M55*(1+directory!M$2) -> 9.978184712 | O55: =N55*(1+directory!N$2) -> 10.66014485 | P55: =O55*(1+directory!O$2) -> 11.33378743 | Q55: =P55*(1+directory!P$2) -> 12.05183493 | R55: =Q55*(1+directory!Q$2) -> 12.80976213 | S55: 7.562672036
C56: Змінні витрати на послугу n | D56: тис.грн. | E56: =E57*E58/1000 -> 0 | F56: 0 | G56: 0 | H56: 0 | I56: 0 | J56: 0 | K56: 0 | L56: 0 | M56: 0 | N56: 0 | O56: 0 | P56: 0 | Q56: 0 | R56: 0 | S56: =IFERROR(SUM(E56:R56),"") -> 0
C57: Кількість наданих послуг | D57: одиниць | E57: 0 | F57: 10 | G57: =F57 -> 10 | H57: 10 | I57: 10 | J57: 10 | K57: 10 | L57: 10 | M57: 10 | N57: 10 | O57: 10 | P57: 10 | Q57: 10 | R57: 10 | S57: =IFERROR(SUM(E57:R57),"") -> 130
C58: Змінна собівартість послуги n | D58: грн./од. | E58: =E59+E62+E65+E68 -> 0 | F58: 0 | G58: 0 | H58: 0 | I58: 0 | J58: 0 | K58: 0 | L58: 0 | M58: 0 | N58: 0 | O58: 0 | P58: 0 | Q58: 0 | R58: 0 | S58: =SUM(E58:R58) -> 0
C59: Оплата праці | D59: грн./послугу | E59: =E60*E61 -> 0 | F59: =F60*F61 -> 0 | G59: 0 | H59: 0 | I59: 0 | J59: 0 | K59: 0 | L59: 0 | M59: 0 | N59: 0 | O59: 0 | P59: 0 | Q59: 0 | R59: 0 | S59: =IFERROR(AVERAGE(E59:R59),"") -> 0
C60: Кількість витрачених годин | D60: год./од. | E60: 0 | F60: =E60 -> 0 | G60: 0 | H60: 0 | I60: 0 | J60: 0 | K60: 0 | L60: 0 | M60: 0 | N60: 0 | O60: 0 | P60: 0 | Q60: 0 | R60: 0 | S60: 0
C61: Середня вартість години | D61: грн./год. | E61: 0 | F61: =E61*directory!E$5 -> 0 | G61: =F61*directory!F$5 -> 0 | H61: =G61*directory!G$5 -> 0 | I61: =H61*directory!H$5 -> 0 | J61: =I61*directory!I$5 -> 0 | K61: =J61*directory!J$5 -> 0 | L61: =K61*directory!K$5 -> 0 | M61: =L61*directory!L$5 -> 0 | N61: =M61*directory!M$5 -> 0 | O61: =N61*directory!N$5 -> 0 | P61: =O61*directory!O$5 -> 0 | Q61: =P61*directory!P$5 -> 0 | R61: =Q61*directory!Q$5 -> 0 | S61: 0
C62: Видатки | D62: грн./послугу | E62: =E63*E64 -> 0 | F62: 0 | G62: 0 | H62: 0 | I62: 0 | J62: 0 | K62: 0 | L62: 0 | M62: 0 | N62: 0 | O62: 0 | P62: 0 | Q62: 0 | R62: 0 | S62: 0
C63: Видатки … | D63: од./од. | E63: 0 | F63: =E63 -> 0 | G63: 0 | H63: 0 | I63: 0 | J63: 0 | K63: 0 | L63: 0 | M63: 0 | N63: 0 | O63: 0 | P63: 0 | Q63: 0 | R63: 0 | S63: 0
C64: вартість видатків | D64: грн./од. | E64: 0 | F64: =E64*(1+directory!F$2) -> 0 | G64: =F64*(1+directory!G$2) -> 0 | H64: =G64*(1+directory!H$2) -> 0 | I64: =H64*(1+directory!I$2) -> 0 | J64: =I64*(1+directory!J$2) -> 0 | K64: =J64*(1+directory!K$2) -> 0 | L64: =K64*(1+directory!L$2) -> 0 | M64: =L64*(1+directory!M$2) -> 0 | N64: =M64*(1+directory!N$2) -> 0 | O64: =N64*(1+directory!O$2) -> 0 | P64: =O64*(1+directory!P$2) -> 0 | Q64: =P64*(1+directory!Q$2) -> 0 | R64: =Q64*(1+directory!R$2) -> 0 | S64: 0
C65: Сировина ХХХ | D65: грн./послугу | E65: =E66*E67 -> 0 | F65: 0 | G65: 0 | H65: 0 | I65: 0 | J65: 0 | K65: 0 | L65: 0 | M65: 0 | N65: 0 | O65: 0 | P65: 0 | Q65: 0 | R65: 0 | S65: 0
C66: Витрати сировини XXX | D66: од./од.
C67: Вартість сировини ХХХ | D67: грн./од.
C68: Інші видатки | D68: грн./од. | E68: 0 | F68: =E68*(1+directory!E$2) -> 0 | G68: =F68*(1+directory!F$2) -> 0 | H68: =G68*(1+directory!G$2) -> 0 | I68: =H68*(1+directory!H$2) -> 0 | J68: =I68*(1+directory!I$2) -> 0 | K68: =J68*(1+directory!J$2) -> 0 | L68: =K68*(1+directory!K$2) -> 0 | M68: =L68*(1+directory!L$2) -> 0 | N68: =M68*(1+directory!M$2) -> 0 | O68: =N68*(1+directory!N$2) -> 0 | P68: =O68*(1+directory!O$2) -> 0 | Q68: =P68*(1+directory!P$2) -> 0 | R68: =Q68*(1+directory!Q$2) -> 0 | S68: 0
C69: Повна собівартість | D69: тис. грн./од. | E69: =E18/(E31+E44+E57) -> 1.461733333 | F69: 1.413754479 | G69: 1.42294237 | H69: 1.658952732 | I69: 2.223661036 | J69: 2.663862418 | K69: 3.341624293 | L69: 3.750144119 | M69: 4.097059956 | N69: 4.416675937 | O69: 4.722238616 | P69: 5.025802169 | Q69: 5.349771213 | R69: 5.692376824
B70: 3 | C70: Валовий прибуток | D70: тис.грн. | E70: =E7-E18 -> 304.592 | F70: 313.9719177 | G70: 312.2797319 | H70: 366.6302279 | I70: 502.8440183 | J70: 607.9614289 | K70: 771.7779606 | L70: 868.2378339 | M70: 948.9278127 | N70: 1022.341682 | O70: 1091.732155 | P70: 1160.051707 | Q70: 1232.82333 | R70: 1309.552954 | S70: =SUM(E70:R70) -> 10813.72476
B71: 4 | C71: Адміністративно-господарські видатки | D71: тис.грн. | E71: 30 | F71: =E71*(1+directory!E$2) -> 31.11 | G71: =F71*(1+directory!F$2) -> 31.07889 | H71: =G71*(1+directory!G$2) -> 36.39338019 | I71: =H71*(1+directory!H$2) -> 49.49499706 | J71: =I71*(1+directory!I$2) -> 59.64147146 | K71: =J71*(1+directory!J$2) -> 75.38681992 | L71: =K71*(1+directory!K$2) -> 84.73478559 | M71: =L71*(1+directory!L$2) -> 92.59660044 | N71: =M71*(1+directory!M$2) -> 99.78184712 | O71: =N71*(1+directory!N$2) -> 106.6014485 | P71: =O71*(1+directory!O$2) -> 113.3378743 | Q71: =P71*(1+directory!P$2) -> 120.5183493 | R71: =Q71*(1+directory!Q$2) -> 128.0976213 | S71: 1058.774085
B72: 5 | C72: EBITDA | D72: тис.грн. | E72: =E70-E71 -> 274.592 | F72: =F70-F71 -> 282.8619177 | G72: 281.2008419 | H72: 330.2368477 | I72: 453.3490212 | J72: 548.3199575 | K72: 696.3911407 | L72: 783.5030484 | M72: 856.3312123 | N72: 922.559835 | O72: 985.1307069 | P72: 1046.713832 | Q72: 1112.304981 | R72: 1181.455333 | S72: 9754.950676
B73: 6 | C73: Амортизація | D73: тис.грн. | E73: 500 | F73: 500 | G73: 500 | H73: 500 | I73: 500 | J73: 500 | K73: 500 | L73: 500 | M73: 500 | N73: 500 | O73: 500 | P73: 500 | Q73: 500 | R73: 500 | S73: 7000
B74: 7 | C74: EBIT | D74: тис.грн. | E74: =E72-E73 -> -225.408 | F74: =F72-F73 -> -217.1380823 | G74: -218.7991581 | H74: -169.7631523 | I74: -46.65097876 | J74: 48.31995748 | K74: 196.3911407 | L74: 283.5030484 | M74: 356.3312123 | N74: 422.559835 | O74: 485.1307069 | P74: 546.7138324 | Q74: 612.3049811 | R74: 681.4553327 | S74: 2754.950676
B75: 8 | C75: Видатки на виплату відсотків (за умов кредитної лінії) | D75: тис.грн. | E75: 0 | F75: 0 | G75: 0 | H75: 0 | I75: 0 | J75: 0 | K75: 0 | L75: 0 | M75: 0 | N75: 0 | O75: 0 | P75: 0 | Q75: 0 | R75: 0 | S75: 0
C76: Ставка податку на прибуток | D76: % | E76: =HLOOKUP(E4,directory!$D$1:$Q$5,2) -> 0.19 | F76: =HLOOKUP(F4,directory!$D$1:$Q$5,2) -> 0.037 | G76: =HLOOKUP(G4,directory!$D$1:$Q$5,2) -> -0.001 | H76: =HLOOKUP(H4,directory!$D$1:$Q$5,2) -> 0.171 | I76: =HLOOKUP(I4,directory!$D$1:$Q$5,2) -> 0.36 | J76: =HLOOKUP(J4,directory!$D$1:$Q$5,2) -> 0.205 | K76: =HLOOKUP(K4,directory!$D$1:$Q$5,2) -> 0.264 | L76: =HLOOKUP(L4,directory!$D$1:$Q$5,2) -> 0.124 | M76: =HLOOKUP(M4,directory!$D$1:$Q$5,2) -> 0.09278143322 | N76: =HLOOKUP(N4,directory!$D$1:$Q$5,2) -> 0.0775973054 | O76: =HLOOKUP(O4,directory!$D$1:$Q$5,2) -> 0.06834511019 | P76: =HLOOKUP(P4,directory!$D$1:$Q$5,2) -> 0.06319262948 | Q76: =HLOOKUP(Q4,directory!$D$1:$Q$5,2) -> 0.06335459351 | R76: =HLOOKUP(R4,directory!$D$1:$Q$5,2) -> 0.06288894693
B77: 9 | C77: Податок на прибуток | D77: тис.грн. | E77: =(E74-E75)*E76 -> -42.82752 | F77: =(F74-F75)*F76 -> -8.034109044 | G77: 0.2187991581 | H77: -29.02949904 | I77: -16.79435235 | J77: 9.905591284 | K77: 51.84726115 | L77: 35.154378 | M77: 33.06092057 | N77: 32.78950457 | O77: 33.15631162 | P77: 34.54828464 | Q77: 38.79233318 | R77: 42.85600825 | S77: =SUM(E77:R77) -> 215.643912
B78: 10 | C78: Чистий прибуток | D78: тис.грн. | E78: =E74-E75-E77 -> -182.58048 | F78: =F74-F75-F77 -> -209.1039732 | G78: -219.0179572 | H78: -140.7336532 | I78: -29.85662641 | J78: 38.4143662 | K78: 144.5438796 | L78: 248.3486704 | M78: 323.2702917 | N78: 389.7703305 | O78: 451.9743952 | P78: 512.1655478 | Q78: 573.5126479 | R78: 638.5993245 | S78: =SUM(E78:R78) -> 2539.306764
C81: Можливий стан (показники за умов реаліації проекту):
B82: 1 | C82: Операційні доходи | D82: тис.грн. | E82: =E83+E86+E89 -> 480 | F82: 700.26 | G82: 735.25374 | H82: 848.0185925 | I82: 1135.837396 | J82: 1466.536763 | K82: 1877.155673 | L82: 2305.6305 | M82: 2663.595866 | N82: 3013.237541 | O82: 3366.99093 | P82: 3780.202713 | Q82: 4223.385542 | R82: 4761.224799 | S82: =IFERROR(SUM(E82:R82),"") -> 31357.33006
C83: Доход від послуги №1 | D83: тис.грн. | E83: =E84*E85/1000 -> 300 | F83: 311.1 | G83: 310.7889 | H83: 363.9338019 | I83: 494.9499706 | J83: 596.4147146 | K83: 753.8681992 | L83: 847.3478559 | M83: 925.9660044 | N83: 997.8184712 | O83: 1066.014485 | P83: 1133.378743 | Q83: 1205.183493 | R83: 1280.976213 | S83: =IFERROR(SUM(E83:R83),"") -> 10587.74085
C84: Кількість наданих послуг | D84: од. | E84: =E9 -> 100 | F84: 100 | G84: 100 | H84: 100 | I84: 100 | J84: 100 | K84: 100 | L84: 100 | M84: 100 | N84: 100 | O84: 100 | P84: 100 | Q84: 100 | R84: 100 | S84: =IFERROR(SUM(E84:R84),"") -> 1400
C85: Ціна | D85: грн./од. | E85: =E10 -> 3000 | F85: 3111 | G85: 3107.889 | H85: 3639.338019 | I85: 4949.499706 | J85: 5964.147146 | K85: 7538.681992 | L85: 8473.478559 | M85: 9259.660044 | N85: 9978.184712 | O85: 10660.14485 | P85: 11333.78743 | Q85: 12051.83493 | R85: 12809.76213 | S85: =IFERROR(S83/S84*1000,"") -> 7562.672036
C86: Доход від послуги №2 | D86: тис.грн. | E86: =E87*E88/1000 -> 180 | F86: 186.66 | G86: 186.47334 | H86: 218.3602811 | I86: 296.9699824 | J86: 357.8488287 | K86: 452.3209195 | L86: 508.4087135 | M86: 555.5796026 | N86: 598.6910827 | O86: 639.6086908 | P86: 680.0272458 | Q86: 723.1100955 | R86: 768.5857279 | S86: =IFERROR(SUM(E86:R86),"") -> 6352.644511
C87: Кількість наданих послуг | D87: од. | E87: =E12 -> 20 | F87: 20 | G87: 20 | H87: 20 | I87: 20 | J87: 20 | K87: 20 | L87: 20 | M87: 20 | N87: 20 | O87: 20 | P87: 20 | Q87: 20 | R87: 20 | S87: =IFERROR(SUM(E87:R87),"") -> 280
C88: Ціна | D88: грн./од. | E88: =E13 -> 9000 | F88: 9333 | G88: 9323.667 | H88: 10918.01406 | I88: 14848.49912 | J88: 17892.44144 | K88: 22616.04598 | L88: 25420.43568 | M88: 27778.98013 | N88: 29934.55414 | O88: 31980.43454 | P88: 34001.36229 | Q88: 36155.50478 | R88: 38429.2864 | S88: =IFERROR(S86/S87*1000,"") -> 22688.01611
C89: Доход від послуги n | D89: тис.грн. | E89: =E90*E91/1000 -> 0 | F89: 202.5 | G89: 237.9915 | H89: 265.7245095 | I89: 343.9174428 | J89: 512.2732196 | K89: 670.9665539 | L89: 949.873931 | M89: 1182.050259 | N89: 1416.727987 | O89: 1661.367755 | P89: 1966.796724 | Q89: 2295.091954 | R89: 2711.662858 | S89: =IFERROR(SUM(E89:R89),"") -> 14416.94469
C90: Кількість наданих послуг | D90: од. | E90: 0 | F90: =15*'Sensitivity analysis'!$I$8 -> 15 | G90: =ROUND(F90*1.1,0) -> 17 | H90: 19 | I90: 21 | J90: 23 | K90: 25 | L90: 28 | M90: 31 | N90: 34 | O90: 37 | P90: 41 | Q90: 45 | R90: 50 | S90: =IFERROR(SUM(E90:R90),"") -> 386
C91: Ціна | D91: грн./од. | E91: 0 | F91: =13500*'Sensitivity analysis'!$I$7 -> 13500 | G91: =F91*(1+directory!E$2) -> 13999.5 | H91: =G91*(1+directory!F$2) -> 13985.5005 | I91: =H91*(1+directory!G$2) -> 16377.02109 | J91: =I91*(1+directory!H$2) -> 22272.74868 | K91: =J91*(1+directory!I$2) -> 26838.66215 | L91: =K91*(1+directory!J$2) -> 33924.06896 | M91: =L91*(1+directory!K$2) -> 38130.65352 | N91: =M91*(1+directory!L$2) -> 41668.4702 | O91: =N91*(1+directory!M$2) -> 44901.83121 | P91: =O91*(1+directory!N$2) -> 47970.65181 | Q91: =P91*(1+directory!O$2) -> 51002.04343 | R91: =Q91*(1+directory!P$2) -> 54233.25716 | S91: =IFERROR(S89/S90*1000,"") -> 37349.59765
B93: 2 | C93: Операційні витрати | D93: тис.грн. | E93: =E104+E94 -> 175.208 | F93: 311.01549 | G93: 330.8608924 | H93: 405.2222112 | I93: 567.2126329 | J93: 709.8116895 | K93: 927.5052692 | L93: 1106.695735 | M93: 1281.485677 | N93: 1459.881777 | O93: 1645.066206 | P93: 1870.411401 | Q93: 2118.476612 | R93: 2423.741719 | S93: =SUM(E93:R93) -> 15332.59531
B94: 2.1 | C94: Постійні витрати | D94: тис.грн. | E94: =E95+E98+E99+E100+E102 -> 31 | F94: =F95+F98+F99+F100+F102 -> 33.92196833 | G94: 35.18238697 | H94: 40.30576726 | I94: 50.84616998 | J94: 59.35905361 | K94: 71.91685121 | L94: 80.12134938 | M94: 87.42962698 | N94: 94.42089124 | O94: 101.3263718 | P94: 108.3585597 | Q94: 115.9025548 | R94: 123.9441151 | S94: =SUM(E94:R94) -> 1034.035666
C95: Заробітня платня адмін. Персоналу | D95: тис.грн. | E95: =E96*E97/1000 -> 10 | F95: =F96*F97/1000 -> 12.14496833 | G95: 13.42716397 | H95: 14.83040113 | I95: 16.19967204 | J95: 17.61002359 | K95: 19.14607727 | L95: 20.80699947 | M95: 22.61200667 | N95: 24.57359825 | O95: 26.7053579 | P95: 29.0220477 | Q95: 31.53971034 | R95: 34.27578021 | S95: =SUM(E95:R95) -> 292.8938069
C96: Середня заробітня платня адмін.блоку | D96: грн./чол. | E96: =E21 -> 400 | F96: 485.7987333 | G96: 537.0865588 | H96: 593.216045 | I96: 647.9868816 | J96: 704.4009435 | K96: 765.8430907 | L96: 832.2799788 | M96: 904.480267 | N96: 982.9439301 | O96: 1068.214316 | P96: 1160.881908 | Q96: 1261.588413 | R96: 1371.031208 | S96: =AVERAGE(E96:R96) -> 836.8394482
C97: Кількість співробітників адмін.блоку | D97: чол. | E97: =E22 -> 25 | F97: 25 | G97: 25 | H97: 25 | I97: 25 | J97: 25 | K97: 25 | L97: 25 | M97: 25 | N97: 25 | O97: 25 | P97: 25 | Q97: 25 | R97: 25 | S97: =AVERAGE(E97:R97) -> 25
C98: Оренда приміщень | D98: тис.грн. | E98: =E23 -> 3 | F98: 3.111 | G98: 3.107889 | H98: 3.639338019 | I98: 4.949499706 | J98: 5.964147146 | K98: 7.538681992 | L98: 8.473478559 | M98: 9.259660044 | N98: 9.978184712 | O98: 10.66014485 | P98: 11.33378743 | Q98: 12.05183493 | R98: 12.80976213 | S98: =SUM(E98:R98) -> 105.8774085
C99: Оренда автомобілю | D99: тис.грн. | E99: =E24 -> 2 | F99: 2.074 | G99: 2.071926 | H99: 2.426225346 | I99: 3.299666471 | J99: 3.976098097 | K99: 5.025787995 | L99: 5.648985706 | M99: 6.173106696 | N99: 6.652123142 | O99: 7.106763231 | P99: 7.555858286 | Q99: 8.034556617 | R99: 8.539841421 | S99: =SUM(E99:R99) -> 70.58493901
C100: Комунальні платежі | D100: тис.грн. | E100: =E25 -> 15 | F100: 15.555 | G100: 15.539445 | H100: 18.1966901 | I100: 24.74749853 | J100: 29.82073573 | K100: 37.69340996 | L100: 42.36739279 | M100: 46.29830022 | N100: 49.89092356 | O100: 53.30072423 | P100: 56.66893715 | Q100: 60.25917463 | R100: 64.04881066 | S100: =SUM(E100:R100) -> 529.3870426
C101: Оренда програмного забезпечення | E101: =E26 -> 8 | F101: 8.296 | G101: 8.287704 | H101: 9.704901384 | I101: 13.19866588 | J101: 15.90439239 | K101: 20.10315198 | L101: 22.59594282 | M101: 24.69242678 | N101: 26.60849257 | O101: 28.42705292 | P101: 30.22343315 | Q101: 32.13822647 | R101: 34.15936569 | S101: =SUM(E101:R101) -> 282.339756
C102: Видаткові матеріали | D102: тис.грн. | E102: =E27 -> 1 | F102: 1.037 | G102: 1.035963 | H102: 1.213112673 | I102: 1.649833235 | J102: 1.988049049 | K102: 2.512893997 | L102: 2.824492853 | M102: 3.086553348 | N102: 3.326061571 | O102: 3.553381615 | P102: 3.777929143 | Q102: 4.017278308 | R102: 4.269920711 | S102: =SUM(E102:R102) -> 35.2924695
B104: 2.2 | C104: Змінні витрати | D104: тис.грн. | E104: =E105+E118+E131 -> 144.208 | F104: 277.0935216 | G104: 295.6785054 | H104: 364.916444 | I104: 516.3664629 | J104: 650.4526359 | K104: 855.588418 | L104: 1026.574385 | M104: 1194.05605 | N104: 1365.460886 | O104: 1543.739834 | P104: 1762.052841 | Q104: 2002.574057 | R104: 2299.797604 | S104: =IFERROR(SUM(E104:R104),"") -> 14298.55964
C105: Змінні витрати на послугу №1 | D105: тис.грн. | E105: =E106*E107/1000 -> 48.84 | F105: 50.74292829 | G105: 50.76207975 | H105: 59.39418377 | I105: 80.56172755 | J105: 96.97371032 | K105: 122.4066682 | L105: 137.5465828 | M105: 150.3015751 | N105: 161.9757482 | O105: 173.0704213 | P105: 184.0411682 | Q105: 195.7376867 | R105: 208.0880625 | S105: =IFERROR(SUM(E105:R105),"") -> 1720.442543
C106: Кількість наданих послуг | D106: одиниць | E106: =E84 -> 100 | F106: 100 | G106: 100 | H106: 100 | I106: 100 | J106: 100 | K106: 100 | L106: 100 | M106: 100 | N106: 100 | O106: 100 | P106: 100 | Q106: 100 | R106: 100 | S106: =IFERROR(SUM(E106:R106),"") -> 1400
C107: Змінна собівартість послуги №1 | D107: грн./од. | E107: =E108+E111+E114+E117 -> 488.4 | F107: 507.4292829 | G107: 507.6207975 | H107: 593.9418377 | I107: 805.6172755 | J107: 969.7371032 | K107: 1224.066682 | L107: 1375.465828 | M107: 1503.015751 | N107: 1619.757482 | O107: 1730.704213 | P107: 1840.411682 | Q107: 1957.376867 | R107: 2080.880625 | S107: =SUM(E107:R107) -> 17204.42543
C108: Оплата праці | D108: грн./послугу | E108: =E109*E110 -> 5.4 | F108: =F109*F110 -> 6.558282899 | G108: 7.250668543 | H108: 8.008416608 | I108: 8.747822902 | J108: 9.509412738 | K108: 10.33888172 | L108: 11.23577971 | M108: 12.2104836 | N108: 13.26974306 | O108: 14.42089327 | P108: 15.67190576 | Q108: 17.03144358 | R108: 18.50892131 | S108: =IFERROR(AVERAGE(E108:R108),"") -> 11.29733255
C109: Кількість витрачених годин | D109: год./од. | E109: =E34 -> 1.08 | F109: 1.08 | G109: 1.08 | H109: 1.08 | I109: 1.08 | J109: 1.08 | K109: 1.08 | L109: 1.08 | M109: 1.08 | N109: 1.08 | O109: 1.08 | P109: 1.08 | Q109: 1.08 | R109: 1.08 | S109: 1.08
C110: Середня вартість години | D110: грн./год. | E110: =E35 -> 5 | F110: =E110*directory!E$5 -> 6.072484166 | G110: =F110*directory!F$5 -> 6.713581985 | H110: =G110*directory!G$5 -> 7.415200563 | I110: =H110*directory!H$5 -> 8.09983602 | J110: =I110*directory!I$5 -> 8.805011794 | K110: =J110*directory!J$5 -> 9.573038634 | L110: =K110*directory!K$5 -> 10.40349974 | M110: =L110*directory!L$5 -> 11.30600334 | N110: =M110*directory!M$5 -> 12.28679913 | O110: =N110*directory!N$5 -> 13.35267895 | P110: =O110*directory!O$5 -> 14.51102385 | Q110: =P110*directory!P$5 -> 15.76985517 | R110: =Q110*directory!Q$5 -> 17.1378901 | S110: 10.4604931
C111: Видатки | D111: грн./послугу | E111: =E112*E113 -> 480 | F111: 497.76 | G111: 497.26224 | H111: 582.294083 | I111: 791.9199529 | J111: 954.2635433 | K111: 1206.189119 | L111: 1355.756569 | M111: 1481.545607 | N111: 1596.509554 | O111: 1705.623175 | P111: 1813.405989 | Q111: 1928.293588 | R111: 2049.561941 | S111: 1210.027526
C112: Видатки … | D112: од./од. | E112: =E37 -> 32 | F112: 32 | G112: 32 | H112: 32 | I112: 32 | J112: 32 | K112: 32 | L112: 32 | M112: 32 | N112: 32 | O112: 32 | P112: 32 | Q112: 32 | R112: 32 | S112: 32
C113: вартість видатків | D113: грн./од. | E113: =E38 -> 15 | F113: 15.555 | G113: 15.539445 | H113: 18.1966901 | I113: 24.74749853 | J113: 29.82073573 | K113: 37.69340996 | L113: 42.36739279 | M113: 46.29830022 | N113: 49.89092356 | O113: 53.30072423 | P113: 56.66893715 | Q113: 60.25917463 | R113: 64.04881066 | S113: 37.81336018
C114: Сировина ХХХ | D114: грн./послугу | E114: =E115*E116 -> 0 | F114: 0 | G114: 0 | H114: 0 | I114: 0 | J114: 0 | K114: 0 | L114: 0 | M114: 0 | N114: 0 | O114: 0 | P114: 0 | Q114: 0 | R114: 0 | S114: 0
C115: Витрати сировини XXX | D115: од./од. | E115: =E40 -> 0 | F115: 0 | G115: 0 | H115: 0 | I115: 0 | J115: 0 | K115: 0 | L115: 0 | M115: 0 | N115: 0 | O115: 0 | P115: 0 | Q115: 0 | R115: 0 | S115: 0
C116: Вартість сировини ХХХ | D116: грн./од. | E116: =E41 -> 0 | F116: 0 | G116: 0 | H116: 0 | I116: 0 | J116: 0 | K116: 0 | L116: 0 | M116: 0 | N116: 0 | O116: 0 | P116: 0 | Q116: 0 | R116: 0 | S116: 0
C117: Інші видатки | D117: грн./од. | E117: 3 | F117: =E117*(1+directory!E$2) -> 3.111 | G117: =F117*(1+directory!F$2) -> 3.107889 | H117: =G117*(1+directory!G$2) -> 3.639338019 | I117: =H117*(1+directory!H$2) -> 4.949499706 | J117: =I117*(1+directory!I$2) -> 5.964147146 | K117: =J117*(1+directory!J$2) -> 7.538681992 | L117: =K117*(1+directory!K$2) -> 8.473478559 | M117: =L117*(1+directory!L$2) -> 9.259660044 | N117: =M117*(1+directory!M$2) -> 9.978184712 | O117: =N117*(1+directory!N$2) -> 10.66014485 | P117: =O117*(1+directory!O$2) -> 11.33378743 | Q117: =P117*(1+directory!P$2) -> 12.05183493 | R117: =Q117*(1+directory!Q$2) -> 12.80976213 | S117: 7.562672036
C118: Змінні витрати на послугу №2 | D118: тис.грн. | E118: =E119*E120/1000 -> 95.368 | F118: 98.91578566 | G118: 98.83084875 | H118: 115.7212816 | I118: 157.3380705 | J118: 189.5717406 | K118: 239.5850598 | L118: 269.2859048 | M118: 294.2692816 | N118: 317.1060201 | O118: 338.7835505 | P118: 360.1989683 | Q118: 383.0265605 | R118: 407.1228253 | S118: =IFERROR(SUM(E118:R118),"") -> 3365.123898
C119: Кількість наданих послуг | D119: одиниць | E119: =E87 -> 20 | F119: 20 | G119: 20 | H119: 20 | I119: 20 | J119: 20 | K119: 20 | L119: 20 | M119: 20 | N119: 20 | O119: 20 | P119: 20 | Q119: 20 | R119: 20 | S119: =IFERROR(SUM(E119:R119),"") -> 280
C120: Змінна собівартість послуги №2 | D120: грн./од. | E120: =E121+E124+E127+E130 -> 4768.4 | F120: 4945.789283 | G120: 4941.542438 | H120: 5786.064078 | I120: 7866.903523 | J120: 9478.587031 | K120: 11979.25299 | L120: 13464.29524 | M120: 14713.46408 | N120: 15855.301 | O120: 16939.17753 | P120: 18009.94841 | Q120: 19151.32803 | R120: 20356.14127 | S120: =SUM(E120:R120) -> 168256.1949
C121: Оплата праці | D121: грн./послугу | E121: =E122*E123 -> 5.4 | F121: =F122*F123 -> 6.558282899 | G121: 7.250668543 | H121: 8.008416608 | I121: 8.747822902 | J121: 9.509412738 | K121: 10.33888172 | L121: 11.23577971 | M121: 12.2104836 | N121: 13.26974306 | O121: 14.42089327 | P121: 15.67190576 | Q121: 17.03144358 | R121: 18.50892131 | S121: =IFERROR(AVERAGE(E121:R121),"") -> 11.29733255
C122: Кількість витрачених годин | D122: год./од. | E122: =E47 -> 1.08 | F122: 1.08 | G122: 1.08 | H122: 1.08 | I122: 1.08 | J122: 1.08 | K122: 1.08 | L122: 1.08 | M122: 1.08 | N122: 1.08 | O122: 1.08 | P122: 1.08 | Q122: 1.08 | R122: 1.08 | S122: 1.08
C123: Середня вартість години | D123: грн./год. | E123: =E48 -> 5 | F123: 6.072484166 | G123: 6.713581985 | H123: 7.415200563 | I123: 8.09983602 | J123: 8.805011794 | K123: 9.573038634 | L123: 10.40349974 | M123: 11.30600334 | N123: 12.28679913 | O123: 13.35267895 | P123: 14.51102385 | Q123: 15.76985517 | R123: 17.1378901 | S123: 10.4604931
C124: Видатки | D124: грн./послугу | E124: =E125*E126 -> 4760 | F124: 4936.12 | G124: 4931.18388 | H124: 5774.416323 | I124: 7853.2062 | J124: 9463.113471 | K124: 11961.37543 | L124: 13444.58598 | M124: 14691.99394 | N124: 15832.05308 | O124: 16914.09649 | P124: 17982.94272 | Q124: 19122.24475 | R124: 20324.82258 | S124: 11999.43963
C125: Видатки … | D125: од./од. | E125: =E50 -> 680 | F125: 680 | G125: 680 | H125: 680 | I125: 680 | J125: 680 | K125: 680 | L125: 680 | M125: 680 | N125: 680 | O125: 680 | P125: 680 | Q125: 680 | R125: 680 | S125: 680
C126: вартість видатків | D126: грн./од. | E126: =E51 -> 7 | F126: 7.259 | G126: 7.251741 | H126: 8.491788711 | I126: 11.54883265 | J126: 13.91634334 | K126: 17.59025798 | L126: 19.77144997 | M126: 21.60587344 | N126: 23.282431 | O126: 24.87367131 | P126: 26.445504 | Q126: 28.12094816 | R126: 29.88944497 | S126: 17.64623475
C127: Сировина ХХХ | D127: грн./послугу | E127: =E128*E129 -> 0 | F127: 0 | G127: 0 | H127: 0 | I127: 0 | J127: 0 | K127: 0 | L127: 0 | M127: 0 | N127: 0 | O127: 0 | P127: 0 | Q127: 0 | R127: 0 | S127: 0
C128: Витрати сировини XXX | D128: од./од. | E128: =E53 -> 0 | F128: 0 | G128: 0 | H128: 0 | I128: 0 | J128: 0 | K128: 0 | L128: 0 | M128: 0 | N128: 0 | O128: 0 | P128: 0 | Q128: 0 | R128: 0 | S128: 0
C129: Вартість сировини ХХХ | D129: грн./од. | E129: =E54 -> 0 | F129: 0 | G129: 0 | H129: 0 | I129: 0 | J129: 0 | K129: 0 | L129: 0 | M129: 0 | N129: 0 | O129: 0 | P129: 0 | Q129: 0 | R129: 0 | S129: 0
C130: Інші видатки | D130: грн./од. | E130: 3 | F130: =E130*(1+directory!E$2) -> 3.111 | G130: =F130*(1+directory!F$2) -> 3.107889 | H130: =G130*(1+directory!G$2) -> 3.639338019 | I130: =H130*(1+directory!H$2) -> 4.949499706 | J130: =I130*(1+directory!I$2) -> 5.964147146 | K130: =J130*(1+directory!J$2) -> 7.538681992 | L130: =K130*(1+directory!K$2) -> 8.473478559 | M130: =L130*(1+directory!L$2) -> 9.259660044 | N130: =M130*(1+directory!M$2) -> 9.978184712 | O130: =N130*(1+directory!N$2) -> 10.66014485 | P130: =O130*(1+directory!O$2) -> 11.33378743 | Q130: =P130*(1+directory!P$2) -> 12.05183493 | R130: =Q130*(1+directory!Q$2) -> 12.80976213 | S130: 7.562672036
C131: Змінні витрати на послугу n | D131: тис.грн. | E131: =E132*E133/1000 -> 0 | F131: 127.4348077 | G131: 146.0855769 | H131: 189.8009787 | I131: 278.4666649 | J131: 363.9071849 | K131: 493.5966899 | L131: 619.7418976 | M131: 749.4851929 | N131: 886.3791174 | O131: 1031.885862 | P131: 1217.812705 | Q131: 1423.80981 | R131: 1684.586716 | S131: =IFERROR(SUM(E131:R131),"") -> 9212.993204
C132: Кількість наданих послуг | D132: одиниць | E132: =E90 -> 0 | F132: =F90 -> 15 | G132: 17 | H132: 19 | I132: 21 | J132: 23 | K132: 25 | L132: 28 | M132: 31 | N132: 34 | O132: 37 | P132: 41 | Q132: 45 | R132: 50 | S132: =IFERROR(SUM(E132:R132),"") -> 386
C133: Змінна собівартість послуги n | D133: грн./од. | E133: =E134+E137+E140+E143 -> 0 | F133: 8495.653846 | G133: 8593.269231 | H133: 9989.525192 | I133: 13260.31738 | J133: 15822.05152 | K133: 19743.8676 | L133: 22133.6392 | M133: 24176.94171 | N133: 26069.97404 | O133: 27888.80709 | P133: 29702.7489 | Q133: 31640.218 | R133: 33691.73432 | S133: =SUM(E133:R133) -> 271208.748
C134: Оплата праці | D134: грн./послугу | E134: =E135*E136 -> 0 | F134: =F135*F136 -> 995.6538462 | G134: 1100.769231 | H134: 1215.807692 | I134: 1328.061575 | J134: 1443.68328 | K134: 1569.610142 | L134: 1705.773822 | M134: 1853.749701 | N134: 2014.562488 | O134: 2189.325783 | P134: 2379.249795 | Q134: 2585.649715 | R134: 2809.954828 | S134: =IFERROR(AVERAGE(E134:R134),"") -> 1656.56085
C135: Кількість витрачених годин | D135: год./од. | F135: 240 | G135: =F135 -> 240 | H135: 240 | I135: 240 | J135: 240 | K135: 240 | L135: 240 | M135: 240 | N135: 240 | O135: 240 | P135: 240 | Q135: 240 | R135: 240 | S135: 240
C136: Середня вартість години | D136: грн./год. | F136: =directory!E4*'Sensitivity analysis'!$I$9 -> 4.148557692 | G136: =F136*directory!F$5 -> 4.586538462 | H136: =G136*directory!G$5 -> 5.065865385 | I136: =H136*directory!H$5 -> 5.533589897 | J136: =I136*directory!I$5 -> 6.015347 | K136: =J136*directory!J$5 -> 6.540042259 | L136: =K136*directory!K$5 -> 7.107390925 | M136: =L136*directory!L$5 -> 7.723957087 | N136: =M136*directory!M$5 -> 8.394010365 | O136: =N136*directory!N$5 -> 9.122190764 | P136: =O136*directory!O$5 -> 9.913540813 | Q136: =P136*directory!P$5 -> 10.77354048 | R136: =Q136*directory!Q$5 -> 11.70814511 | S136: 7.433285865
C137: Видатки | D137: грн./послугу | E137: =E138*E139 -> 0 | F137: 3750 | G137: 3746.25 | H137: 4386.85875 | I137: 5966.1279 | J137: 7189.18412 | K137: 9087.128727 | L137: 10213.93269 | M137: 11161.596 | N137: 12027.70578 | O137: 12849.74065 | P137: 13661.74955 | Q137: 14527.28414 | R137: 15440.88974 | S137: 8857.74629
C138: Видатки … | D138: од./од. | F138: 5 | G138: =F138 -> 5 | H138: =G138 -> 5 | I138: 5 | J138: 5 | K138: 5 | L138: 5 | M138: 5 | N138: 5 | O138: 5 | P138: 5 | Q138: 5 | R138: 5 | S138: 5
C139: вартість видатків | D139: грн./од. | F139: 750 | G139: =F139*(1+directory!F$2) -> 749.25 | H139: =G139*(1+directory!G$2) -> 877.37175 | I139: =H139*(1+directory!H$2) -> 1193.22558 | J139: =I139*(1+directory!I$2) -> 1437.836824 | K139: =J139*(1+directory!J$2) -> 1817.425745 | L139: =K139*(1+directory!K$2) -> 2042.786538 | M139: =L139*(1+directory!L$2) -> 2232.319201 | N139: =M139*(1+directory!M$2) -> 2405.541155 | O139: =N139*(1+directory!N$2) -> 2569.948131 | P139: =O139*(1+directory!O$2) -> 2732.349911 | Q139: =P139*(1+directory!P$2) -> 2905.456829 | R139: =Q139*(1+directory!Q$2) -> 3088.177949 | S139: 1907.822278
C140: Сировина ХХХ | D140: грн./послугу | E140: =E141*E142 -> 0 | F140: 2250 | G140: 2247.75 | H140: 2632.11525 | I140: 3579.67674 | J140: 4313.510472 | K140: 5452.277236 | L140: 6128.359614 | M140: 6696.957602 | N140: 7216.623466 | O140: 7709.844392 | P140: 8197.049732 | Q140: 8716.370486 | R140: 9264.533847 | S140: 5314.647774
C141: Витрати сировини XXX | D141: од./од. | F141: 10 | G141: =F141 -> 10 | H141: 10 | I141: 10 | J141: 10 | K141: 10 | L141: 10 | M141: 10 | N141: 10 | O141: 10 | P141: 10 | Q141: 10 | R141: 10 | S141: 10
C142: Вартість сировини ХХХ | D142: грн./од. | E142: 0 | F142: 225 | G142: =F142*(1+directory!F$2) -> 224.775 | H142: =G142*(1+directory!G$2) -> 263.211525 | I142: =H142*(1+directory!H$2) -> 357.967674 | J142: =I142*(1+directory!I$2) -> 431.3510472 | K142: =J142*(1+directory!J$2) -> 545.2277236 | L142: =K142*(1+directory!K$2) -> 612.8359614 | M142: =L142*(1+directory!L$2) -> 669.6957602 | N142: =M142*(1+directory!M$2) -> 721.6623466 | O142: =N142*(1+directory!N$2) -> 770.9844392 | P142: =O142*(1+directory!O$2) -> 819.7049732 | Q142: =P142*(1+directory!P$2) -> 871.6370486 | R142: =Q142*(1+directory!Q$2) -> 926.4533847 | S142: 531.4647774
C143: Інші видатки | D143: грн./од. | F143: 1500 | G143: =F143*(1+directory!F$2) -> 1498.5 | H143: =G143*(1+directory!G$2) -> 1754.7435 | I143: =H143*(1+directory!H$2) -> 2386.45116 | J143: =I143*(1+directory!I$2) -> 2875.673648 | K143: =J143*(1+directory!J$2) -> 3634.851491 | L143: =K143*(1+directory!K$2) -> 4085.573076 | M143: =L143*(1+directory!L$2) -> 4464.638401 | N143: =M143*(1+directory!M$2) -> 4811.082311 | O143: =N143*(1+directory!N$2) -> 5139.896261 | P143: =O143*(1+directory!O$2) -> 5464.699821 | Q143: =P143*(1+directory!P$2) -> 5810.913657 | R143: =Q143*(1+directory!Q$2) -> 6176.355898 | S143: 3815.644556
C144: Повна собівартість | D144: тис. грн./од. | E144: =E93/(E106+E119+E132) -> 1.460066667 | F144: 2.303818444 | G144: 2.41504301 | H144: 2.915267707 | I144: 4.02278463 | J144: 4.963718108 | K144: 6.396588063 | L144: 7.477673882 | M144: 8.48666011 | N144: 9.479751798 | O144: 10.4781287 | P144: 11.61746212 | Q144: 12.83925219 | R144: 14.25730423
B146: 3 | C146: Валовий прибуток | D146: тис.грн. | E146: =E82-E93 -> 304.792 | F146: 389.24451 | G146: 404.3928476 | H146: 442.7963813 | I146: 568.6247629 | J146: 756.7250734 | K146: 949.6504034 | L146: 1198.934766 | M146: 1382.110189 | N146: 1553.355764 | O146: 1721.924724 | P146: 1909.791312 | Q146: 2104.90893 | R146: 2337.483081 | S146: =SUM(E146:R146) -> 16024.73474
B147: 4 | C147: Адміністративно-господарські видатки | D147: тис.грн. | E147: 300 | F147: =E147*(1+directory!E$2) -> 311.1 | G147: =F147*(1+directory!F$2) -> 310.7889 | H147: =G147*(1+directory!G$2) -> 363.9338019 | I147: =H147*(1+directory!H$2) -> 494.9499706 | J147: =I147*(1+directory!I$2) -> 596.4147146 | K147: =J147*(1+directory!J$2) -> 753.8681992 | L147: =K147*(1+directory!K$2) -> 847.3478559 | M147: =L147*(1+directory!L$2) -> 925.9660044 | N147: =M147*(1+directory!M$2) -> 997.8184712 | O147: =N147*(1+directory!N$2) -> 1066.014485 | P147: =O147*(1+directory!O$2) -> 1133.378743 | Q147: =P147*(1+directory!P$2) -> 1205.183493 | R147: =Q147*(1+directory!Q$2) -> 1280.976213 | S147: 10587.74085
B148: 5 | C148: EBITDA | D148: тис.грн. | E148: =E146-E147 -> 4.792 | F148: =F146-F147 -> 78.14451003 | G148: 93.6039476 | H148: 78.8625794 | I148: 73.67479228 | J148: 160.3103588 | K148: 195.7822042 | L148: 351.58691 | M148: 456.1441851 | N148: 555.5372926 | O148: 655.9102393 | P148: 776.4125687 | Q148: 899.7254379 | R148: 1056.506867 | S148: 5436.993893
B149: 6 | C149: Амортизація | D149: тис.грн. | E149: 500 | F149: 500 | G149: 500 | H149: 500 | I149: 500 | J149: 500 | K149: 500 | L149: 500 | M149: 500 | N149: 500 | O149: 500 | P149: 500 | Q149: 500 | R149: 500 | S149: 7000
B150: 7 | C150: EBIT | D150: тис.грн. | E150: =E148-E149 -> -495.208 | F150: =F148-F149 -> -421.85549 | G150: -406.3960524 | H150: -421.1374206 | I150: -426.3252077 | J150: -339.6896412 | K150: -304.2177958 | L150: -148.41309 | M150: -43.85581495 | N150: 55.53729257 | O150: 155.9102393 | P150: 276.4125687 | Q150: 399.7254379 | R150: 556.5068673 | S150: -1563.006107
B151: 8 | C151: Видатки на виплату відсотків (за умов кредитної лінії) | D151: тис.грн. | E151: 0 | F151: 0 | G151: 0 | H151: 0 | I151: 0 | J151: 0 | K151: 0 | L151: 0 | M151: 0 | N151: 0 | O151: 0 | P151: 0 | Q151: 0 | R151: 0 | S151: 0
C152: Ставка податку на прибуток | D152: % | E152: =HLOOKUP(E4,directory!$D$1:$Q$5,2) -> 0.19 | F152: =HLOOKUP(F4,directory!$D$1:$Q$5,2) -> 0.037 | G152: =HLOOKUP(G4,directory!$D$1:$Q$5,2) -> -0.001 | H152: =HLOOKUP(H4,directory!$D$1:$Q$5,2) -> 0.171 | I152: =HLOOKUP(I4,directory!$D$1:$Q$5,2) -> 0.36 | J152: =HLOOKUP(J4,directory!$D$1:$Q$5,2) -> 0.205 | K152: =HLOOKUP(K4,directory!$D$1:$Q$5,2) -> 0.264 | L152: =HLOOKUP(L4,directory!$D$1:$Q$5,2) -> 0.124 | M152: =HLOOKUP(M4,directory!$D$1:$Q$5,2) -> 0.09278143322 | N152: =HLOOKUP(N4,directory!$D$1:$Q$5,2) -> 0.0775973054 | O152: =HLOOKUP(O4,directory!$D$1:$Q$5,2) -> 0.06834511019 | P152: =HLOOKUP(P4,directory!$D$1:$Q$5,2) -> 0.06319262948 | Q152: =HLOOKUP(Q4,directory!$D$1:$Q$5,2) -> 0.06335459351 | R152: =HLOOKUP(R4,directory!$D$1:$Q$5,2) -> 0.06288894693
B153: 9 | C153: Податок на прибуток | D153: тис.грн. | E153: =(E150-E151)*E152 -> -94.08952 | F153: -15.60865313 | G153: 0.4063960524 | H153: -72.01449892 | I153: -153.4770748 | J153: -69.63637644 | K153: -80.31349809 | L153: -18.40322316 | M153: -4.069005366 | N153: 4.309544253 | O153: 10.65570249 | P153: 17.46723704 | Q153: 25.32444264 | R153: 34.99813084 | S153: =SUM(E153:R153) -> -414.4503966
B154: 10 | C154: Чистий Прибуток | D154: тис.грн. | E154: =E150-E151-E153 -> -401.11848 | F154: -406.2468368 | G154: -406.8024484 | H154: -349.1229217 | I154: -272.8481329 | J154: -270.0532647 | K154: -223.9042977 | L154: -130.0098668 | M154: -39.78680958 | N154: 51.22774832 | O154: 145.2545368 | P154: 258.9453317 | Q154: 374.4009953 | R154: 521.5087365 | S154: =SUM(E154:R154) -> -1148.55571

Sheet Fin.costs
B2: Фінансові видатки по проекту
B4: Бюджет проекту (інвестиційні витрати): | AB4: (тис.грн. без ПДВ)
C6: Графік фінансування: | D6: по рокам: | E6: =Cash_Flow!$G$4 -> 2018 | F6: =E6+1 -> 2019 | G6: 2020 | H6: 2021 | I6: 2022 | J6: 2023 | K6: 2024 | L6: 2025 | M6: 2026 | N6: 2027 | O6: 2028 | P6: 2029 | Q6: 2030 | R6: 2031 | S6: 2032 | T6: 2033 | U6: 2034 | V6: 2035 | W6: 2036 | X6: 2037 | Y6: 2038 | Z6: 2039 | AA6: 2040 | AB6: Всього
E7: 250 | F7: 400 | G7: 0 | H7: 0 | I7: 0 | J7: 0 | K7: 0 | L7: 0 | M7: 0 | N7: 0 | O7: 0 | P7: 0 | AB7: =SUM(E7:AA7) -> 650
E8: =E7*'Sensitivity analysis'!$I$10 -> 250 | F8: =F7*'Sensitivity analysis'!$I$10 -> 400 | G8: =G7*'Sensitivity analysis'!$I$10 -> 0 | H8: =H7*'Sensitivity analysis'!$I$10 -> 0 | I8: =I7*'Sensitivity analysis'!$I$10 -> 0 | J8: =J7*'Sensitivity analysis'!$I$10 -> 0 | K8: =K7*'Sensitivity analysis'!$I$10 -> 0 | L8: =L7*'Sensitivity analysis'!$I$10 -> 0 | M8: =M7*'Sensitivity analysis'!$I$10 -> 0 | N8: =N7*'Sensitivity analysis'!$I$10 -> 0 | O8: =O7*'Sensitivity analysis'!$I$10 -> 0 | P8: =P7*'Sensitivity analysis'!$I$10 -> 0 | AB8: =SUM(E8:AA8) -> 650
C10: Складові
C12: назва | E12: од. виміру | G12: кількість | I12: ціна | K12: сума | M12: підстави
B13: 1
B14: =B13+1 -> 2
B15: =B14+1 -> 3
B16: =B15+1 -> 4
B17: =B16+1 -> 5
J18: Всього: | K18: =SUM(K13:L17) -> 0
B20: Капітальні ремонти протягом терміну експлуатації: | AB20: (тис.грн. без ПДВ)
C22: Графік фінансування: | D22: по рокам: | E22: =E6 -> 2018 | F22: =E22+1 -> 2019 | G22: 2020 | H22: 2021 | I22: 2022 | J22: 2023 | K22: 2024 | L22: 2025 | M22: 2026 | N22: 2027 | O22: 2028 | P22: 2029 | Q22: 2030 | R22: 2031 | S22: 2032 | T22: 2033 | U22: 2034 | V22: 2035 | W22: 2036 | X22: 2037 | Y22: 2038 | Z22: 2039 | AA22: 2040 | AB22: Всього
C23: не капіталізовані | I23: =2*'Sensitivity analysis'!$I$11 -> 2 | L23: =1*'Sensitivity analysis'!$I$11 -> 1 | AB23: =SUM(E23:AA23) -> 3
C25: капіталізовані | I25: =2*'Sensitivity analysis'!$I$11 -> 2 | L25: =1*'Sensitivity analysis'!$I$11 -> 1 | AB25: =SUM(E25:AA25) -> 3
C27: Складові
C29: назва | E29: од. виміру | G29: кількість | I29: ціна | K29: сума | M29: підстави
B30: 1
B31: =B30+1 -> 2
B32: =B31+1 -> 3
B33: =B32+1 -> 4
B34: =B33+1 -> 5
J35: Всього: | K35: =SUM(K30:L34) -> 0
B36: Операційні витрати на реалізацію проекту: | AB36: (тис.грн. без ПДВ)
C38: Графік фінансування: | D38: по рокам: | E38: =E6 -> 2018 | F38: =E38+1 -> 2019 | G38: 2020 | H38: 2021 | I38: 2022 | J38: 2023 | K38: 2024 | L38: 2025 | M38: 2026 | N38: 2027 | O38: 2028 | P38: 2029 | Q38: 2030 | R38: 2031 | S38: 2032 | T38: 2033 | U38: 2034 | V38: 2035 | W38: 2036 | X38: 2037 | Y38: 2038 | Z38: 2039 | AA38: 2040 | AB38: Всього
E39: 100 | F39: 160 | AB39: =SUM(E39:AA39) -> 260
C42: Складові
C44: назва | E44: од. виміру | G44: кількість | I44: ціна | K44: сума | M44: підстави
B45: 1
B46: =B45+1 -> 2
B47: =B46+1 -> 3
B48: =B47+1 -> 4
B49: =B48+1 -> 5
J50: Всього: | K50: =SUM(K45:L49) -> 0
B53: Зміни оборотного капіталу: | AB53: (тис.грн. без ПДВ)
C55: Графік фінансування: | D55: по рокам: | E55: =E6 -> 2018 | F55: =E55+1 -> 2019 | G55: 2020 | H55: 2021 | I55: 2022 | J55: 2023 | K55: 2024 | L55: 2025 | M55: 2026 | N55: 2027 | O55: 2028 | P55: 2029 | Q55: 2030 | R55: 2031 | S55: 2032 | T55: 2033 | U55: 2034 | V55: 2035 | W55: 2036 | X55: 2037 | Y55: 2038 | Z55: 2039 | AA55: 2040 | AB55: Всього
C56: ( + збільшення; - зменшення) | AB56: =SUM(E56:AA56) -> 0
C58: Складові
C60: назва | E60: од. виміру | G60: кількість | I60: ціна | K60: сума | M60: підстави
B61: 1
B62: =B61+1 -> 2
B63: =B62+1 -> 3
B64: =B63+1 -> 4
B65: =B64+1 -> 5
J66: Всього: | K66: =SUM(K61:L65) -> 0

Sheet Depreciation
A2: АМОРТИЗАЦІЯ - прямолінійний метод
AD3: (тыс.грн. без ПДВ)
A5: Групи основних засобів | B5: мін. термін корисного використання | C5: термін корисного використання * | D5: Квартальна норма амортизації | E5: Річна норма амортизації | F5: Частка в проекті | G5: =Cash_Flow!F10 -> 2018 | H5: =Cash_Flow!G10 -> 2019 | I5: =Cash_Flow!H10 -> 2020 | J5: =Cash_Flow!I10 -> 2021 | K5: =Cash_Flow!J10 -> 2022 | L5: =Cash_Flow!K10 -> 2023 | M5: =Cash_Flow!L10 -> 2024 | N5: =Cash_Flow!M10 -> 2025 | O5: =Cash_Flow!N10 -> 2026 | P5: =Cash_Flow!O10 -> 2027 | Q5: =Cash_Flow!P10 -> 2028 | R5: =Cash_Flow!Q10 -> 0 | S5: =Cash_Flow!R10 -> 0 | T5: =Cash_Flow!S10 -> 0 | U5: =Cash_Flow!T10 -> 0 | V5: =Cash_Flow!U10 -> 0 | W5: =Cash_Flow!V10 -> 0 | X5: =Cash_Flow!W10 -> 0 | Y5: =Cash_Flow!X10 -> 0 | Z5: =Cash_Flow!Y10 -> 0 | AA5: =Cash_Flow!Z10 -> 0 | AB5: =Cash_Flow!AA10 -> 0 | AC5: =Cash_Flow!AB10 -> 0 | AD5: Всього
A6: Первісна вартість (введення об'єкту в експлуатацію) | G6: =G7+G20 -> 250 | H6: =H7+H20 -> 400 | I6: 0 | J6: 0 | K6: 0 | L6: 0 | M6: 0 | N6: 0 | O6: 0 | P6: 0 | Q6: 0 | R6: 0 | S6: 0 | T6: 0 | U6: 0 | V6: 0 | W6: 0 | X6: 0 | Y6: 0 | Z6: 0 | AA6: 0 | AB6: 0 | AC6: 0 | AD6: =SUM(G6:AC6) -> 650
A7: Основні засоби: | F7: =SUM(F8:F19,F21:F27) -> 1 | G7: =SUM(G8:G19) -> 250 | H7: =SUM(H8:H19) -> 400 | I7: 0 | J7: 0 | K7: 0 | L7: 0 | M7: 0 | N7: 0 | O7: 0 | P7: 0 | Q7: 0 | R7: 0 | S7: 0 | T7: 0 | U7: 0 | V7: 0 | W7: 0 | X7: 0 | Y7: 0 | Z7: 0 | AA7: 0 | AB7: 0 | AC7: 0 | AD7: 650
A8: Група 1 - земельні ділянки | B8: — | C8: — | D8: 0 | E8: =4*D8 - 6*D8^2 + 4*D8^3 - D8^4 -> 0 | G8: =Fin.costs!E$8*$F8 -> 0 | H8: =Fin.costs!F$8*$F8 -> 0 | I8: =Fin.costs!G$8*$F8 -> 0 | J8: =Fin.costs!H$8*$F8 -> 0 | K8: =Fin.costs!I$8*$F8 -> 0 | L8: =Fin.costs!J$8*$F8 -> 0 | M8: =Fin.costs!K$8*$F8 -> 0 | N8: =Fin.costs!L$8*$F8 -> 0 | O8: =Fin.costs!M$8*$F8 -> 0 | P8: =Fin.costs!N$8*$F8 -> 0 | Q8: =Fin.costs!O$8*$F8 -> 0 | R8: =Fin.costs!P$8*$F8 -> 0 | S8: =Fin.costs!Q$8*$F8 -> 0 | T8: =Fin.costs!R$8*$F8 -> 0 | U8: =Fin.costs!S$8*$F8 -> 0 | V8: =Fin.costs!T$8*$F8 -> 0 | W8: =Fin.costs!U$8*$F8 -> 0 | X8: =Fin.costs!V$8*$F8 -> 0 | Y8: =Fin.costs!W$8*$F8 -> 0 | Z8: =Fin.costs!X$8*$F8 -> 0 | AA8: =Fin.costs!Y$8*$F8 -> 0 | AB8: =Fin.costs!Z$8*$F8 -> 0 | AC8: =Fin.costs!AA$8*$F8 -> 0 | AD8: 0
A9: Група 2 - капітальні витрати на поліпшення землі, не пов'язані з будівництвом | B9: 15 | C9: =IF(Cash_Flow!$AC$40>B9,Cash_Flow!$AC$40,B9) -> 15 | D9: =D10/B9*B10 -> 0.02666666667 | E9: =4*D9 - 6*D9^2 + 4*D9^3 - D9^4 -> 0.1024753462 | G9: =Fin.costs!E$8*$F9 -> 0 | H9: =Fin.costs!F$8*$F9 -> 0 | I9: =Fin.costs!G$8*$F9 -> 0 | J9: =Fin.costs!H$8*$F9 -> 0 | K9: =Fin.costs!I$8*$F9 -> 0 | L9: =Fin.costs!J$8*$F9 -> 0 | M9: =Fin.costs!K$8*$F9 -> 0 | N9: =Fin.costs!L$8*$F9 -> 0 | O9: =Fin.costs!M$8*$F9 -> 0 | P9: =Fin.costs!N$8*$F9 -> 0 | Q9: =Fin.costs!O$8*$F9 -> 0 | R9: =Fin.costs!P$8*$F9 -> 0 | S9: =Fin.costs!Q$8*$F9 -> 0 | T9: =Fin.costs!R$8*$F9 -> 0 | U9: =Fin.costs!S$8*$F9 -> 0 | V9: =Fin.costs!T$8*$F9 -> 0 | W9: =Fin.costs!U$8*$F9 -> 0 | X9: =Fin.costs!V$8*$F9 -> 0 | Y9: =Fin.costs!W$8*$F9 -> 0 | Z9: =Fin.costs!X$8*$F9 -> 0 | AA9: =Fin.costs!Y$8*$F9 -> 0 | AB9: =Fin.costs!Z$8*$F9 -> 0 | AC9: =Fin.costs!AA$8*$F9 -> 0 | AD9: 0
A10: Група 3 - будівлі | B10: 20 | C10: =IF(Cash_Flow!$AC$40>B10,Cash_Flow!$AC$40,B10) -> 20 | D10: 0.02 | E10: =4*D10 - 6*D10^2 + 4*D10^3 - D10^4 -> 0.07763184 | G10: =Fin.costs!E$8*$F10 -> 0 | H10: =Fin.costs!F$8*$F10 -> 0 | I10: =Fin.costs!G$8*$F10 -> 0 | J10: =Fin.costs!H$8*$F10 -> 0 | K10: =Fin.costs!I$8*$F10 -> 0 | L10: =Fin.costs!J$8*$F10 -> 0 | M10: =Fin.costs!K$8*$F10 -> 0 | N10: =Fin.costs!L$8*$F10 -> 0 | O10: =Fin.costs!M$8*$F10 -> 0 | P10: =Fin.costs!N$8*$F10 -> 0 | Q10: =Fin.costs!O$8*$F10 -> 0 | R10: =Fin.costs!P$8*$F10 -> 0 | S10: =Fin.costs!Q$8*$F10 -> 0 | T10: =Fin.costs!R$8*$F10 -> 0 | U10: =Fin.costs!S$8*$F10 -> 0 | V10: =Fin.costs!T$8*$F10 -> 0 | W10: =Fin.costs!U$8*$F10 -> 0 | X10: =Fin.costs!V$8*$F10 -> 0 | Y10: =Fin.costs!W$8*$F10 -> 0 | Z10: =Fin.costs!X$8*$F10 -> 0 | AA10: =Fin.costs!Y$8*$F10 -> 0 | AB10: =Fin.costs!Z$8*$F10 -> 0 | AC10: =Fin.costs!AA$8*$F10 -> 0 | AD10: 0
A11: споруди | B11: 15 | C11: =IF(Cash_Flow!$AC$40>B11,Cash_Flow!$AC$40,B11) -> 15 | D11: =D10/B11*B10 -> 0.02666666667 | E11: 0.1024753462 | G11: =Fin.costs!E$8*$F11 -> 0 | H11: =Fin.costs!F$8*$F11 -> 0 | I11: =Fin.costs!G$8*$F11 -> 0 | J11: =Fin.costs!H$8*$F11 -> 0 | K11: =Fin.costs!I$8*$F11 -> 0 | L11: =Fin.costs!J$8*$F11 -> 0 | M11: =Fin.costs!K$8*$F11 -> 0 | N11: =Fin.costs!L$8*$F11 -> 0 | O11: =Fin.costs!M$8*$F11 -> 0 | P11: =Fin.costs!N$8*$F11 -> 0 | Q11: =Fin.costs!O$8*$F11 -> 0 | R11: =Fin.costs!P$8*$F11 -> 0 | S11: =Fin.costs!Q$8*$F11 -> 0 | T11: =Fin.costs!R$8*$F11 -> 0 | U11: =Fin.costs!S$8*$F11 -> 0 | V11: =Fin.costs!T$8*$F11 -> 0 | W11: =Fin.costs!U$8*$F11 -> 0 | X11: =Fin.costs!V$8*$F11 -> 0 | Y11: =Fin.costs!W$8*$F11 -> 0 | Z11: =Fin.costs!X$8*$F11 -> 0 | AA11: =Fin.costs!Y$8*$F11 -> 0 | AB11: =Fin.costs!Z$8*$F11 -> 0 | AC11: =Fin.costs!AA$8*$F11 -> 0 | AD11: 0
A12: передавальні пристрої | B12: 10 | C12: =IF(Cash_Flow!$AC$40>B12,Cash_Flow!$AC$40,B12) -> 10 | D12: =D10/B12*B10 -> 0.04 | E12: 0.15065344 | G12: =Fin.costs!E$8*$F12 -> 0 | H12: =Fin.costs!F$8*$F12 -> 0 | I12: =Fin.costs!G$8*$F12 -> 0 | J12: =Fin.costs!H$8*$F12 -> 0 | K12: =Fin.costs!I$8*$F12 -> 0 | L12: =Fin.costs!J$8*$F12 -> 0 | M12: =Fin.costs!K$8*$F12 -> 0 | N12: =Fin.costs!L$8*$F12 -> 0 | O12: =Fin.costs!M$8*$F12 -> 0 | P12: =Fin.costs!N$8*$F12 -> 0 | Q12: =Fin.costs!O$8*$F12 -> 0 | R12: =Fin.costs!P$8*$F12 -> 0 | S12: =Fin.costs!Q$8*$F12 -> 0 | T12: =Fin.costs!R$8*$F12 -> 0 | U12: =Fin.costs!S$8*$F12 -> 0 | V12: =Fin.costs!T$8*$F12 -> 0 | W12: =Fin.costs!U$8*$F12 -> 0 | X12: =Fin.costs!V$8*$F12 -> 0 | Y12: =Fin.costs!W$8*$F12 -> 0 | Z12: =Fin.costs!X$8*$F12 -> 0 | AA12: =Fin.costs!Y$8*$F12 -> 0 | AB12: =Fin.costs!Z$8*$F12 -> 0 | AC12: =Fin.costs!AA$8*$F12 -> 0 | AD12: 0
A13: Група 4 - машини та обладнання | B13: 5 | C13: =IF(Cash_Flow!$AC$40>B13,Cash_Flow!$AC$40,B13) -> 10 | D13: 0.06 | E13: 0.21925104 | F13: 0.6 | G13: =Fin.costs!E$8*$F13 -> 150 | H13: =Fin.costs!F$8*$F13 -> 240 | I13: =Fin.costs!G$8*$F13 -> 0 | J13: =Fin.costs!H$8*$F13 -> 0 | K13: =Fin.costs!I$8*$F13 -> 0 | L13: =Fin.costs!J$8*$F13 -> 0 | M13: =Fin.costs!K$8*$F13 -> 0 | N13: =Fin.costs!L$8*$F13 -> 0 | O13: =Fin.costs!M$8*$F13 -> 0 | P13: =Fin.costs!N$8*$F13 -> 0 | Q13: =Fin.costs!O$8*$F13 -> 0 | R13: =Fin.costs!P$8*$F13 -> 0 | S13: =Fin.costs!Q$8*$F13 -> 0 | T13: =Fin.costs!R$8*$F13 -> 0 | U13: =Fin.costs!S$8*$F13 -> 0 | V13: =Fin.costs!T$8*$F13 -> 0 | W13: =Fin.costs!U$8*$F13 -> 0 | X13: =Fin.costs!V$8*$F13 -> 0 | Y13: =Fin.costs!W$8*$F13 -> 0 | Z13: =Fin.costs!X$8*$F13 -> 0 | AA13: =Fin.costs!Y$8*$F13 -> 0 | AB13: =Fin.costs!Z$8*$F13 -> 0 | AC13: =Fin.costs!AA$8*$F13 -> 0 | AD13: 390
A14: з них: Електронно-обчислювальні машини, інші машини для автоматичного оброблення інформації, пов'язані з ними засоби зчитування або друку інформації, пов'язані з ними комп'ютерні програми (крім програм, витрати на придбання яких визнаються роялті, та / або програм, які визнаються нематеріальним активів) , інші інформаційні системи, комутатори, маршрутизатори, модулі, модеми, джерела безперебійного живлення та засоби їх підключення до телекомунікаційних мереж, телефони (в тому числі мобільні), мікрофони і раці , Вартість яких перевищує 2500 гривень. | B14: 2 | C14: =IF(Cash_Flow!$AC$40>B14,Cash_Flow!$AC$40,B14) -> 10 | D14: 0.15 | E14: 0.47799375 | G14: =Fin.costs!E$8*$F14 -> 0 | H14: =Fin.costs!F$8*$F14 -> 0 | I14: =Fin.costs!G$8*$F14 -> 0 | J14: =Fin.costs!H$8*$F14 -> 0 | K14: =Fin.costs!I$8*$F14 -> 0 | L14: =Fin.costs!J$8*$F14 -> 0 | M14: =Fin.costs!K$8*$F14 -> 0 | N14: =Fin.costs!L$8*$F14 -> 0 | O14: =Fin.costs!M$8*$F14 -> 0 | P14: =Fin.costs!N$8*$F14 -> 0 | Q14: =Fin.costs!O$8*$F14 -> 0 | R14: =Fin.costs!P$8*$F14 -> 0 | S14: =Fin.costs!Q$8*$F14 -> 0 | T14: =Fin.costs!R$8*$F14 -> 0 | U14: =Fin.costs!S$8*$F14 -> 0 | V14: =Fin.costs!T$8*$F14 -> 0 | W14: =Fin.costs!U$8*$F14 -> 0 | X14: =Fin.costs!V$8*$F14 -> 0 | Y14: =Fin.costs!W$8*$F14 -> 0 | Z14: =Fin.costs!X$8*$F14 -> 0 | AA14: =Fin.costs!Y$8*$F14 -> 0 | AB14: =Fin.costs!Z$8*$F14 -> 0 | AC14: =Fin.costs!AA$8*$F14 -> 0 | AD14: 0
A15: Група 5 - транспортні засоби | B15: 5 | C15: =IF(Cash_Flow!$AC$40>B15,Cash_Flow!$AC$40,B15) -> 10 | D15: 0.1 | E15: 0.3439 | G15: =Fin.costs!E$8*$F15 -> 0 | H15: =Fin.costs!F$8*$F15 -> 0 | I15: =Fin.costs!G$8*$F15 -> 0 | J15: =Fin.costs!H$8*$F15 -> 0 | K15: =Fin.costs!I$8*$F15 -> 0 | L15: =Fin.costs!J$8*$F15 -> 0 | M15: =Fin.costs!K$8*$F15 -> 0 | N15: =Fin.costs!L$8*$F15 -> 0 | O15: =Fin.costs!M$8*$F15 -> 0 | P15: =Fin.costs!N$8*$F15 -> 0 | Q15: =Fin.costs!O$8*$F15 -> 0 | R15: =Fin.costs!P$8*$F15 -> 0 | S15: =Fin.costs!Q$8*$F15 -> 0 | T15: =Fin.costs!R$8*$F15 -> 0 | U15: =Fin.costs!S$8*$F15 -> 0 | V15: =Fin.costs!T$8*$F15 -> 0 | W15: =Fin.costs!U$8*$F15 -> 0 | X15: =Fin.costs!V$8*$F15 -> 0 | Y15: =Fin.costs!W$8*$F15 -> 0 | Z15: =Fin.costs!X$8*$F15 -> 0 | AA15: =Fin.costs!Y$8*$F15 -> 0 | AB15: =Fin.costs!Z$8*$F15 -> 0 | AC15: =Fin.costs!AA$8*$F15 -> 0 | AD15: 0
A16: Група 6 - інструменти, прилади, інвентар (меблі) | B16: 4 | C16: =IF(Cash_Flow!$AC$40>B16,Cash_Flow!$AC$40,B16) -> 10 | D16: =D15/B16*B15 -> 0.125 | E16: 0.4138183594 | F16: 0.3 | G16: =Fin.costs!E$8*$F16 -> 75 | H16: =Fin.costs!F$8*$F16 -> 120 | I16: =Fin.costs!G$8*$F16 -> 0 | J16: =Fin.costs!H$8*$F16 -> 0 | K16: =Fin.costs!I$8*$F16 -> 0 | L16: =Fin.costs!J$8*$F16 -> 0 | M16: =Fin.costs!K$8*$F16 -> 0 | N16: =Fin.costs!L$8*$F16 -> 0 | O16: =Fin.costs!M$8*$F16 -> 0 | P16: =Fin.costs!N$8*$F16 -> 0 | Q16: =Fin.costs!O$8*$F16 -> 0 | R16: =Fin.costs!P$8*$F16 -> 0 | S16: =Fin.costs!Q$8*$F16 -> 0 | T16: =Fin.costs!R$8*$F16 -> 0 | U16: =Fin.costs!S$8*$F16 -> 0 | V16: =Fin.costs!T$8*$F16 -> 0 | W16: =Fin.costs!U$8*$F16 -> 0 | X16: =Fin.costs!V$8*$F16 -> 0 | Y16: =Fin.costs!W$8*$F16 -> 0 | Z16: =Fin.costs!X$8*$F16 -> 0 | AA16: =Fin.costs!Y$8*$F16 -> 0 | AB16: =Fin.costs!Z$8*$F16 -> 0 | AC16: =Fin.costs!AA$8*$F16 -> 0 | AD16: 195
A17: Група 7 - тварини | B17: 6 | C17: =IF(Cash_Flow!$AC$40>B17,Cash_Flow!$AC$40,B17) -> 10 | D17: =D10/B17*B10 -> 0.06666666667 | E17: 0.2411654321 | G17: =Fin.costs!E$8*$F17 -> 0 | H17: =Fin.costs!F$8*$F17 -> 0 | I17: =Fin.costs!G$8*$F17 -> 0 | J17: =Fin.costs!H$8*$F17 -> 0 | K17: =Fin.costs!I$8*$F17 -> 0 | L17: =Fin.costs!J$8*$F17 -> 0 | M17: =Fin.costs!K$8*$F17 -> 0 | N17: =Fin.costs!L$8*$F17 -> 0 | O17: =Fin.costs!M$8*$F17 -> 0 | P17: =Fin.costs!N$8*$F17 -> 0 | Q17: =Fin.costs!O$8*$F17 -> 0 | R17: =Fin.costs!P$8*$F17 -> 0 | S17: =Fin.costs!Q$8*$F17 -> 0 | T17: =Fin.costs!R$8*$F17 -> 0 | U17: =Fin.costs!S$8*$F17 -> 0 | V17: =Fin.costs!T$8*$F17 -> 0 | W17: =Fin.costs!U$8*$F17 -> 0 | X17: =Fin.costs!V$8*$F17 -> 0 | Y17: =Fin.costs!W$8*$F17 -> 0 | Z17: =Fin.costs!X$8*$F17 -> 0 | AA17: =Fin.costs!Y$8*$F17 -> 0 | AB17: =Fin.costs!Z$8*$F17 -> 0 | AC17: =Fin.costs!AA$8*$F17 -> 0 | AD17: 0
A18: Група 8 - багаторічні насадження | B18: 10 | C18: =IF(Cash_Flow!$AC$40>B18,Cash_Flow!$AC$40,B18) -> 10 | D18: =D10/B18*B10 -> 0.04 | E18: 0.15065344 | G18: =Fin.costs!E$8*$F18 -> 0 | H18: =Fin.costs!F$8*$F18 -> 0 | I18: =Fin.costs!G$8*$F18 -> 0 | J18: =Fin.costs!H$8*$F18 -> 0 | K18: =Fin.costs!I$8*$F18 -> 0 | L18: =Fin.costs!J$8*$F18 -> 0 | M18: =Fin.costs!K$8*$F18 -> 0 | N18: =Fin.costs!L$8*$F18 -> 0 | O18: =Fin.costs!M$8*$F18 -> 0 | P18: =Fin.costs!N$8*$F18 -> 0 | Q18: =Fin.costs!O$8*$F18 -> 0 | R18: =Fin.costs!P$8*$F18 -> 0 | S18: =Fin.costs!Q$8*$F18 -> 0 | T18: =Fin.costs!R$8*$F18 -> 0 | U18: =Fin.costs!S$8*$F18 -> 0 | V18: =Fin.costs!T$8*$F18 -> 0 | W18: =Fin.costs!U$8*$F18 -> 0 | X18: =Fin.costs!V$8*$F18 -> 0 | Y18: =Fin.costs!W$8*$F18 -> 0 | Z18: =Fin.costs!X$8*$F18 -> 0 | AA18: =Fin.costs!Y$8*$F18 -> 0 | AB18: =Fin.costs!Z$8*$F18 -> 0 | AC18: =Fin.costs!AA$8*$F18 -> 0 | AD18: 0
A19: Група 9 - інші основні засоби | B19: 12 | C19: =IF(Cash_Flow!$AC$40>B19,Cash_Flow!$AC$40,B19) -> 12 | D19: =D10/B19*B10 -> 0.03333333333 | E19: 0.1268135802 | F19: 0.1 | G19: =Fin.costs!E$8*$F19 -> 25 | H19: =Fin.costs!F$8*$F19 -> 40 | I19: =Fin.costs!G$8*$F19 -> 0 | J19: =Fin.costs!H$8*$F19 -> 0 | K19: =Fin.costs!I$8*$F19 -> 0 | L19: =Fin.costs!J$8*$F19 -> 0 | M19: =Fin.costs!K$8*$F19 -> 0 | N19: =Fin.costs!L$8*$F19 -> 0 | O19: =Fin.costs!M$8*$F19 -> 0 | P19: =Fin.costs!N$8*$F19 -> 0 | Q19: =Fin.costs!O$8*$F19 -> 0 | R19: =Fin.costs!P$8*$F19 -> 0 | S19: =Fin.costs!Q$8*$F19 -> 0 | T19: =Fin.costs!R$8*$F19 -> 0 | U19: =Fin.costs!S$8*$F19 -> 0 | V19: =Fin.costs!T$8*$F19 -> 0 | W19: =Fin.costs!U$8*$F19 -> 0 | X19: =Fin.costs!V$8*$F19 -> 0 | Y19: =Fin.costs!W$8*$F19 -> 0 | Z19: =Fin.costs!X$8*$F19 -> 0 | AA19: =Fin.costs!Y$8*$F19 -> 0 | AB19: =Fin.costs!Z$8*$F19 -> 0 | AC19: =Fin.costs!AA$8*$F19 -> 0 | AD19: 65
A20: Інші необоротні матеріальні активи: | G20: =SUM(G21:G27) -> 0 | H20: =SUM(H21:H27) -> 0 | I20: 0 | J20: 0 | K20: 0 | L20: 0 | M20: 0 | N20: 0 | O20: 0 | P20: 0 | Q20: 0 | R20: 0 | S20: 0 | T20: 0 | U20: 0 | V20: 0 | W20: 0 | X20: 0 | Y20: 0 | Z20: 0 | AA20: 0 | AB20: 0 | AC20: 0 | AD20: 0
A21: Група 10 - бібліотечні фонди | B21: — | C21: — | D21: 1 | E21: =4*D21 - 6*D21^2 + 4*D21^3 - D21^4 -> 1 | G21: =Fin.costs!E$8*$F21 -> 0 | H21: =Fin.costs!F$8*$F21 -> 0 | I21: =Fin.costs!G$8*$F21 -> 0 | J21: =Fin.costs!H$8*$F21 -> 0 | K21: =Fin.costs!I$8*$F21 -> 0 | L21: =Fin.costs!J$8*$F21 -> 0 | M21: =Fin.costs!K$8*$F21 -> 0 | N21: =Fin.costs!L$8*$F21 -> 0 | O21: =Fin.costs!M$8*$F21 -> 0 | P21: =Fin.costs!N$8*$F21 -> 0 | Q21: =Fin.costs!O$8*$F21 -> 0 | R21: =Fin.costs!P$8*$F21 -> 0 | S21: =Fin.costs!Q$8*$F21 -> 0 | T21: =Fin.costs!R$8*$F21 -> 0 | U21: =Fin.costs!S$8*$F21 -> 0 | V21: =Fin.costs!T$8*$F21 -> 0 | W21: =Fin.costs!U$8*$F21 -> 0 | X21: =Fin.costs!V$8*$F21 -> 0 | Y21: =Fin.costs!W$8*$F21 -> 0 | Z21: =Fin.costs!X$8*$F21 -> 0 | AA21: =Fin.costs!Y$8*$F21 -> 0 | AB21: =Fin.costs!Z$8*$F21 -> 0 | AC21: =Fin.costs!AA$8*$F21 -> 0 | AD21: 0
A22: Група 11 - малоцінні необоротні активи | B22: — | C22: — | D22: 1 | E22: 1 | G22: =Fin.costs!E$8*$F22 -> 0 | H22: =Fin.costs!F$8*$F22 -> 0 | I22: =Fin.costs!G$8*$F22 -> 0 | J22: =Fin.costs!H$8*$F22 -> 0 | K22: =Fin.costs!I$8*$F22 -> 0 | L22: =Fin.costs!J$8*$F22 -> 0 | M22: =Fin.costs!K$8*$F22 -> 0 | N22: =Fin.costs!L$8*$F22 -> 0 | O22: =Fin.costs!M$8*$F22 -> 0 | P22: =Fin.costs!N$8*$F22 -> 0 | Q22: =Fin.costs!O$8*$F22 -> 0 | R22: =Fin.costs!P$8*$F22 -> 0 | S22: =Fin.costs!Q$8*$F22 -> 0 | T22: =Fin.costs!R$8*$F22 -> 0 | U22: =Fin.costs!S$8*$F22 -> 0 | V22: =Fin.costs!T$8*$F22 -> 0 | W22: =Fin.costs!U$8*$F22 -> 0 | X22: =Fin.costs!V$8*$F22 -> 0 | Y22: =Fin.costs!W$8*$F22 -> 0 | Z22: =Fin.costs!X$8*$F22 -> 0 | AA22: =Fin.costs!Y$8*$F22 -> 0 | AB22: =Fin.costs!Z$8*$F22 -> 0 | AC22: =Fin.costs!AA$8*$F22 -> 0 | AD22: 0
A23: Група 12 - тимчасові (нетитульні) споруди | B23: 5 | C23: =IF(Cash_Flow!$AC$40>B23,Cash_Flow!$AC$40,B23) -> 10 | D23: =D10/B23*B10 -> 0.08 | E23: 0.28360704 | G23: =Fin.costs!E$8*$F23 -> 0 | H23: =Fin.costs!F$8*$F23 -> 0 | I23: =Fin.costs!G$8*$F23 -> 0 | J23: =Fin.costs!H$8*$F23 -> 0 | K23: =Fin.costs!I$8*$F23 -> 0 | L23: =Fin.costs!J$8*$F23 -> 0 | M23: =Fin.costs!K$8*$F23 -> 0 | N23: =Fin.costs!L$8*$F23 -> 0 | O23: =Fin.costs!M$8*$F23 -> 0 | P23: =Fin.costs!N$8*$F23 -> 0 | Q23: =Fin.costs!O$8*$F23 -> 0 | R23: =Fin.costs!P$8*$F23 -> 0 | S23: =Fin.costs!Q$8*$F23 -> 0 | T23: =Fin.costs!R$8*$F23 -> 0 | U23: =Fin.costs!S$8*$F23 -> 0 | V23: =Fin.costs!T$8*$F23 -> 0 | W23: =Fin.costs!U$8*$F23 -> 0 | X23: =Fin.costs!V$8*$F23 -> 0 | Y23: =Fin.costs!W$8*$F23 -> 0 | Z23: =Fin.costs!X$8*$F23 -> 0 | AA23: =Fin.costs!Y$8*$F23 -> 0 | AB23: =Fin.costs!Z$8*$F23 -> 0 | AC23: =Fin.costs!AA$8*$F23 -> 0 | AD23: 0
A24: Група 13 - природні ресурси | B24: — | C24: — | D24: 0 | E24: 0 | G24: =Fin.costs!E$8*$F24 -> 0 | H24: =Fin.costs!F$8*$F24 -> 0 | I24: =Fin.costs!G$8*$F24 -> 0 | J24: =Fin.costs!H$8*$F24 -> 0 | K24: =Fin.costs!I$8*$F24 -> 0 | L24: =Fin.costs!J$8*$F24 -> 0 | M24: =Fin.costs!K$8*$F24 -> 0 | N24: =Fin.costs!L$8*$F24 -> 0 | O24: =Fin.costs!M$8*$F24 -> 0 | P24: =Fin.costs!N$8*$F24 -> 0 | Q24: =Fin.costs!O$8*$F24 -> 0 | R24: =Fin.costs!P$8*$F24 -> 0 | S24: =Fin.costs!Q$8*$F24 -> 0 | T24: =Fin.costs!R$8*$F24 -> 0 | U24: =Fin.costs!S$8*$F24 -> 0 | V24: =Fin.costs!T$8*$F24 -> 0 | W24: =Fin.costs!U$8*$F24 -> 0 | X24: =Fin.costs!V$8*$F24 -> 0 | Y24: =Fin.costs!W$8*$F24 -> 0 | Z24: =Fin.costs!X$8*$F24 -> 0 | AA24: =Fin.costs!Y$8*$F24 -> 0 | AB24: =Fin.costs!Z$8*$F24 -> 0 | AC24: =Fin.costs!AA$8*$F24 -> 0 | AD24: 0
A25: Група 14 - інвентарна тара | B25: 6 | C25: =IF(Cash_Flow!$AC$40>B25,Cash_Flow!$AC$40,B25) -> 10 | D25: =D10/B25*B10 -> 0.06666666667 | E25: 0.2411654321 | G25: =Fin.costs!E$8*$F25 -> 0 | H25: =Fin.costs!F$8*$F25 -> 0 | I25: =Fin.costs!G$8*$F25 -> 0 | J25: =Fin.costs!H$8*$F25 -> 0 | K25: =Fin.costs!I$8*$F25 -> 0 | L25: =Fin.costs!J$8*$F25 -> 0 | M25: =Fin.costs!K$8*$F25 -> 0 | N25: =Fin.costs!L$8*$F25 -> 0 | O25: =Fin.costs!M$8*$F25 -> 0 | P25: =Fin.costs!N$8*$F25 -> 0 | Q25: =Fin.costs!O$8*$F25 -> 0 | R25: =Fin.costs!P$8*$F25 -> 0 | S25: =Fin.costs!Q$8*$F25 -> 0 | T25: =Fin.costs!R$8*$F25 -> 0 | U25: =Fin.costs!S$8*$F25 -> 0 | V25: =Fin.costs!T$8*$F25 -> 0 | W25: =Fin.costs!U$8*$F25 -> 0 | X25: =Fin.costs!V$8*$F25 -> 0 | Y25: =Fin.costs!W$8*$F25 -> 0 | Z25: =Fin.costs!X$8*$F25 -> 0 | AA25: =Fin.costs!Y$8*$F25 -> 0 | AB25: =Fin.costs!Z$8*$F25 -> 0 | AC25: =Fin.costs!AA$8*$F25 -> 0 | AD25: 0
A26: Група 15 - предмети прокату | B26: 5 | C26: =IF(Cash_Flow!$AC$40>B26,Cash_Flow!$AC$40,B26) -> 10 | D26: =D10/B26*B10 -> 0.08 | E26: 0.28360704 | G26: =Fin.costs!E$8*$F26 -> 0 | H26: =Fin.costs!F$8*$F26 -> 0 | I26: =Fin.costs!G$8*$F26 -> 0 | J26: =Fin.costs!H$8*$F26 -> 0 | K26: =Fin.costs!I$8*$F26 -> 0 | L26: =Fin.costs!J$8*$F26 -> 0 | M26: =Fin.costs!K$8*$F26 -> 0 | N26: =Fin.costs!L$8*$F26 -> 0 | O26: =Fin.costs!M$8*$F26 -> 0 | P26: =Fin.costs!N$8*$F26 -> 0 | Q26: =Fin.costs!O$8*$F26 -> 0 | R26: =Fin.costs!P$8*$F26 -> 0 | S26: =Fin.costs!Q$8*$F26 -> 0 | T26: =Fin.costs!R$8*$F26 -> 0 | U26: =Fin.costs!S$8*$F26 -> 0 | V26: =Fin.costs!T$8*$F26 -> 0 | W26: =Fin.costs!U$8*$F26 -> 0 | X26: =Fin.costs!V$8*$F26 -> 0 | Y26: =Fin.costs!W$8*$F26 -> 0 | Z26: =Fin.costs!X$8*$F26 -> 0 | AA26: =Fin.costs!Y$8*$F26 -> 0 | AB26: =Fin.costs!Z$8*$F26 -> 0 | AC26: =Fin.costs!AA$8*$F26 -> 0 | AD26: 0
A27: Група 16 - довгострокові біологічні активи | B27: 7 | C27: =IF(Cash_Flow!$AC$40>B27,Cash_Flow!$AC$40,B27) -> 10 | D27: =D10/B27*B10 -> 0.05714285714 | E27: 0.2097152853 | G27: =Fin.costs!E$8*$F27 -> 0 | H27: =Fin.costs!F$8*$F27 -> 0 | I27: =Fin.costs!G$8*$F27 -> 0 | J27: =Fin.costs!H$8*$F27 -> 0 | K27: =Fin.costs!I$8*$F27 -> 0 | L27: =Fin.costs!J$8*$F27 -> 0 | M27: =Fin.costs!K$8*$F27 -> 0 | N27: =Fin.costs!L$8*$F27 -> 0 | O27: =Fin.costs!M$8*$F27 -> 0 | P27: =Fin.costs!N$8*$F27 -> 0 | Q27: =Fin.costs!O$8*$F27 -> 0 | R27: =Fin.costs!P$8*$F27 -> 0 | S27: =Fin.costs!Q$8*$F27 -> 0 | T27: =Fin.costs!R$8*$F27 -> 0 | U27: =Fin.costs!S$8*$F27 -> 0 | V27: =Fin.costs!T$8*$F27 -> 0 | W27: =Fin.costs!U$8*$F27 -> 0 | X27: =Fin.costs!V$8*$F27 -> 0 | Y27: =Fin.costs!W$8*$F27 -> 0 | Z27: =Fin.costs!X$8*$F27 -> 0 | AA27: =Fin.costs!Y$8*$F27 -> 0 | AB27: =Fin.costs!Z$8*$F27 -> 0 | AC27: =Fin.costs!AA$8*$F27 -> 0 | AD27: 0
A28: Кап. ремонти* | G28: =G29+G42 -> 0 | H28: =H29+H42 -> 0 | I28: 0 | J28: 0 | K28: 2 | L28: 0 | M28: 0 | N28: 1 | O28: 0 | P28: 0 | Q28: 0 | R28: 0 | S28: 0 | T28: 0 | U28: 0 | V28: 0 | W28: 0 | X28: 0 | Y28: 0 | Z28: 0 | AA28: 0 | AB28: 0 | AC28: 0 | AD28: 3
A29: Основні засоби: | F29: =SUM(F30:F41,F43:F49) -> 1 | G29: =SUM(G30:G41) -> 0 | H29: =SUM(H30:H41) -> 0 | I29: 0 | J29: 0 | K29: 2 | L29: 0 | M29: 0 | N29: 1 | O29: 0 | P29: 0 | Q29: 0 | R29: 0 | S29: 0 | T29: 0 | U29: 0 | V29: 0 | W29: 0 | X29: 0 | Y29: 0 | Z29: 0 | AA29: 0 | AB29: 0 | AC29: 0 | AD29: 3
A30: Група 1 - земельні ділянки | B30: =B8 -> — | C30: — | F30: =F8 -> 0 | G30: =Fin.costs!E$25*$F30 -> 0 | H30: =Fin.costs!F$25*$F30 -> 0 | I30: =Fin.costs!G$25*$F30 -> 0 | J30: =Fin.costs!H$25*$F30 -> 0 | K30: =Fin.costs!I$25*$F30 -> 0 | L30: =Fin.costs!J$25*$F30 -> 0 | M30: =Fin.costs!K$25*$F30 -> 0 | N30: =Fin.costs!L$25*$F30 -> 0 | O30: =Fin.costs!M$25*$F30 -> 0 | P30: =Fin.costs!N$25*$F30 -> 0 | Q30: =Fin.costs!O$25*$F30 -> 0 | R30: =Fin.costs!P$25*$F30 -> 0 | S30: =Fin.costs!Q$25*$F30 -> 0 | T30: =Fin.costs!R$25*$F30 -> 0 | U30: =Fin.costs!S$25*$F30 -> 0 | V30: =Fin.costs!T$25*$F30 -> 0 | W30: =Fin.costs!U$25*$F30 -> 0 | X30: =Fin.costs!V$25*$F30 -> 0 | Y30: =Fin.costs!W$25*$F30 -> 0 | Z30: =Fin.costs!X$25*$F30 -> 0 | AA30: =Fin.costs!Y$25*$F30 -> 0 | AB30: =Fin.costs!Z$25*$F30 -> 0 | AC30: =Fin.costs!AA$25*$F30 -> 0 | AD30: 0
A31: Група 2 - капітальні витрати на поліпшення землі, не пов'язані з будівництвом | B31: 15 | C31: 15 | F31: =F9 -> 0 | G31: =Fin.costs!E$25*$F31 -> 0 | H31: =Fin.costs!F$25*$F31 -> 0 | I31: =Fin.costs!G$25*$F31 -> 0 | J31: =Fin.costs!H$25*$F31 -> 0 | K31: =Fin.costs!I$25*$F31 -> 0 | L31: =Fin.costs!J$25*$F31 -> 0 | M31: =Fin.costs!K$25*$F31 -> 0 | N31: =Fin.costs!L$25*$F31 -> 0 | O31: =Fin.costs!M$25*$F31 -> 0 | P31: =Fin.costs!N$25*$F31 -> 0 | Q31: =Fin.costs!O$25*$F31 -> 0 | R31: =Fin.costs!P$25*$F31 -> 0 | S31: =Fin.costs!Q$25*$F31 -> 0 | T31: =Fin.costs!R$25*$F31 -> 0 | U31: =Fin.costs!S$25*$F31 -> 0 | V31: =Fin.costs!T$25*$F31 -> 0 | W31: =Fin.costs!U$25*$F31 -> 0 | X31: =Fin.costs!V$25*$F31 -> 0 | Y31: =Fin.costs!W$25*$F31 -> 0 | Z31: =Fin.costs!X$25*$F31 -> 0 | AA31: =Fin.costs!Y$25*$F31 -> 0 | AB31: =Fin.costs!Z$25*$F31 -> 0 | AC31: =Fin.costs!AA$25*$F31 -> 0 | AD31: 0
A32: Група 3 - будівлі | B32: 20 | C32: 20 | F32: 0 | G32: =Fin.costs!E$25*$F32 -> 0 | H32: =Fin.costs!F$25*$F32 -> 0 | I32: =Fin.costs!G$25*$F32 -> 0 | J32: =Fin.costs!H$25*$F32 -> 0 | K32: =Fin.costs!I$25*$F32 -> 0 | L32: =Fin.costs!J$25*$F32 -> 0 | M32: =Fin.costs!K$25*$F32 -> 0 | N32: =Fin.costs!L$25*$F32 -> 0 | O32: =Fin.costs!M$25*$F32 -> 0 | P32: =Fin.costs!N$25*$F32 -> 0 | Q32: =Fin.costs!O$25*$F32 -> 0 | R32: =Fin.costs!P$25*$F32 -> 0 | S32: =Fin.costs!Q$25*$F32 -> 0 | T32: =Fin.costs!R$25*$F32 -> 0 | U32: =Fin.costs!S$25*$F32 -> 0 | V32: =Fin.costs!T$25*$F32 -> 0 | W32: =Fin.costs!U$25*$F32 -> 0 | X32: =Fin.costs!V$25*$F32 -> 0 | Y32: =Fin.costs!W$25*$F32 -> 0 | Z32: =Fin.costs!X$25*$F32 -> 0 | AA32: =Fin.costs!Y$25*$F32 -> 0 | AB32: =Fin.costs!Z$25*$F32 -> 0 | AC32: =Fin.costs!AA$25*$F32 -> 0 | AD32: 0
A33: споруди | B33: 15 | C33: 15 | F33: 0 | G33: =Fin.costs!E$25*$F33 -> 0 | H33: =Fin.costs!F$25*$F33 -> 0 | I33: =Fin.costs!G$25*$F33 -> 0 | J33: =Fin.costs!H$25*$F33 -> 0 | K33: =Fin.costs!I$25*$F33 -> 0 | L33: =Fin.costs!J$25*$F33 -> 0 | M33: =Fin.costs!K$25*$F33 -> 0 | N33: =Fin.costs!L$25*$F33 -> 0 | O33: =Fin.costs!M$25*$F33 -> 0 | P33: =Fin.costs!N$25*$F33 -> 0 | Q33: =Fin.costs!O$25*$F33 -> 0 | R33: =Fin.costs!P$25*$F33 -> 0 | S33: =Fin.costs!Q$25*$F33 -> 0 | T33: =Fin.costs!R$25*$F33 -> 0 | U33: =Fin.costs!S$25*$F33 -> 0 | V33: =Fin.costs!T$25*$F33 -> 0 | W33: =Fin.costs!U$25*$F33 -> 0 | X33: =Fin.costs!V$25*$F33 -> 0 | Y33: =Fin.costs!W$25*$F33 -> 0 | Z33: =Fin.costs!X$25*$F33 -> 0 | AA33: =Fin.costs!Y$25*$F33 -> 0 | AB33: =Fin.costs!Z$25*$F33 -> 0 | AC33: =Fin.costs!AA$25*$F33 -> 0 | AD33: 0
A34: передавальні пристрої | B34: 10 | C34: 10 | F34: 0 | G34: =Fin.costs!E$25*$F34 -> 0 | H34: =Fin.costs!F$25*$F34 -> 0 | I34: =Fin.costs!G$25*$F34 -> 0 | J34: =Fin.costs!H$25*$F34 -> 0 | K34: =Fin.costs!I$25*$F34 -> 0 | L34: =Fin.costs!J$25*$F34 -> 0 | M34: =Fin.costs!K$25*$F34 -> 0 | N34: =Fin.costs!L$25*$F34 -> 0 | O34: =Fin.costs!M$25*$F34 -> 0 | P34: =Fin.costs!N$25*$F34 -> 0 | Q34: =Fin.costs!O$25*$F34 -> 0 | R34: =Fin.costs!P$25*$F34 -> 0 | S34: =Fin.costs!Q$25*$F34 -> 0 | T34: =Fin.costs!R$25*$F34 -> 0 | U34: =Fin.costs!S$25*$F34 -> 0 | V34: =Fin.costs!T$25*$F34 -> 0 | W34: =Fin.costs!U$25*$F34 -> 0 | X34: =Fin.costs!V$25*$F34 -> 0 | Y34: =Fin.costs!W$25*$F34 -> 0 | Z34: =Fin.costs!X$25*$F34 -> 0 | AA34: =Fin.costs!Y$25*$F34 -> 0 | AB34: =Fin.costs!Z$25*$F34 -> 0 | AC34: =Fin.costs!AA$25*$F34 -> 0 | AD34: 0
A35: Група 4 - машини та обладнання | B35: 5 | C35: 10 | F35: 0.6 | G35: =Fin.costs!E$25*$F35 -> 0 | H35: =Fin.costs!F$25*$F35 -> 0 | I35: =Fin.costs!G$25*$F35 -> 0 | J35: =Fin.costs!H$25*$F35 -> 0 | K35: =Fin.costs!I$25*$F35 -> 1.2 | L35: =Fin.costs!J$25*$F35 -> 0 | M35: =Fin.costs!K$25*$F35 -> 0 | N35: =Fin.costs!L$25*$F35 -> 0.6 | O35: =Fin.costs!M$25*$F35 -> 0 | P35: =Fin.costs!N$25*$F35 -> 0 | Q35: =Fin.costs!O$25*$F35 -> 0 | R35: =Fin.costs!P$25*$F35 -> 0 | S35: =Fin.costs!Q$25*$F35 -> 0 | T35: =Fin.costs!R$25*$F35 -> 0 | U35: =Fin.costs!S$25*$F35 -> 0 | V35: =Fin.costs!T$25*$F35 -> 0 | W35: =Fin.costs!U$25*$F35 -> 0 | X35: =Fin.costs!V$25*$F35 -> 0 | Y35: =Fin.costs!W$25*$F35 -> 0 | Z35: =Fin.costs!X$25*$F35 -> 0 | AA35: =Fin.costs!Y$25*$F35 -> 0 | AB35: =Fin.costs!Z$25*$F35 -> 0 | AC35: =Fin.costs!AA$25*$F35 -> 0 | AD35: 1.8
A36: з них: Електронно-обчислювальні машини, інші машини для автоматичного оброблення інформації, пов'язані з ними засоби зчитування або друку інформації, пов'язані з ними комп'ютерні програми (крім програм, витрати на придбання яких визнаються роялті, та / або програм, які визнаються нематеріальним активів) , інші інформаційні системи, комутатори, маршрутизатори, модулі, модеми, джерела безперебійного живлення та засоби їх підключення до телекомунікаційних мереж, телефони (в тому числі мобільні), мікрофони і раці , Вартість яких перевищує 2500 гривень. | B36: 2 | C36: 10 | F36: 0 | G36: =Fin.costs!E$25*$F36 -> 0 | H36: =Fin.costs!F$25*$F36 -> 0 | I36: =Fin.costs!G$25*$F36 -> 0 | J36: =Fin.costs!H$25*$F36 -> 0 | K36: =Fin.costs!I$25*$F36 -> 0 | L36: =Fin.costs!J$25*$F36 -> 0 | M36: =Fin.costs!K$25*$F36 -> 0 | N36: =Fin.costs!L$25*$F36 -> 0 | O36: =Fin.costs!M$25*$F36 -> 0 | P36: =Fin.costs!N$25*$F36 -> 0 | Q36: =Fin.costs!O$25*$F36 -> 0 | R36: =Fin.costs!P$25*$F36 -> 0 | S36: =Fin.costs!Q$25*$F36 -> 0 | T36: =Fin.costs!R$25*$F36 -> 0 | U36: =Fin.costs!S$25*$F36 -> 0 | V36: =Fin.costs!T$25*$F36 -> 0 | W36: =Fin.costs!U$25*$F36 -> 0 | X36: =Fin.costs!V$25*$F36 -> 0 | Y36: =Fin.costs!W$25*$F36 -> 0 | Z36: =Fin.costs!X$25*$F36 -> 0 | AA36: =Fin.costs!Y$25*$F36 -> 0 | AB36: =Fin.costs!Z$25*$F36 -> 0 | AC36: =Fin.costs!AA$25*$F36 -> 0 | AD36: 0
A37: Група 5 - транспортні засоби | B37: 5 | C37: 10 | F37: 0 | G37: =Fin.costs!E$25*$F37 -> 0 | H37: =Fin.costs!F$25*$F37 -> 0 | I37: =Fin.costs!G$25*$F37 -> 0 | J37: =Fin.costs!H$25*$F37 -> 0 | K37: =Fin.costs!I$25*$F37 -> 0 | L37: =Fin.costs!J$25*$F37 -> 0 | M37: =Fin.costs!K$25*$F37 -> 0 | N37: =Fin.costs!L$25*$F37 -> 0 | O37: =Fin.costs!M$25*$F37 -> 0 | P37: =Fin.costs!N$25*$F37 -> 0 | Q37: =Fin.costs!O$25*$F37 -> 0 | R37: =Fin.costs!P$25*$F37 -> 0 | S37: =Fin.costs!Q$25*$F37 -> 0 | T37: =Fin.costs!R$25*$F37 -> 0 | U37: =Fin.costs!S$25*$F37 -> 0 | V37: =Fin.costs!T$25*$F37 -> 0 | W37: =Fin.costs!U$25*$F37 -> 0 | X37: =Fin.costs!V$25*$F37 -> 0 | Y37: =Fin.costs!W$25*$F37 -> 0 | Z37: =Fin.costs!X$25*$F37 -> 0 | AA37: =Fin.costs!Y$25*$F37 -> 0 | AB37: =Fin.costs!Z$25*$F37 -> 0 | AC37: =Fin.costs!AA$25*$F37 -> 0 | AD37: 0
A38: Група 6 - інструменти, прилади, інвентар (меблі) | B38: 4 | C38: 10 | F38: 0.3 | G38: =Fin.costs!E$25*$F38 -> 0 | H38: =Fin.costs!F$25*$F38 -> 0 | I38: =Fin.costs!G$25*$F38 -> 0 | J38: =Fin.costs!H$25*$F38 -> 0 | K38: =Fin.costs!I$25*$F38 -> 0.6 | L38: =Fin.costs!J$25*$F38 -> 0 | M38: =Fin.costs!K$25*$F38 -> 0 | N38: =Fin.costs!L$25*$F38 -> 0.3 | O38: =Fin.costs!M$25*$F38 -> 0 | P38: =Fin.costs!N$25*$F38 -> 0 | Q38: =Fin.costs!O$25*$F38 -> 0 | R38: =Fin.costs!P$25*$F38 -> 0 | S38: =Fin.costs!Q$25*$F38 -> 0 | T38: =Fin.costs!R$25*$F38 -> 0 | U38: =Fin.costs!S$25*$F38 -> 0 | V38: =Fin.costs!T$25*$F38 -> 0 | W38: =Fin.costs!U$25*$F38 -> 0 | X38: =Fin.costs!V$25*$F38 -> 0 | Y38: =Fin.costs!W$25*$F38 -> 0 | Z38: =Fin.costs!X$25*$F38 -> 0 | AA38: =Fin.costs!Y$25*$F38 -> 0 | AB38: =Fin.costs!Z$25*$F38 -> 0 | AC38: =Fin.costs!AA$25*$F38 -> 0 | AD38: 0.9
A39: Група 7 - тварини | B39: 6 | C39: 10 | F39: 0 | G39: =Fin.costs!E$25*$F39 -> 0 | H39: =Fin.costs!F$25*$F39 -> 0 | I39: =Fin.costs!G$25*$F39 -> 0 | J39: =Fin.costs!H$25*$F39 -> 0 | K39: =Fin.costs!I$25*$F39 -> 0 | L39: =Fin.costs!J$25*$F39 -> 0 | M39: =Fin.costs!K$25*$F39 -> 0 | N39: =Fin.costs!L$25*$F39 -> 0 | O39: =Fin.costs!M$25*$F39 -> 0 | P39: =Fin.costs!N$25*$F39 -> 0 | Q39: =Fin.costs!O$25*$F39 -> 0 | R39: =Fin.costs!P$25*$F39 -> 0 | S39: =Fin.costs!Q$25*$F39 -> 0 | T39: =Fin.costs!R$25*$F39 -> 0 | U39: =Fin.costs!S$25*$F39 -> 0 | V39: =Fin.costs!T$25*$F39 -> 0 | W39: =Fin.costs!U$25*$F39 -> 0 | X39: =Fin.costs!V$25*$F39 -> 0 | Y39: =Fin.costs!W$25*$F39 -> 0 | Z39: =Fin.costs!X$25*$F39 -> 0 | AA39: =Fin.costs!Y$25*$F39 -> 0 | AB39: =Fin.costs!Z$25*$F39 -> 0 | AC39: =Fin.costs!AA$25*$F39 -> 0 | AD39: 0
A40: Група 8 - багаторічні насадження | B40: 10 | C40: 10 | F40: 0 | G40: =Fin.costs!E$25*$F40 -> 0 | H40: =Fin.costs!F$25*$F40 -> 0 | I40: =Fin.costs!G$25*$F40 -> 0 | J40: =Fin.costs!H$25*$F40 -> 0 | K40: =Fin.costs!I$25*$F40 -> 0 | L40: =Fin.costs!J$25*$F40 -> 0 | M40: =Fin.costs!K$25*$F40 -> 0 | N40: =Fin.costs!L$25*$F40 -> 0 | O40: =Fin.costs!M$25*$F40 -> 0 | P40: =Fin.costs!N$25*$F40 -> 0 | Q40: =Fin.costs!O$25*$F40 -> 0 | R40: =Fin.costs!P$25*$F40 -> 0 | S40: =Fin.costs!Q$25*$F40 -> 0 | T40: =Fin.costs!R$25*$F40 -> 0 | U40: =Fin.costs!S$25*$F40 -> 0 | V40: =Fin.costs!T$25*$F40 -> 0 | W40: =Fin.costs!U$25*$F40 -> 0 | X40: =Fin.costs!V$25*$F40 -> 0 | Y40: =Fin.costs!W$25*$F40 -> 0 | Z40: =Fin.costs!X$25*$F40 -> 0 | AA40: =Fin.costs!Y$25*$F40 -> 0 | AB40: =Fin.costs!Z$25*$F40 -> 0 | AC40: =Fin.costs!AA$25*$F40 -> 0 | AD40: 0
A41: Група 9 - інші основні засоби | B41: 12 | C41: 12 | F41: 0.1 | G41: =Fin.costs!E$25*$F41 -> 0 | H41: =Fin.costs!F$25*$F41 -> 0 | I41: =Fin.costs!G$25*$F41 -> 0 | J41: =Fin.costs!H$25*$F41 -> 0 | K41: =Fin.costs!I$25*$F41 -> 0.2 | L41: =Fin.costs!J$25*$F41 -> 0 | M41: =Fin.costs!K$25*$F41 -> 0 | N41: =Fin.costs!L$25*$F41 -> 0.1 | O41: =Fin.costs!M$25*$F41 -> 0 | P41: =Fin.costs!N$25*$F41 -> 0 | Q41: =Fin.costs!O$25*$F41 -> 0 | R41: =Fin.costs!P$25*$F41 -> 0 | S41: =Fin.costs!Q$25*$F41 -> 0 | T41: =Fin.costs!R$25*$F41 -> 0 | U41: =Fin.costs!S$25*$F41 -> 0 | V41: =Fin.costs!T$25*$F41 -> 0 | W41: =Fin.costs!U$25*$F41 -> 0 | X41: =Fin.costs!V$25*$F41 -> 0 | Y41: =Fin.costs!W$25*$F41 -> 0 | Z41: =Fin.costs!X$25*$F41 -> 0 | AA41: =Fin.costs!Y$25*$F41 -> 0 | AB41: =Fin.costs!Z$25*$F41 -> 0 | AC41: =Fin.costs!AA$25*$F41 -> 0 | AD41: 0.3
A42: Інші необоротні матеріальні активи: | G42: =SUM(G43:G49) -> 0 | H42: =SUM(H43:H49) -> 0 | I42: 0 | J42: 0 | K42: 0 | L42: 0 | M42: 0 | N42: 0 | O42: 0 | P42: 0 | Q42: 0 | R42: 0 | S42: 0 | T42: 0 | U42: 0 | V42: 0 | W42: 0 | X42: 0 | Y42: 0 | Z42: 0 | AA42: 0 | AB42: 0 | AC42: 0 | AD42: 0
A43: Група 10 - бібліотечні фонди | B43: =B21 -> — | C43: — | F43: =F21 -> 0 | G43: =Fin.costs!E$25*$F43 -> 0 | H43: =Fin.costs!F$25*$F43 -> 0 | I43: =Fin.costs!G$25*$F43 -> 0 | J43: =Fin.costs!H$25*$F43 -> 0 | K43: =Fin.costs!I$25*$F43 -> 0 | L43: =Fin.costs!J$25*$F43 -> 0 | M43: =Fin.costs!K$25*$F43 -> 0 | N43: =Fin.costs!L$25*$F43 -> 0 | O43: =Fin.costs!M$25*$F43 -> 0 | P43: =Fin.costs!N$25*$F43 -> 0 | Q43: =Fin.costs!O$25*$F43 -> 0 | R43: =Fin.costs!P$25*$F43 -> 0 | S43: =Fin.costs!Q$25*$F43 -> 0 | T43: =Fin.costs!R$25*$F43 -> 0 | U43: =Fin.costs!S$25*$F43 -> 0 | V43: =Fin.costs!T$25*$F43 -> 0 | W43: =Fin.costs!U$25*$F43 -> 0 | X43: =Fin.costs!V$25*$F43 -> 0 | Y43: =Fin.costs!W$25*$F43 -> 0 | Z43: =Fin.costs!X$25*$F43 -> 0 | AA43: =Fin.costs!Y$25*$F43 -> 0 | AB43: =Fin.costs!Z$25*$F43 -> 0 | AC43: =Fin.costs!AA$25*$F43 -> 0 | AD43: 0
A44: Група 11 - малоцінні необоротні активи | B44: — | C44: — | F44: 0 | G44: =Fin.costs!E$25*$F44 -> 0 | H44: =Fin.costs!F$25*$F44 -> 0 | I44: =Fin.costs!G$25*$F44 -> 0 | J44: =Fin.costs!H$25*$F44 -> 0 | K44: =Fin.costs!I$25*$F44 -> 0 | L44: =Fin.costs!J$25*$F44 -> 0 | M44: =Fin.costs!K$25*$F44 -> 0 | N44: =Fin.costs!L$25*$F44 -> 0 | O44: =Fin.costs!M$25*$F44 -> 0 | P44: =Fin.costs!N$25*$F44 -> 0 | Q44: =Fin.costs!O$25*$F44 -> 0 | R44: =Fin.costs!P$25*$F44 -> 0 | S44: =Fin.costs!Q$25*$F44 -> 0 | T44: =Fin.costs!R$25*$F44 -> 0 | U44: =Fin.costs!S$25*$F44 -> 0 | V44: =Fin.costs!T$25*$F44 -> 0 | W44: =Fin.costs!U$25*$F44 -> 0 | X44: =Fin.costs!V$25*$F44 -> 0 | Y44: =Fin.costs!W$25*$F44 -> 0 | Z44: =Fin.costs!X$25*$F44 -> 0 | AA44: =Fin.costs!Y$25*$F44 -> 0 | AB44: =Fin.costs!Z$25*$F44 -> 0 | AC44: =Fin.costs!AA$25*$F44 -> 0 | AD44: 0
A45: Група 12 - тимчасові (нетитульні) споруди | B45: 5 | C45: 10 | F45: 0 | G45: =Fin.costs!E$25*$F45 -> 0 | H45: =Fin.costs!F$25*$F45 -> 0 | I45: =Fin.costs!G$25*$F45 -> 0 | J45: =Fin.costs!H$25*$F45 -> 0 | K45: =Fin.costs!I$25*$F45 -> 0 | L45: =Fin.costs!J$25*$F45 -> 0 | M45: =Fin.costs!K$25*$F45 -> 0 | N45: =Fin.costs!L$25*$F45 -> 0 | O45: =Fin.costs!M$25*$F45 -> 0 | P45: =Fin.costs!N$25*$F45 -> 0 | Q45: =Fin.costs!O$25*$F45 -> 0 | R45: =Fin.costs!P$25*$F45 -> 0 | S45: =Fin.costs!Q$25*$F45 -> 0 | T45: =Fin.costs!R$25*$F45 -> 0 | U45: =Fin.costs!S$25*$F45 -> 0 | V45: =Fin.costs!T$25*$F45 -> 0 | W45: =Fin.costs!U$25*$F45 -> 0 | X45: =Fin.costs!V$25*$F45 -> 0 | Y45: =Fin.costs!W$25*$F45 -> 0 | Z45: =Fin.costs!X$25*$F45 -> 0 | AA45: =Fin.costs!Y$25*$F45 -> 0 | AB45: =Fin.costs!Z$25*$F45 -> 0 | AC45: =Fin.costs!AA$25*$F45 -> 0 | AD45: 0
A46: Група 13 - природні ресурси | B46: — | C46: — | F46: 0 | G46: =Fin.costs!E$25*$F46 -> 0 | H46: =Fin.costs!F$25*$F46 -> 0 | I46: =Fin.costs!G$25*$F46 -> 0 | J46: =Fin.costs!H$25*$F46 -> 0 | K46: =Fin.costs!I$25*$F46 -> 0 | L46: =Fin.costs!J$25*$F46 -> 0 | M46: =Fin.costs!K$25*$F46 -> 0 | N46: =Fin.costs!L$25*$F46 -> 0 | O46: =Fin.costs!M$25*$F46 -> 0 | P46: =Fin.costs!N$25*$F46 -> 0 | Q46: =Fin.costs!O$25*$F46 -> 0 | R46: =Fin.costs!P$25*$F46 -> 0 | S46: =Fin.costs!Q$25*$F46 -> 0 | T46: =Fin.costs!R$25*$F46 -> 0 | U46: =Fin.costs!S$25*$F46 -> 0 | V46: =Fin.costs!T$25*$F46 -> 0 | W46: =Fin.costs!U$25*$F46 -> 0 | X46: =Fin.costs!V$25*$F46 -> 0 | Y46: =Fin.costs!W$25*$F46 -> 0 | Z46: =Fin.costs!X$25*$F46 -> 0 | AA46: =Fin.costs!Y$25*$F46 -> 0 | AB46: =Fin.costs!Z$25*$F46 -> 0 | AC46: =Fin.costs!AA$25*$F46 -> 0 | AD46: 0
A47: Група 14 - інвентарна тара | B47: 6 | C47: 10 | F47: 0 | G47: =Fin.costs!E$25*$F47 -> 0 | H47: =Fin.costs!F$25*$F47 -> 0 | I47: =Fin.costs!G$25*$F47 -> 0 | J47: =Fin.costs!H$25*$F47 -> 0 | K47: =Fin.costs!I$25*$F47 -> 0 | L47: =Fin.costs!J$25*$F47 -> 0 | M47: =Fin.costs!K$25*$F47 -> 0 | N47: =Fin.costs!L$25*$F47 -> 0 | O47: =Fin.costs!M$25*$F47 -> 0 | P47: =Fin.costs!N$25*$F47 -> 0 | Q47: =Fin.costs!O$25*$F47 -> 0 | R47: =Fin.costs!P$25*$F47 -> 0 | S47: =Fin.costs!Q$25*$F47 -> 0 | T47: =Fin.costs!R$25*$F47 -> 0 | U47: =Fin.costs!S$25*$F47 -> 0 | V47: =Fin.costs!T$25*$F47 -> 0 | W47: =Fin.costs!U$25*$F47 -> 0 | X47: =Fin.costs!V$25*$F47 -> 0 | Y47: =Fin.costs!W$25*$F47 -> 0 | Z47: =Fin.costs!X$25*$F47 -> 0 | AA47: =Fin.costs!Y$25*$F47 -> 0 | AB47: =Fin.costs!Z$25*$F47 -> 0 | AC47: =Fin.costs!AA$25*$F47 -> 0 | AD47: 0
A48: Група 15 - предмети прокату | B48: 5 | C48: 10 | F48: 0 | G48: =Fin.costs!E$25*$F48 -> 0 | H48: =Fin.costs!F$25*$F48 -> 0 | I48: =Fin.costs!G$25*$F48 -> 0 | J48: =Fin.costs!H$25*$F48 -> 0 | K48: =Fin.costs!I$25*$F48 -> 0 | L48: =Fin.costs!J$25*$F48 -> 0 | M48: =Fin.costs!K$25*$F48 -> 0 | N48: =Fin.costs!L$25*$F48 -> 0 | O48: =Fin.costs!M$25*$F48 -> 0 | P48: =Fin.costs!N$25*$F48 -> 0 | Q48: =Fin.costs!O$25*$F48 -> 0 | R48: =Fin.costs!P$25*$F48 -> 0 | S48: =Fin.costs!Q$25*$F48 -> 0 | T48: =Fin.costs!R$25*$F48 -> 0 | U48: =Fin.costs!S$25*$F48 -> 0 | V48: =Fin.costs!T$25*$F48 -> 0 | W48: =Fin.costs!U$25*$F48 -> 0 | X48: =Fin.costs!V$25*$F48 -> 0 | Y48: =Fin.costs!W$25*$F48 -> 0 | Z48: =Fin.costs!X$25*$F48 -> 0 | AA48: =Fin.costs!Y$25*$F48 -> 0 | AB48: =Fin.costs!Z$25*$F48 -> 0 | AC48: =Fin.costs!AA$25*$F48 -> 0 | AD48: 0
A49: Група 16 - довгострокові біологічні активи | B49: 7 | C49: 10 | F49: 0 | G49: =Fin.costs!E$25*$F49 -> 0 | H49: =Fin.costs!F$25*$F49 -> 0 | I49: =Fin.costs!G$25*$F49 -> 0 | J49: =Fin.costs!H$25*$F49 -> 0 | K49: =Fin.costs!I$25*$F49 -> 0 | L49: =Fin.costs!J$25*$F49 -> 0 | M49: =Fin.costs!K$25*$F49 -> 0 | N49: =Fin.costs!L$25*$F49 -> 0 | O49: =Fin.costs!M$25*$F49 -> 0 | P49: =Fin.costs!N$25*$F49 -> 0 | Q49: =Fin.costs!O$25*$F49 -> 0 | R49: =Fin.costs!P$25*$F49 -> 0 | S49: =Fin.costs!Q$25*$F49 -> 0 | T49: =Fin.costs!R$25*$F49 -> 0 | U49: =Fin.costs!S$25*$F49 -> 0 | V49: =Fin.costs!T$25*$F49 -> 0 | W49: =Fin.costs!U$25*$F49 -> 0 | X49: =Fin.costs!V$25*$F49 -> 0 | Y49: =Fin.costs!W$25*$F49 -> 0 | Z49: =Fin.costs!X$25*$F49 -> 0 | AA49: =Fin.costs!Y$25*$F49 -> 0 | AB49: =Fin.costs!Z$25*$F49 -> 0 | AC49: =Fin.costs!AA$25*$F49 -> 0 | AD49: 0
A50: Балансова (залишкова) вартість | G50: =G51+G64 -> 225.4166667 | H50: =H51+H64 -> 561.5 | I50: 497.5833333 | J50: 433.6666667 | K50: 371.5533333 | L50: 307.44 | M50: 243.3266667 | N50: 180.115 | O50: 115.9033333 | P50: 51.69166667 | Q50: -12.52 | R50: 0 | S50: 0 | T50: 0 | U50: 0 | V50: 0 | W50: 0 | X50: 0 | Y50: 0 | Z50: 0 | AA50: 0 | AB50: 0 | AC50: 0 | AD50: 2975.676667 | AE50: =ROW()-ROW(AE5)+1 -> 46
A51: Основні засоби: | G51: =SUM(G52:G63) -> 225.4166667 | H51: =SUM(H52:H63) -> 561.5 | I51: 497.5833333 | J51: 433.6666667 | K51: 371.5533333 | L51: 307.44 | M51: 243.3266667 | N51: 180.115 | O51: 115.9033333 | P51: 51.69166667 | Q51: -12.52 | R51: 0 | S51: 0 | T51: 0 | U51: 0 | V51: 0 | W51: 0 | X51: 0 | Y51: 0 | Z51: 0 | AA51: 0 | AB51: 0 | AC51: 0 | AD51: =SUM(G51:AC51) -> 2975.676667
A52: Група 1 - земельні ділянки | B52: =B8 -> — | C52: — | G52: =(F52+G8+G30-G74-G96-G119)*IF(G$5>0,1,0) -> 0 | H52: =(G52+H8+H30-H74-H96-H119)*IF(H$5>0,1,0) -> 0 | I52: =(H52+I8+I30-I74-I96-I119)*IF(I$5>0,1,0) -> 0 | J52: 0 | K52: 0 | L52: 0 | M52: 0 | N52: 0 | O52: 0 | P52: 0 | Q52: 0 | R52: 0 | S52: 0 | T52: 0 | U52: 0 | V52: 0 | W52: 0 | X52: 0 | Y52: 0 | Z52: 0 | AA52: 0 | AB52: 0 | AC52: 0 | AD52: 0
A53: Група 2 - капітальні витрати на поліпшення землі, не пов'язані з будівництвом | B53: 15 | C53: 15 | G53: =(F53+G9+G31-G75-G97-G120)*IF(G$5>0,1,0) -> 0 | H53: 0 | I53: 0 | J53: 0 | K53: 0 | L53: 0 | M53: 0 | N53: 0 | O53: 0 | P53: 0 | Q53: 0 | R53: 0 | S53: 0 | T53: 0 | U53: 0 | V53: 0 | W53: 0 | X53: 0 | Y53: 0 | Z53: 0 | AA53: 0 | AB53: 0 | AC53: 0 | AD53: 0
A54: Група 3 - будівлі | B54: 20 | C54: 20 | G54: 0 | H54: 0 | I54: 0 | J54: 0 | K54: 0 | L54: 0 | M54: 0 | N54: 0 | O54: 0 | P54: 0 | Q54: 0 | R54: =(Q54+R10+R32-R76-R98-R121)*IF(R$5>0,1,0) -> 0 | S54: 0 | T54: 0 | U54: 0 | V54: 0 | W54: 0 | X54: 0 | Y54: 0 | Z54: 0 | AA54: 0 | AB54: 0 | AC54: 0 | AD54: 0
A55: споруди | B55: 15 | C55: 15 | G55: 0 | H55: 0 | I55: 0 | J55: 0 | K55: 0 | L55: 0 | M55: 0 | N55: 0 | O55: 0 | P55: 0 | Q55: 0 | R55: 0 | S55: 0 | T55: 0 | U55: 0 | V55: 0 | W55: 0 | X55: 0 | Y55: 0 | Z55: 0 | AA55: 0 | AB55: 0 | AC55: 0 | AD55: 0
A56: передавальні пристрої | B56: 10 | C56: 10 | G56: 0 | H56: 0 | I56: 0 | J56: 0 | K56: 0 | L56: 0 | M56: 0 | N56: 0 | O56: 0 | P56: 0 | Q56: 0 | R56: 0 | S56: 0 | T56: 0 | U56: 0 | V56: 0 | W56: 0 | X56: 0 | Y56: 0 | Z56: 0 | AA56: 0 | AB56: 0 | AC56: 0 | AD56: 0
A57: Група 4 - машини та обладнання | B57: 5 | C57: 10 | G57: 135 | H57: 336 | I57: 297 | J57: 258 | K57: 220.08 | L57: 180.96 | M57: 141.84 | N57: 103.26 | O57: 64.08 | P57: 24.9 | Q57: -14.28 | R57: 0 | S57: 0 | T57: 0 | U57: 0 | V57: 0 | W57: 0 | X57: 0 | Y57: 0 | Z57: 0 | AA57: 0 | AB57: 0 | AC57: 0 | AD57: 1746.84
A58: з них: Електронно-обчислювальні машини, інші машини для автоматичного оброблення інформації, пов'язані з ними засоби зчитування або друку інформації, пов'язані з ними комп'ютерні програми (крім програм, витрати на придбання яких визнаються роялті, та / або програм, які визнаються нематеріальним активів) , інші інформаційні системи, комутатори, маршрутизатори, модулі, модеми, джерела безперебійного живлення та засоби їх підключення до телекомунікаційних мереж, телефони (в тому числі мобільні), мікрофони і раці , Вартість яких перевищує 2500 гривень. | B58: 2 | C58: 10 | G58: 0 | H58: 0 | I58: 0 | J58: 0 | K58: 0 | L58: 0 | M58: 0 | N58: 0 | O58: 0 | P58: 0 | Q58: 0 | R58: 0 | S58: 0 | T58: 0 | U58: 0 | V58: 0 | W58: 0 | X58: 0 | Y58: 0 | Z58: 0 | AA58: 0 | AB58: 0 | AC58: 0 | AD58: 0
A59: Група 5 - транспортні засоби | B59: 5 | C59: 10 | G59: 0 | H59: 0 | I59: 0 | J59: 0 | K59: 0 | L59: 0 | M59: 0 | N59: 0 | O59: 0 | P59: 0 | Q59: 0 | R59: 0 | S59: 0 | T59: 0 | U59: 0 | V59: 0 | W59: 0 | X59: 0 | Y59: 0 | Z59: 0 | AA59: 0 | AB59: 0 | AC59: 0 | AD59: 0
A60: Група 6 - інструменти, прилади, інвентар (меблі) | B60: 4 | C60: 10 | G60: 67.5 | H60: 168 | I60: 148.5 | J60: 129 | K60: 110.04 | L60: 90.48 | M60: 70.92 | N60: 51.63 | O60: 32.04 | P60: 12.45 | Q60: -7.14 | R60: 0 | S60: 0 | T60: 0 | U60: 0 | V60: 0 | W60: 0 | X60: 0 | Y60: 0 | Z60: 0 | AA60: 0 | AB60: 0 | AC60: 0 | AD60: 873.42
A61: Група 7 - тварини | B61: 6 | C61: 10 | G61: 0 | H61: 0 | I61: 0 | J61: 0 | K61: 0 | L61: 0 | M61: 0 | N61: 0 | O61: 0 | P61: 0 | Q61: 0 | R61: 0 | S61: 0 | T61: 0 | U61: 0 | V61: 0 | W61: 0 | X61: 0 | Y61: 0 | Z61: 0 | AA61: 0 | AB61: 0 | AC61: 0 | AD61: 0
A62: Група 8 - багаторічні насадження | B62: 10 | C62: 10 | G62: 0 | H62: 0 | I62: 0 | J62: 0 | K62: 0 | L62: 0 | M62: 0 | N62: 0 | O62: 0 | P62: 0 | Q62: 0 | R62: 0 | S62: 0 | T62: 0 | U62: 0 | V62: 0 | W62: 0 | X62: 0 | Y62: 0 | Z62: 0 | AA62: 0 | AB62: 0 | AC62: 0 | AD62: 0
A63: Група 9 - інші основні засоби | B63: 12 | C63: 12 | G63: 22.91666667 | H63: 57.5 | I63: 52.08333333 | J63: 46.66666667 | K63: 41.43333333 | L63: 36 | M63: 30.56666667 | N63: 25.225 | O63: 19.78333333 | P63: 14.34166667 | Q63: 8.9 | R63: 0 | S63: 0 | T63: 0 | U63: 0 | V63: 0 | W63: 0 | X63: 0 | Y63: 0 | Z63: 0 | AA63: 0 | AB63: 0 | AC63: 0 | AD63: 355.4166667
A64: Інші необоротні матеріальні активи: | G64: =SUM(G65:G71) -> 0 | H64: =SUM(H65:H71) -> 0 | I64: 0 | J64: 0 | K64: 0 | L64: 0 | M64: 0 | N64: 0 | O64: 0 | P64: 0 | Q64: 0 | R64: 0 | S64: 0 | T64: 0 | U64: 0 | V64: 0 | W64: 0 | X64: 0 | Y64: 0 | Z64: 0 | AA64: 0 | AB64: 0 | AC64: 0 | AD64: 0
A65: Група 10 - бібліотечні фонди | B65: =B21 -> — | C65: — | G65: =(F65+G21+G43-G87-G109-G132)*IF(G$5>0,1,0) -> 0 | H65: 0 | I65: 0 | J65: 0 | K65: 0 | L65: 0 | M65: 0 | N65: 0 | O65: 0 | P65: 0 | Q65: 0 | R65: 0 | S65: 0 | T65: 0 | U65: 0 | V65: 0 | W65: 0 | X65: 0 | Y65: 0 | Z65: 0 | AA65: 0 | AB65: 0 | AC65: 0 | AD65: 0
A66: Група 11 - малоцінні необоротні активи | B66: — | C66: — | G66: 0 | H66: 0 | I66: 0 | J66: 0 | K66: 0 | L66: 0 | M66: 0 | N66: 0 | O66: 0 | P66: 0 | Q66: 0 | R66: 0 | S66: 0 | T66: 0 | U66: 0 | V66: 0 | W66: 0 | X66: 0 | Y66: 0 | Z66: 0 | AA66: 0 | AB66: 0 | AC66: 0 | AD66: 0
A67: Група 12 - тимчасові (нетитульні) споруди | B67: 5 | C67: 10 | G67: 0 | H67: 0 | I67: 0 | J67: 0 | K67: 0 | L67: 0 | M67: 0 | N67: 0 | O67: 0 | P67: 0 | Q67: 0 | R67: 0 | S67: 0 | T67: 0 | U67: 0 | V67: 0 | W67: 0 | X67: 0 | Y67: 0 | Z67: 0 | AA67: 0 | AB67: 0 | AC67: 0 | AD67: 0
A68: Група 13 - природні ресурси | B68: — | C68: — | G68: 0 | H68: 0 | I68: 0 | J68: 0 | K68: 0 | L68: 0 | M68: 0 | N68: 0 | O68: 0 | P68: 0 | Q68: 0 | R68: 0 | S68: 0 | T68: 0 | U68: 0 | V68: 0 | W68: 0 | X68: 0 | Y68: 0 | Z68: 0 | AA68: 0 | AB68: 0 | AC68: 0 | AD68: 0
A69: Група 14 - інвентарна тара | B69: 6 | C69: 10 | G69: 0 | H69: 0 | I69: 0 | J69: 0 | K69: 0 | L69: 0 | M69: 0 | N69: 0 | O69: 0 | P69: 0 | Q69: 0 | R69: 0 | S69: 0 | T69: 0 | U69: 0 | V69: 0 | W69: 0 | X69: 0 | Y69: 0 | Z69: 0 | AA69: 0 | AB69: 0 | AC69: 0 | AD69: 0
A70: Група 15 - предмети прокату | B70: 5 | C70: 10 | G70: 0 | H70: 0 | I70: 0 | J70: 0 | K70: 0 | L70: 0 | M70: 0 | N70: 0 | O70: 0 | P70: 0 | Q70: 0 | R70: 0 | S70: 0 | T70: 0 | U70: 0 | V70: 0 | W70: 0 | X70: 0 | Y70: 0 | Z70: 0 | AA70: 0 | AB70: 0 | AC70: 0 | AD70: 0
A71: Група 16 - довгострокові біологічні активи | B71: 7 | C71: 10 | G71: 0 | H71: 0 | I71: 0 | J71: 0 | K71: 0 | L71: 0 | M71: 0 | N71: 0 | O71: 0 | P71: 0 | Q71: 0 | R71: 0 | S71: 0 | T71: 0 | U71: 0 | V71: 0 | W71: 0 | X71: 0 | Y71: 0 | Z71: 0 | AA71: 0 | AB71: 0 | AC71: 0 | AD71: 0
A72: Амортизація - об'єкт ОЗ | G72: =G73+G86 -> 24.58333333 | H72: =H73+H86 -> 63.91666667 | I72: 63.91666667 | J72: 63.91666667 | K72: 63.91666667 | L72: 63.91666667 | M72: 63.91666667 | N72: 63.91666667 | O72: 63.91666667 | P72: 63.91666667 | Q72: 63.91666667 | R72: 0 | S72: 0 | T72: 0 | U72: 0 | V72: 0 | W72: 0 | X72: 0 | Y72: 0 | Z72: 0 | AA72: 0 | AB72: 0 | AC72: 0 | AD72: 663.75
A73: =A7 -> Основні засоби: | G73: =SUM(G74:G85) -> 24.58333333 | H73: =SUM(H74:H85) -> 63.91666667 | I73: 63.91666667 | J73: 63.91666667 | K73: 63.91666667 | L73: 63.91666667 | M73: 63.91666667 | N73: 63.91666667 | O73: 63.91666667 | P73: 63.91666667 | Q73: 63.91666667 | R73: 0 | S73: 0 | T73: 0 | U73: 0 | V73: 0 | W73: 0 | X73: 0 | Y73: 0 | Z73: 0 | AA73: 0 | AB73: 0 | AC73: 0 | AD73: 663.75
A74: Група 1 - земельні ділянки | B74: =B8 -> — | C74: — | G74: 0 | H74: 0 | I74: 0 | J74: 0 | K74: 0 | L74: 0 | M74: 0 | N74: 0 | O74: 0 | P74: 0 | Q74: 0 | R74: 0 | S74: 0 | T74: 0 | U74: 0 | V74: 0 | W74: 0 | X74: 0 | Y74: 0 | Z74: 0 | AA74: 0 | AB74: 0 | AC74: 0 | AD74: 0
A75: Група 2 - капітальні витрати на поліпшення землі, не пов'язані з будівництвом | B75: 15 | C75: 15 | G75: =SUM($G9:G9)/$C9*IF(G$5>0,1,0) -> 0 | H75: =SUM($G9:H9)/$C9*IF(H$5>0,1,0) -> 0 | I75: =SUM($G9:I9)/$C9*IF(I$5>0,1,0) -> 0 | J75: =SUM($G9:J9)/$C9*IF(J$5>0,1,0) -> 0 | K75: =SUM($G9:K9)/$C9*IF(K$5>0,1,0) -> 0 | L75: =SUM($G9:L9)/$C9*IF(L$5>0,1,0) -> 0 | M75: =SUM($G9:M9)/$C9*IF(M$5>0,1,0) -> 0 | N75: =SUM($G9:N9)/$C9*IF(N$5>0,1,0) -> 0 | O75: =SUM($G9:O9)/$C9*IF(O$5>0,1,0) -> 0 | P75: =SUM($G9:P9)/$C9*IF(P$5>0,1,0) -> 0 | Q75: =SUM($G9:Q9)/$C9*IF(Q$5>0,1,0) -> 0 | R75: =SUM($G9:R9)/$C9*IF(R$5>0,1,0) -> 0 | S75: =SUM($G9:S9)/$C9*IF(S$5>0,1,0) -> 0 | T75: =SUM($G9:T9)/$C9*IF(T$5>0,1,0) -> 0 | U75: =SUM($G9:U9)/$C9*IF(U$5>0,1,0) -> 0 | V75: =SUM($G9:V9)/$C9*IF(V$5>0,1,0) -> 0 | W75: =SUM($G9:W9)/$C9*IF(W$5>0,1,0) -> 0 | X75: =SUM($G9:X9)/$C9*IF(X$5>0,1,0) -> 0 | Y75: =SUM($G9:Y9)/$C9*IF(Y$5>0,1,0) -> 0 | Z75: =SUM($G9:Z9)/$C9*IF(Z$5>0,1,0) -> 0 | AA75: =SUM($G9:AA9)/$C9*IF(AA$5>0,1,0) -> 0 | AB75: =SUM($G9:AB9)/$C9*IF(AB$5>0,1,0) -> 0 | AC75: =SUM($G9:AC9)/$C9*IF(AC$5>0,1,0) -> 0 | AD75: 0
A76: Група 3 - будівлі | B76: 20 | C76: 20 | G76: =SUM($G10:G10)/$C10*IF(G$5>0,1,0) -> 0 | H76: =SUM($G10:H10)/$C10*IF(H$5>0,1,0) -> 0 | I76: =SUM($G10:I10)/$C10*IF(I$5>0,1,0) -> 0 | J76: =SUM($G10:J10)/$C10*IF(J$5>0,1,0) -> 0 | K76: =SUM($G10:K10)/$C10*IF(K$5>0,1,0) -> 0 | L76: =SUM($G10:L10)/$C10*IF(L$5>0,1,0) -> 0 | M76: =SUM($G10:M10)/$C10*IF(M$5>0,1,0) -> 0 | N76: =SUM($G10:N10)/$C10*IF(N$5>0,1,0) -> 0 | O76: =SUM($G10:O10)/$C10*IF(O$5>0,1,0) -> 0 | P76: =SUM($G10:P10)/$C10*IF(P$5>0,1,0) -> 0 | Q76: =SUM($G10:Q10)/$C10*IF(Q$5>0,1,0) -> 0 | R76: =SUM($G10:R10)/$C10*IF(R$5>0,1,0) -> 0 | S76: =SUM($G10:S10)/$C10*IF(S$5>0,1,0) -> 0 | T76: =SUM($G10:T10)/$C10*IF(T$5>0,1,0) -> 0 | U76: =SUM($G10:U10)/$C10*IF(U$5>0,1,0) -> 0 | V76: =SUM($G10:V10)/$C10*IF(V$5>0,1,0) -> 0 | W76: =SUM($G10:W10)/$C10*IF(W$5>0,1,0) -> 0 | X76: =SUM($G10:X10)/$C10*IF(X$5>0,1,0) -> 0 | Y76: =SUM($G10:Y10)/$C10*IF(Y$5>0,1,0) -> 0 | Z76: =SUM($G10:Z10)/$C10*IF(Z$5>0,1,0) -> 0 | AA76: =SUM($G10:AA10)/$C10*IF(AA$5>0,1,0) -> 0 | AB76: =SUM($G10:AB10)/$C10*IF(AB$5>0,1,0) -> 0 | AC76: =SUM($G10:AC10)/$C10*IF(AC$5>0,1,0) -> 0 | AD76: 0
A77: споруди | B77: 15 | C77: 15 | G77: =SUM($G11:G11)/$C11*IF(G$5>0,1,0) -> 0 | H77: =SUM($G11:H11)/$C11*IF(H$5>0,1,0) -> 0 | I77: =SUM($G11:I11)/$C11*IF(I$5>0,1,0) -> 0 | J77: =SUM($G11:J11)/$C11*IF(J$5>0,1,0) -> 0 | K77: =SUM($G11:K11)/$C11*IF(K$5>0,1,0) -> 0 | L77: =SUM($G11:L11)/$C11*IF(L$5>0,1,0) -> 0 | M77: =SUM($G11:M11)/$C11*IF(M$5>0,1,0) -> 0 | N77: =SUM($G11:N11)/$C11*IF(N$5>0,1,0) -> 0 | O77: =SUM($G11:O11)/$C11*IF(O$5>0,1,0) -> 0 | P77: =SUM($G11:P11)/$C11*IF(P$5>0,1,0) -> 0 | Q77: =SUM($G11:Q11)/$C11*IF(Q$5>0,1,0) -> 0 | R77: =SUM($G11:R11)/$C11*IF(R$5>0,1,0) -> 0 | S77: =SUM($G11:S11)/$C11*IF(S$5>0,1,0) -> 0 | T77: =SUM($G11:T11)/$C11*IF(T$5>0,1,0) -> 0 | U77: =SUM($G11:U11)/$C11*IF(U$5>0,1,0) -> 0 | V77: =SUM($G11:V11)/$C11*IF(V$5>0,1,0) -> 0 | W77: =SUM($G11:W11)/$C11*IF(W$5>0,1,0) -> 0 | X77: =SUM($G11:X11)/$C11*IF(X$5>0,1,0) -> 0 | Y77: =SUM($G11:Y11)/$C11*IF(Y$5>0,1,0) -> 0 | Z77: =SUM($G11:Z11)/$C11*IF(Z$5>0,1,0) -> 0 | AA77: =SUM($G11:AA11)/$C11*IF(AA$5>0,1,0) -> 0 | AB77: =SUM($G11:AB11)/$C11*IF(AB$5>0,1,0) -> 0 | AC77: =SUM($G11:AC11)/$C11*IF(AC$5>0,1,0) -> 0 | AD77: 0
A78: передавальні пристрої | B78: 10 | C78: 10 | G78: =SUM($G12:G12)/$C12*IF(G$5>0,1,0) -> 0 | H78: =SUM($G12:H12)/$C12*IF(H$5>0,1,0) -> 0 | I78: =SUM($G12:I12)/$C12*IF(I$5>0,1,0) -> 0 | J78: =SUM($G12:J12)/$C12*IF(J$5>0,1,0) -> 0 | K78: =SUM($G12:K12)/$C12*IF(K$5>0,1,0) -> 0 | L78: =SUM($G12:L12)/$C12*IF(L$5>0,1,0) -> 0 | M78: =SUM($G12:M12)/$C12*IF(M$5>0,1,0) -> 0 | N78: =SUM($G12:N12)/$C12*IF(N$5>0,1,0) -> 0 | O78: =SUM($G12:O12)/$C12*IF(O$5>0,1,0) -> 0 | P78: =SUM($G12:P12)/$C12*IF(P$5>0,1,0) -> 0 | Q78: =SUM($G12:Q12)/$C12*IF(Q$5>0,1,0) -> 0 | R78: =SUM($G12:R12)/$C12*IF(R$5>0,1,0) -> 0 | S78: =SUM($G12:S12)/$C12*IF(S$5>0,1,0) -> 0 | T78: =SUM($G12:T12)/$C12*IF(T$5>0,1,0) -> 0 | U78: =SUM($G12:U12)/$C12*IF(U$5>0,1,0) -> 0 | V78: =SUM($G12:V12)/$C12*IF(V$5>0,1,0) -> 0 | W78: =SUM($G12:W12)/$C12*IF(W$5>0,1,0) -> 0 | X78: =SUM($G12:X12)/$C12*IF(X$5>0,1,0) -> 0 | Y78: =SUM($G12:Y12)/$C12*IF(Y$5>0,1,0) -> 0 | Z78: =SUM($G12:Z12)/$C12*IF(Z$5>0,1,0) -> 0 | AA78: =SUM($G12:AA12)/$C12*IF(AA$5>0,1,0) -> 0 | AB78: =SUM($G12:AB12)/$C12*IF(AB$5>0,1,0) -> 0 | AC78: =SUM($G12:AC12)/$C12*IF(AC$5>0,1,0) -> 0 | AD78: 0
A79: Група 4 - машини та обладнання | B79: 5 | C79: 10 | G79: =SUM($G13:G13)/$C13*IF(G$5>0,1,0) -> 15 | H79: =SUM($G13:H13)/$C13*IF(H$5>0,1,0) -> 39 | I79: =SUM($G13:I13)/$C13*IF(I$5>0,1,0) -> 39 | J79: =SUM($G13:J13)/$C13*IF(J$5>0,1,0) -> 39 | K79: =SUM($G13:K13)/$C13*IF(K$5>0,1,0) -> 39 | L79: =SUM($G13:L13)/$C13*IF(L$5>0,1,0) -> 39 | M79: =SUM($G13:M13)/$C13*IF(M$5>0,1,0) -> 39 | N79: =SUM($G13:N13)/$C13*IF(N$5>0,1,0) -> 39 | O79: =SUM($G13:O13)/$C13*IF(O$5>0,1,0) -> 39 | P79: =SUM($G13:P13)/$C13*IF(P$5>0,1,0) -> 39 | Q79: =SUM($G13:Q13)/$C13*IF(Q$5>0,1,0) -> 39 | R79: =SUM($G13:R13)/$C13*IF(R$5>0,1,0) -> 0 | S79: =SUM($G13:S13)/$C13*IF(S$5>0,1,0) -> 0 | T79: =SUM($G13:T13)/$C13*IF(T$5>0,1,0) -> 0 | U79: =SUM($G13:U13)/$C13*IF(U$5>0,1,0) -> 0 | V79: =SUM($G13:V13)/$C13*IF(V$5>0,1,0) -> 0 | W79: =SUM($G13:W13)/$C13*IF(W$5>0,1,0) -> 0 | X79: =SUM($G13:X13)/$C13*IF(X$5>0,1,0) -> 0 | Y79: =SUM($G13:Y13)/$C13*IF(Y$5>0,1,0) -> 0 | Z79: =SUM($G13:Z13)/$C13*IF(Z$5>0,1,0) -> 0 | AA79: =SUM($G13:AA13)/$C13*IF(AA$5>0,1,0) -> 0 | AB79: =SUM($G13:AB13)/$C13*IF(AB$5>0,1,0) -> 0 | AC79: =SUM($G13:AC13)/$C13*IF(AC$5>0,1,0) -> 0 | AD79: 405
A80: з них: Електронно-обчислювальні машини, інші машини для автоматичного оброблення інформації, пов'язані з ними засоби зчитування або друку інформації, пов'язані з ними комп'ютерні програми (крім програм, витрати на придбання яких визнаються роялті, та / або програм, які визнаються нематеріальним активів) , інші інформаційні системи, комутатори, маршрутизатори, модулі, модеми, джерела безперебійного живлення та засоби їх підключення до телекомунікаційних мереж, телефони (в тому числі мобільні), мікрофони і раці , Вартість яких перевищує 2500 гривень. | B80: 2 | C80: 10 | G80: =SUM($G14:G14)/$C14*IF(G$5>0,1,0) -> 0 | H80: =SUM($G14:H14)/$C14*IF(H$5>0,1,0) -> 0 | I80: =SUM($G14:I14)/$C14*IF(I$5>0,1,0) -> 0 | J80: =SUM($G14:J14)/$C14*IF(J$5>0,1,0) -> 0 | K80: =SUM($G14:K14)/$C14*IF(K$5>0,1,0) -> 0 | L80: =SUM($G14:L14)/$C14*IF(L$5>0,1,0) -> 0 | M80: =SUM($G14:M14)/$C14*IF(M$5>0,1,0) -> 0 | N80: =SUM($G14:N14)/$C14*IF(N$5>0,1,0) -> 0 | O80: =SUM($G14:O14)/$C14*IF(O$5>0,1,0) -> 0 | P80: =SUM($G14:P14)/$C14*IF(P$5>0,1,0) -> 0 | Q80: =SUM($G14:Q14)/$C14*IF(Q$5>0,1,0) -> 0 | R80: =SUM($G14:R14)/$C14*IF(R$5>0,1,0) -> 0 | S80: =SUM($G14:S14)/$C14*IF(S$5>0,1,0) -> 0 | T80: =SUM($G14:T14)/$C14*IF(T$5>0,1,0) -> 0 | U80: =SUM($G14:U14)/$C14*IF(U$5>0,1,0) -> 0 | V80: =SUM($G14:V14)/$C14*IF(V$5>0,1,0) -> 0 | W80: =SUM($G14:W14)/$C14*IF(W$5>0,1,0) -> 0 | X80: =SUM($G14:X14)/$C14*IF(X$5>0,1,0) -> 0 | Y80: =SUM($G14:Y14)/$C14*IF(Y$5>0,1,0) -> 0 | Z80: =SUM($G14:Z14)/$C14*IF(Z$5>0,1,0) -> 0 | AA80: =SUM($G14:AA14)/$C14*IF(AA$5>0,1,0) -> 0 | AB80: =SUM($G14:AB14)/$C14*IF(AB$5>0,1,0) -> 0 | AC80: =SUM($G14:AC14)/$C14*IF(AC$5>0,1,0) -> 0 | AD80: 0
A81: Група 5 - транспортні засоби | B81: 5 | C81: 10 | G81: =SUM($G15:G15)/$C15*IF(G$5>0,1,0) -> 0 | H81: =SUM($G15:H15)/$C15*IF(H$5>0,1,0) -> 0 | I81: =SUM($G15:I15)/$C15*IF(I$5>0,1,0) -> 0 | J81: =SUM($G15:J15)/$C15*IF(J$5>0,1,0) -> 0 | K81: =SUM($G15:K15)/$C15*IF(K$5>0,1,0) -> 0 | L81: =SUM($G15:L15)/$C15*IF(L$5>0,1,0) -> 0 | M81: =SUM($G15:M15)/$C15*IF(M$5>0,1,0) -> 0 | N81: =SUM($G15:N15)/$C15*IF(N$5>0,1,0) -> 0 | O81: =SUM($G15:O15)/$C15*IF(O$5>0,1,0) -> 0 | P81: =SUM($G15:P15)/$C15*IF(P$5>0,1,0) -> 0 | Q81: =SUM($G15:Q15)/$C15*IF(Q$5>0,1,0) -> 0 | R81: =SUM($G15:R15)/$C15*IF(R$5>0,1,0) -> 0 | S81: =SUM($G15:S15)/$C15*IF(S$5>0,1,0) -> 0 | T81: =SUM($G15:T15)/$C15*IF(T$5>0,1,0) -> 0 | U81: =SUM($G15:U15)/$C15*IF(U$5>0,1,0) -> 0 | V81: =SUM($G15:V15)/$C15*IF(V$5>0,1,0) -> 0 | W81: =SUM($G15:W15)/$C15*IF(W$5>0,1,0) -> 0 | X81: =SUM($G15:X15)/$C15*IF(X$5>0,1,0) -> 0 | Y81: =SUM($G15:Y15)/$C15*IF(Y$5>0,1,0) -> 0 | Z81: =SUM($G15:Z15)/$C15*IF(Z$5>0,1,0) -> 0 | AA81: =SUM($G15:AA15)/$C15*IF(AA$5>0,1,0) -> 0 | AB81: =SUM($G15:AB15)/$C15*IF(AB$5>0,1,0) -> 0 | AC81: =SUM($G15:AC15)/$C15*IF(AC$5>0,1,0) -> 0 | AD81: 0
A82: Група 6 - інструменти, прилади, інвентар (меблі) | B82: 4 | C82: 10 | G82: =SUM($G16:G16)/$C16*IF(G$5>0,1,0) -> 7.5 | H82: =SUM($G16:H16)/$C16*IF(H$5>0,1,0) -> 19.5 | I82: =SUM($G16:I16)/$C16*IF(I$5>0,1,0) -> 19.5 | J82: =SUM($G16:J16)/$C16*IF(J$5>0,1,0) -> 19.5 | K82: =SUM($G16:K16)/$C16*IF(K$5>0,1,0) -> 19.5 | L82: =SUM($G16:L16)/$C16*IF(L$5>0,1,0) -> 19.5 | M82: =SUM($G16:M16)/$C16*IF(M$5>0,1,0) -> 19.5 | N82: =SUM($G16:N16)/$C16*IF(N$5>0,1,0) -> 19.5 | O82: =SUM($G16:O16)/$C16*IF(O$5>0,1,0) -> 19.5 | P82: =SUM($G16:P16)/$C16*IF(P$5>0,1,0) -> 19.5 | Q82: =SUM($G16:Q16)/$C16*IF(Q$5>0,1,0) -> 19.5 | R82: =SUM($G16:R16)/$C16*IF(R$5>0,1,0) -> 0 | S82: =SUM($G16:S16)/$C16*IF(S$5>0,1,0) -> 0 | T82: =SUM($G16:T16)/$C16*IF(T$5>0,1,0) -> 0 | U82: =SUM($G16:U16)/$C16*IF(U$5>0,1,0) -> 0 | V82: =SUM($G16:V16)/$C16*IF(V$5>0,1,0) -> 0 | W82: =SUM($G16:W16)/$C16*IF(W$5>0,1,0) -> 0 | X82: =SUM($G16:X16)/$C16*IF(X$5>0,1,0) -> 0 | Y82: =SUM($G16:Y16)/$C16*IF(Y$5>0,1,0) -> 0 | Z82: =SUM($G16:Z16)/$C16*IF(Z$5>0,1,0) -> 0 | AA82: =SUM($G16:AA16)/$C16*IF(AA$5>0,1,0) -> 0 | AB82: =SUM($G16:AB16)/$C16*IF(AB$5>0,1,0) -> 0 | AC82: =SUM($G16:AC16)/$C16*IF(AC$5>0,1,0) -> 0 | AD82: 202.5
A83: Група 7 - тварини | B83: 6 | C83: 10 | G83: =SUM($G17:G17)/$C17*IF(G$5>0,1,0) -> 0 | H83: =SUM($G17:H17)/$C17*IF(H$5>0,1,0) -> 0 | I83: =SUM($G17:I17)/$C17*IF(I$5>0,1,0) -> 0 | J83: =SUM($G17:J17)/$C17*IF(J$5>0,1,0) -> 0 | K83: =SUM($G17:K17)/$C17*IF(K$5>0,1,0) -> 0 | L83: =SUM($G17:L17)/$C17*IF(L$5>0,1,0) -> 0 | M83: =SUM($G17:M17)/$C17*IF(M$5>0,1,0) -> 0 | N83: =SUM($G17:N17)/$C17*IF(N$5>0,1,0) -> 0 | O83: =SUM($G17:O17)/$C17*IF(O$5>0,1,0) -> 0 | P83: =SUM($G17:P17)/$C17*IF(P$5>0,1,0) -> 0 | Q83: =SUM($G17:Q17)/$C17*IF(Q$5>0,1,0) -> 0 | R83: =SUM($G17:R17)/$C17*IF(R$5>0,1,0) -> 0 | S83: =SUM($G17:S17)/$C17*IF(S$5>0,1,0) -> 0 | T83: =SUM($G17:T17)/$C17*IF(T$5>0,1,0) -> 0 | U83: =SUM($G17:U17)/$C17*IF(U$5>0,1,0) -> 0 | V83: =SUM($G17:V17)/$C17*IF(V$5>0,1,0) -> 0 | W83: =SUM($G17:W17)/$C17*IF(W$5>0,1,0) -> 0 | X83: =SUM($G17:X17)/$C17*IF(X$5>0,1,0) -> 0 | Y83: =SUM($G17:Y17)/$C17*IF(Y$5>0,1,0) -> 0 | Z83: =SUM($G17:Z17)/$C17*IF(Z$5>0,1,0) -> 0 | AA83: =SUM($G17:AA17)/$C17*IF(AA$5>0,1,0) -> 0 | AB83: =SUM($G17:AB17)/$C17*IF(AB$5>0,1,0) -> 0 | AC83: =SUM($G17:AC17)/$C17*IF(AC$5>0,1,0) -> 0 | AD83: =SUM(G83:AC83) -> 0
A84: Група 8 - багаторічні насадження | B84: 10 | C84: 10 | G84: =SUM($G18:G18)/$C18*IF(G$5>0,1,0) -> 0 | H84: =SUM($G18:H18)/$C18*IF(H$5>0,1,0) -> 0 | I84: =SUM($G18:I18)/$C18*IF(I$5>0,1,0) -> 0 | J84: =SUM($G18:J18)/$C18*IF(J$5>0,1,0) -> 0 | K84: =SUM($G18:K18)/$C18*IF(K$5>0,1,0) -> 0 | L84: =SUM($G18:L18)/$C18*IF(L$5>0,1,0) -> 0 | M84: =SUM($G18:M18)/$C18*IF(M$5>0,1,0) -> 0 | N84: =SUM($G18:N18)/$C18*IF(N$5>0,1,0) -> 0 | O84: =SUM($G18:O18)/$C18*IF(O$5>0,1,0) -> 0 | P84: =SUM($G18:P18)/$C18*IF(P$5>0,1,0) -> 0 | Q84: =SUM($G18:Q18)/$C18*IF(Q$5>0,1,0) -> 0 | R84: =SUM($G18:R18)/$C18*IF(R$5>0,1,0) -> 0 | S84: =SUM($G18:S18)/$C18*IF(S$5>0,1,0) -> 0 | T84: =SUM($G18:T18)/$C18*IF(T$5>0,1,0) -> 0 | U84: =SUM($G18:U18)/$C18*IF(U$5>0,1,0) -> 0 | V84: =SUM($G18:V18)/$C18*IF(V$5>0,1,0) -> 0 | W84: =SUM($G18:W18)/$C18*IF(W$5>0,1,0) -> 0 | X84: =SUM($G18:X18)/$C18*IF(X$5>0,1,0) -> 0 | Y84: =SUM($G18:Y18)/$C18*IF(Y$5>0,1,0) -> 0 | Z84: =SUM($G18:Z18)/$C18*IF(Z$5>0,1,0) -> 0 | AA84: =SUM($G18:AA18)/$C18*IF(AA$5>0,1,0) -> 0 | AB84: =SUM($G18:AB18)/$C18*IF(AB$5>0,1,0) -> 0 | AC84: =SUM($G18:AC18)/$C18*IF(AC$5>0,1,0) -> 0 | AD84: 0
A85: Група 9 - інші основні засоби | B85: 12 | C85: 12 | G85: =SUM($G19:G19)/$C19*IF(G$5>0,1,0) -> 2.083333333 | H85: =SUM($G19:H19)/$C19*IF(H$5>0,1,0) -> 5.416666667 | I85: =SUM($G19:I19)/$C19*IF(I$5>0,1,0) -> 5.416666667 | J85: =SUM($G19:J19)/$C19*IF(J$5>0,1,0) -> 5.416666667 | K85: =SUM($G19:K19)/$C19*IF(K$5>0,1,0) -> 5.416666667 | L85: =SUM($G19:L19)/$C19*IF(L$5>0,1,0) -> 5.416666667 | M85: =SUM($G19:M19)/$C19*IF(M$5>0,1,0) -> 5.416666667 | N85: =SUM($G19:N19)/$C19*IF(N$5>0,1,0) -> 5.416666667 | O85: =SUM($G19:O19)/$C19*IF(O$5>0,1,0) -> 5.416666667 | P85: =SUM($G19:P19)/$C19*IF(P$5>0,1,0) -> 5.416666667 | Q85: =SUM($G19:Q19)/$C19*IF(Q$5>0,1,0) -> 5.416666667 | R85: =SUM($G19:R19)/$C19*IF(R$5>0,1,0) -> 0 | S85: =SUM($G19:S19)/$C19*IF(S$5>0,1,0) -> 0 | T85: =SUM($G19:T19)/$C19*IF(T$5>0,1,0) -> 0 | U85: =SUM($G19:U19)/$C19*IF(U$5>0,1,0) -> 0 | V85: =SUM($G19:V19)/$C19*IF(V$5>0,1,0) -> 0 | W85: =SUM($G19:W19)/$C19*IF(W$5>0,1,0) -> 0 | X85: =SUM($G19:X19)/$C19*IF(X$5>0,1,0) -> 0 | Y85: =SUM($G19:Y19)/$C19*IF(Y$5>0,1,0) -> 0 | Z85: =SUM($G19:Z19)/$C19*IF(Z$5>0,1,0) -> 0 | AA85: =SUM($G19:AA19)/$C19*IF(AA$5>0,1,0) -> 0 | AB85: =SUM($G19:AB19)/$C19*IF(AB$5>0,1,0) -> 0 | AC85: =SUM($G19:AC19)/$C19*IF(AC$5>0,1,0) -> 0 | AD85: 56.25
A86: Інші необоротні матеріальні активи: | G86: =SUM(G87:G93) -> 0 | H86: 0 | I86: 0 | J86: 0 | K86: 0 | L86: 0 | M86: 0 | N86: 0 | O86: 0 | P86: 0 | Q86: 0 | R86: 0 | S86: 0 | T86: 0 | U86: 0 | V86: 0 | W86: 0 | X86: 0 | Y86: 0 | Z86: 0 | AA86: 0 | AB86: 0 | AC86: 0 | AD86: 0
A87: Група 10 - бібліотечні фонди | B87: =B21 -> — | C87: — | G87: =G21*IF(G$5>0,1,0) -> 0 | H87: 0 | I87: 0 | J87: 0 | K87: 0 | L87: 0 | M87: 0 | N87: 0 | O87: 0 | P87: 0 | Q87: 0 | R87: 0 | S87: 0 | T87: 0 | U87: 0 | V87: 0 | W87: 0 | X87: 0 | Y87: 0 | Z87: 0 | AA87: 0 | AB87: 0 | AC87: 0 | AD87: 0
A88: Група 11 - малоцінні необоротні активи | B88: — | C88: — | G88: 0 | H88: 0 | I88: 0 | J88: 0 | K88: 0 | L88: 0 | M88: 0 | N88: 0 | O88: 0 | P88: 0 | Q88: 0 | R88: 0 | S88: 0 | T88: 0 | U88: 0 | V88: 0 | W88: 0 | X88: 0 | Y88: 0 | Z88: 0 | AA88: 0 | AB88: 0 | AC88: 0 | AD88: 0
A89: Група 12 - тимчасові (нетитульні) споруди | B89: 5 | C89: 10 | G89: =SUM($G23:G23)/$C23*IF(G$5>0,1,0) -> 0 | H89: =SUM($G23:H23)/$C23*IF(H$5>0,1,0) -> 0 | I89: =SUM($G23:I23)/$C23*IF(I$5>0,1,0) -> 0 | J89: =SUM($G23:J23)/$C23*IF(J$5>0,1,0) -> 0 | K89: =SUM($G23:K23)/$C23*IF(K$5>0,1,0) -> 0 | L89: =SUM($G23:L23)/$C23*IF(L$5>0,1,0) -> 0 | M89: =SUM($G23:M23)/$C23*IF(M$5>0,1,0) -> 0 | N89: =SUM($G23:N23)/$C23*IF(N$5>0,1,0) -> 0 | O89: =SUM($G23:O23)/$C23*IF(O$5>0,1,0) -> 0 | P89: =SUM($G23:P23)/$C23*IF(P$5>0,1,0) -> 0 | Q89: =SUM($G23:Q23)/$C23*IF(Q$5>0,1,0) -> 0 | R89: =SUM($G23:R23)/$C23*IF(R$5>0,1,0) -> 0 | S89: =SUM($G23:S23)/$C23*IF(S$5>0,1,0) -> 0 | T89: =SUM($G23:T23)/$C23*IF(T$5>0,1,0) -> 0 | U89: =SUM($G23:U23)/$C23*IF(U$5>0,1,0) -> 0 | V89: =SUM($G23:V23)/$C23*IF(V$5>0,1,0) -> 0 | W89: =SUM($G23:W23)/$C23*IF(W$5>0,1,0) -> 0 | X89: =SUM($G23:X23)/$C23*IF(X$5>0,1,0) -> 0 | Y89: =SUM($G23:Y23)/$C23*IF(Y$5>0,1,0) -> 0 | Z89: =SUM($G23:Z23)/$C23*IF(Z$5>0,1,0) -> 0 | AA89: =SUM($G23:AA23)/$C23*IF(AA$5>0,1,0) -> 0 | AB89: =SUM($G23:AB23)/$C23*IF(AB$5>0,1,0) -> 0 | AC89: =SUM($G23:AC23)/$C23*IF(AC$5>0,1,0) -> 0 | AD89: 0
A90: Група 13 - природні ресурси | B90: — | C90: — | G90: 0 | H90: 0 | I90: 0 | J90: 0 | K90: 0 | L90: 0 | M90: 0 | N90: 0 | O90: 0 | P90: 0 | Q90: 0 | R90: 0 | S90: 0 | T90: 0 | U90: 0 | V90: 0 | W90: 0 | X90: 0 | Y90: 0 | Z90: 0 | AA90: 0 | AB90: 0 | AC90: 0 | AD90: 0
A91: Група 14 - інвентарна тара | B91: 6 | C91: 10 | G91: =SUM($G25:G25)/$C25*IF(G$5>0,1,0) -> 0 | H91: =SUM($G25:H25)/$C25*IF(H$5>0,1,0) -> 0 | I91: =SUM($G25:I25)/$C25*IF(I$5>0,1,0) -> 0 | J91: =SUM($G25:J25)/$C25*IF(J$5>0,1,0) -> 0 | K91: =SUM($G25:K25)/$C25*IF(K$5>0,1,0) -> 0 | L91: =SUM($G25:L25)/$C25*IF(L$5>0,1,0) -> 0 | M91: =SUM($G25:M25)/$C25*IF(M$5>0,1,0) -> 0 | N91: =SUM($G25:N25)/$C25*IF(N$5>0,1,0) -> 0 | O91: =SUM($G25:O25)/$C25*IF(O$5>0,1,0) -> 0 | P91: =SUM($G25:P25)/$C25*IF(P$5>0,1,0) -> 0 | Q91: =SUM($G25:Q25)/$C25*IF(Q$5>0,1,0) -> 0 | R91: =SUM($G25:R25)/$C25*IF(R$5>0,1,0) -> 0 | S91: =SUM($G25:S25)/$C25*IF(S$5>0,1,0) -> 0 | T91: =SUM($G25:T25)/$C25*IF(T$5>0,1,0) -> 0 | U91: =SUM($G25:U25)/$C25*IF(U$5>0,1,0) -> 0 | V91: =SUM($G25:V25)/$C25*IF(V$5>0,1,0) -> 0 | W91: =SUM($G25:W25)/$C25*IF(W$5>0,1,0) -> 0 | X91: =SUM($G25:X25)/$C25*IF(X$5>0,1,0) -> 0 | Y91: =SUM($G25:Y25)/$C25*IF(Y$5>0,1,0) -> 0 | Z91: =SUM($G25:Z25)/$C25*IF(Z$5>0,1,0) -> 0 | AA91: =SUM($G25:AA25)/$C25*IF(AA$5>0,1,0) -> 0 | AB91: =SUM($G25:AB25)/$C25*IF(AB$5>0,1,0) -> 0 | AC91: =SUM($G25:AC25)/$C25*IF(AC$5>0,1,0) -> 0 | AD91: 0
A92: Група 15 - предмети прокату | B92: 5 | C92: 10 | G92: =SUM($G26:G26)/$C26*IF(G$5>0,1,0) -> 0 | H92: =SUM($G26:H26)/$C26*IF(H$5>0,1,0) -> 0 | I92: =SUM($G26:I26)/$C26*IF(I$5>0,1,0) -> 0 | J92: =SUM($G26:J26)/$C26*IF(J$5>0,1,0) -> 0 | K92: =SUM($G26:K26)/$C26*IF(K$5>0,1,0) -> 0 | L92: =SUM($G26:L26)/$C26*IF(L$5>0,1,0) -> 0 | M92: =SUM($G26:M26)/$C26*IF(M$5>0,1,0) -> 0 | N92: =SUM($G26:N26)/$C26*IF(N$5>0,1,0) -> 0 | O92: =SUM($G26:O26)/$C26*IF(O$5>0,1,0) -> 0 | P92: =SUM($G26:P26)/$C26*IF(P$5>0,1,0) -> 0 | Q92: =SUM($G26:Q26)/$C26*IF(Q$5>0,1,0) -> 0 | R92: =SUM($G26:R26)/$C26*IF(R$5>0,1,0) -> 0 | S92: =SUM($G26:S26)/$C26*IF(S$5>0,1,0) -> 0 | T92: =SUM($G26:T26)/$C26*IF(T$5>0,1,0) -> 0 | U92: =SUM($G26:U26)/$C26*IF(U$5>0,1,0) -> 0 | V92: =SUM($G26:V26)/$C26*IF(V$5>0,1,0) -> 0 | W92: =SUM($G26:W26)/$C26*IF(W$5>0,1,0) -> 0 | X92: =SUM($G26:X26)/$C26*IF(X$5>0,1,0) -> 0 | Y92: =SUM($G26:Y26)/$C26*IF(Y$5>0,1,0) -> 0 | Z92: =SUM($G26:Z26)/$C26*IF(Z$5>0,1,0) -> 0 | AA92: =SUM($G26:AA26)/$C26*IF(AA$5>0,1,0) -> 0 | AB92: =SUM($G26:AB26)/$C26*IF(AB$5>0,1,0) -> 0 | AC92: =SUM($G26:AC26)/$C26*IF(AC$5>0,1,0) -> 0 | AD92: 0
A93: Група 16 - довгострокові біологічні активи | B93: 7 | C93: 10 | G93: =SUM($G27:G27)/$C27*IF(G$5>0,1,0) -> 0 | H93: =SUM($G27:H27)/$C27*IF(H$5>0,1,0) -> 0 | I93: =SUM($G27:I27)/$C27*IF(I$5>0,1,0) -> 0 | J93: =SUM($G27:J27)/$C27*IF(J$5>0,1,0) -> 0 | K93: =SUM($G27:K27)/$C27*IF(K$5>0,1,0) -> 0 | L93: =SUM($G27:L27)/$C27*IF(L$5>0,1,0) -> 0 | M93: =SUM($G27:M27)/$C27*IF(M$5>0,1,0) -> 0 | N93: =SUM($G27:N27)/$C27*IF(N$5>0,1,0) -> 0 | O93: =SUM($G27:O27)/$C27*IF(O$5>0,1,0) -> 0 | P93: =SUM($G27:P27)/$C27*IF(P$5>0,1,0) -> 0 | Q93: =SUM($G27:Q27)/$C27*IF(Q$5>0,1,0) -> 0 | R93: =SUM($G27:R27)/$C27*IF(R$5>0,1,0) -> 0 | S93: =SUM($G27:S27)/$C27*IF(S$5>0,1,0) -> 0 | T93: =SUM($G27:T27)/$C27*IF(T$5>0,1,0) -> 0 | U93: =SUM($G27:U27)/$C27*IF(U$5>0,1,0) -> 0 | V93: =SUM($G27:V27)/$C27*IF(V$5>0,1,0) -> 0 | W93: =SUM($G27:W27)/$C27*IF(W$5>0,1,0) -> 0 | X93: =SUM($G27:X27)/$C27*IF(X$5>0,1,0) -> 0 | Y93: =SUM($G27:Y27)/$C27*IF(Y$5>0,1,0) -> 0 | Z93: =SUM($G27:Z27)/$C27*IF(Z$5>0,1,0) -> 0 | AA93: =SUM($G27:AA27)/$C27*IF(AA$5>0,1,0) -> 0 | AB93: =SUM($G27:AB27)/$C27*IF(AB$5>0,1,0) -> 0 | AC93: =SUM($G27:AC27)/$C27*IF(AC$5>0,1,0) -> 0 | AD93: 0
A94: Амортизація - кап. Ремонти | G94: =G95+G108 -> 0 | H94: =H95+H108 -> 0 | I94: 0 | J94: 0 | K94: 0.1966666667 | L94: 0.1966666667 | M94: 0.1966666667 | N94: 0.295 | O94: 0.295 | P94: 0.295 | Q94: 0.295 | R94: 0 | S94: 0 | T94: 0 | U94: 0 | V94: 0 | W94: 0 | X94: 0 | Y94: 0 | Z94: 0 | AA94: 0 | AB94: 0 | AC94: 0 | AD94: 1.77
A95: =A73 -> Основні засоби: | G95: =SUM(G96:G107) -> 0 | H95: =SUM(H96:H107) -> 0 | I95: 0 | J95: 0 | K95: 0.1966666667 | L95: 0.1966666667 | M95: 0.1966666667 | N95: 0.295 | O95: 0.295 | P95: 0.295 | Q95: 0.295 | R95: 0 | S95: 0 | T95: 0 | U95: 0 | V95: 0 | W95: 0 | X95: 0 | Y95: 0 | Z95: 0 | AA95: 0 | AB95: 0 | AC95: 0 | AD95: 1.77
A96: =A74 -> Група 1 - земельні ділянки | B96: =B29 -> 0 | C96: 0 | G96: 0 | H96: 0 | I96: 0 | J96: 0 | K96: 0 | L96: 0 | M96: 0 | N96: 0 | O96: 0 | P96: 0 | Q96: 0 | R96: 0 | S96: 0 | T96: 0 | U96: 0 | V96: 0 | W96: 0 | X96: 0 | Y96: 0 | Z96: 0 | AA96: 0 | AB96: 0 | AC96: 0 | AD96: 0
A97: Група 2 - капітальні витрати на поліпшення землі, не пов'язані з будівництвом | B97: — | C97: — | G97: =SUM($G31:G31)/$C31*IF(G$5>0,1,0) -> 0 | H97: =SUM($G31:H31)/$C31*IF(H$5>0,1,0) -> 0 | I97: =SUM($G31:I31)/$C31*IF(I$5>0,1,0) -> 0 | J97: =SUM($G31:J31)/$C31*IF(J$5>0,1,0) -> 0 | K97: =SUM($G31:K31)/$C31*IF(K$5>0,1,0) -> 0 | L97: =SUM($G31:L31)/$C31*IF(L$5>0,1,0) -> 0 | M97: =SUM($G31:M31)/$C31*IF(M$5>0,1,0) -> 0 | N97: =SUM($G31:N31)/$C31*IF(N$5>0,1,0) -> 0 | O97: =SUM($G31:O31)/$C31*IF(O$5>0,1,0) -> 0 | P97: =SUM($G31:P31)/$C31*IF(P$5>0,1,0) -> 0 | Q97: =SUM($G31:Q31)/$C31*IF(Q$5>0,1,0) -> 0 | R97: =SUM($G31:R31)/$C31*IF(R$5>0,1,0) -> 0 | S97: =SUM($G31:S31)/$C31*IF(S$5>0,1,0) -> 0 | T97: =SUM($G31:T31)/$C31*IF(T$5>0,1,0) -> 0 | U97: =SUM($G31:U31)/$C31*IF(U$5>0,1,0) -> 0 | V97: =SUM($G31:V31)/$C31*IF(V$5>0,1,0) -> 0 | W97: =SUM($G31:W31)/$C31*IF(W$5>0,1,0) -> 0 | X97: =SUM($G31:X31)/$C31*IF(X$5>0,1,0) -> 0 | Y97: =SUM($G31:Y31)/$C31*IF(Y$5>0,1,0) -> 0 | Z97: =SUM($G31:Z31)/$C31*IF(Z$5>0,1,0) -> 0 | AA97: =SUM($G31:AA31)/$C31*IF(AA$5>0,1,0) -> 0 | AB97: =SUM($G31:AB31)/$C31*IF(AB$5>0,1,0) -> 0 | AC97: =SUM($G31:AC31)/$C31*IF(AC$5>0,1,0) -> 0 | AD97: 0
A98: Група 3 - будівлі | B98: 15 | C98: 15 | G98: =SUM($G32:G32)/$C32*IF(G$5>0,1,0) -> 0 | H98: =SUM($G32:H32)/$C32*IF(H$5>0,1,0) -> 0 | I98: =SUM($G32:I32)/$C32*IF(I$5>0,1,0) -> 0 | J98: =SUM($G32:J32)/$C32*IF(J$5>0,1,0) -> 0 | K98: =SUM($G32:K32)/$C32*IF(K$5>0,1,0) -> 0 | L98: =SUM($G32:L32)/$C32*IF(L$5>0,1,0) -> 0 | M98: =SUM($G32:M32)/$C32*IF(M$5>0,1,0) -> 0 | N98: =SUM($G32:N32)/$C32*IF(N$5>0,1,0) -> 0 | O98: =SUM($G32:O32)/$C32*IF(O$5>0,1,0) -> 0 | P98: =SUM($G32:P32)/$C32*IF(P$5>0,1,0) -> 0 | Q98: =SUM($G32:Q32)/$C32*IF(Q$5>0,1,0) -> 0 | R98: =SUM($G32:R32)/$C32*IF(R$5>0,1,0) -> 0 | S98: =SUM($G32:S32)/$C32*IF(S$5>0,1,0) -> 0 | T98: =SUM($G32:T32)/$C32*IF(T$5>0,1,0) -> 0 | U98: =SUM($G32:U32)/$C32*IF(U$5>0,1,0) -> 0 | V98: =SUM($G32:V32)/$C32*IF(V$5>0,1,0) -> 0 | W98: =SUM($G32:W32)/$C32*IF(W$5>0,1,0) -> 0 | X98: =SUM($G32:X32)/$C32*IF(X$5>0,1,0) -> 0 | Y98: =SUM($G32:Y32)/$C32*IF(Y$5>0,1,0) -> 0 | Z98: =SUM($G32:Z32)/$C32*IF(Z$5>0,1,0) -> 0 | AA98: =SUM($G32:AA32)/$C32*IF(AA$5>0,1,0) -> 0 | AB98: =SUM($G32:AB32)/$C32*IF(AB$5>0,1,0) -> 0 | AC98: =SUM($G32:AC32)/$C32*IF(AC$5>0,1,0) -> 0 | AD98: 0
A99: споруди | B99: 20 | C99: 20 | G99: =SUM($G33:G33)/$C33*IF(G$5>0,1,0) -> 0 | H99: =SUM($G33:H33)/$C33*IF(H$5>0,1,0) -> 0 | I99: =SUM($G33:I33)/$C33*IF(I$5>0,1,0) -> 0 | J99: =SUM($G33:J33)/$C33*IF(J$5>0,1,0) -> 0 | K99: =SUM($G33:K33)/$C33*IF(K$5>0,1,0) -> 0 | L99: =SUM($G33:L33)/$C33*IF(L$5>0,1,0) -> 0 | M99: =SUM($G33:M33)/$C33*IF(M$5>0,1,0) -> 0 | N99: =SUM($G33:N33)/$C33*IF(N$5>0,1,0) -> 0 | O99: =SUM($G33:O33)/$C33*IF(O$5>0,1,0) -> 0 | P99: =SUM($G33:P33)/$C33*IF(P$5>0,1,0) -> 0 | Q99: =SUM($G33:Q33)/$C33*IF(Q$5>0,1,0) -> 0 | R99: =SUM($G33:R33)/$C33*IF(R$5>0,1,0) -> 0 | S99: =SUM($G33:S33)/$C33*IF(S$5>0,1,0) -> 0 | T99: =SUM($G33:T33)/$C33*IF(T$5>0,1,0) -> 0 | U99: =SUM($G33:U33)/$C33*IF(U$5>0,1,0) -> 0 | V99: =SUM($G33:V33)/$C33*IF(V$5>0,1,0) -> 0 | W99: =SUM($G33:W33)/$C33*IF(W$5>0,1,0) -> 0 | X99: =SUM($G33:X33)/$C33*IF(X$5>0,1,0) -> 0 | Y99: =SUM($G33:Y33)/$C33*IF(Y$5>0,1,0) -> 0 | Z99: =SUM($G33:Z33)/$C33*IF(Z$5>0,1,0) -> 0 | AA99: =SUM($G33:AA33)/$C33*IF(AA$5>0,1,0) -> 0 | AB99: =SUM($G33:AB33)/$C33*IF(AB$5>0,1,0) -> 0 | AC99: =SUM($G33:AC33)/$C33*IF(AC$5>0,1,0) -> 0 | AD99: 0
A100: передавальні пристрої | B100: 15 | C100: 15 | G100: =SUM($G34:G34)/$C34*IF(G$5>0,1,0) -> 0 | H100: =SUM($G34:H34)/$C34*IF(H$5>0,1,0) -> 0 | I100: =SUM($G34:I34)/$C34*IF(I$5>0,1,0) -> 0 | J100: =SUM($G34:J34)/$C34*IF(J$5>0,1,0) -> 0 | K100: =SUM($G34:K34)/$C34*IF(K$5>0,1,0) -> 0 | L100: =SUM($G34:L34)/$C34*IF(L$5>0,1,0) -> 0 | M100: =SUM($G34:M34)/$C34*IF(M$5>0,1,0) -> 0 | N100: =SUM($G34:N34)/$C34*IF(N$5>0,1,0) -> 0 | O100: =SUM($G34:O34)/$C34*IF(O$5>0,1,0) -> 0 | P100: =SUM($G34:P34)/$C34*IF(P$5>0,1,0) -> 0 | Q100: =SUM($G34:Q34)/$C34*IF(Q$5>0,1,0) -> 0 | R100: =SUM($G34:R34)/$C34*IF(R$5>0,1,0) -> 0 | S100: =SUM($G34:S34)/$C34*IF(S$5>0,1,0) -> 0 | T100: =SUM($G34:T34)/$C34*IF(T$5>0,1,0) -> 0 | U100: =SUM($G34:U34)/$C34*IF(U$5>0,1,0) -> 0 | V100: =SUM($G34:V34)/$C34*IF(V$5>0,1,0) -> 0 | W100: =SUM($G34:W34)/$C34*IF(W$5>0,1,0) -> 0 | X100: =SUM($G34:X34)/$C34*IF(X$5>0,1,0) -> 0 | Y100: =SUM($G34:Y34)/$C34*IF(Y$5>0,1,0) -> 0 | Z100: =SUM($G34:Z34)/$C34*IF(Z$5>0,1,0) -> 0 | AA100: =SUM($G34:AA34)/$C34*IF(AA$5>0,1,0) -> 0 | AB100: =SUM($G34:AB34)/$C34*IF(AB$5>0,1,0) -> 0 | AC100: =SUM($G34:AC34)/$C34*IF(AC$5>0,1,0) -> 0 | AD100: 0
A101: Група 4 - машини та обладнання | B101: 10 | C101: 10 | G101: =SUM($G35:G35)/$C35*IF(G$5>0,1,0) -> 0 | H101: =SUM($G35:H35)/$C35*IF(H$5>0,1,0) -> 0 | I101: =SUM($G35:I35)/$C35*IF(I$5>0,1,0) -> 0 | J101: =SUM($G35:J35)/$C35*IF(J$5>0,1,0) -> 0 | K101: =SUM($G35:K35)/$C35*IF(K$5>0,1,0) -> 0.12 | L101: =SUM($G35:L35)/$C35*IF(L$5>0,1,0) -> 0.12 | M101: =SUM($G35:M35)/$C35*IF(M$5>0,1,0) -> 0.12 | N101: =SUM($G35:N35)/$C35*IF(N$5>0,1,0) -> 0.18 | O101: =SUM($G35:O35)/$C35*IF(O$5>0,1,0) -> 0.18 | P101: =SUM($G35:P35)/$C35*IF(P$5>0,1,0) -> 0.18 | Q101: =SUM($G35:Q35)/$C35*IF(Q$5>0,1,0) -> 0.18 | R101: =SUM($G35:R35)/$C35*IF(R$5>0,1,0) -> 0 | S101: =SUM($G35:S35)/$C35*IF(S$5>0,1,0) -> 0 | T101: =SUM($G35:T35)/$C35*IF(T$5>0,1,0) -> 0 | U101: =SUM($G35:U35)/$C35*IF(U$5>0,1,0) -> 0 | V101: =SUM($G35:V35)/$C35*IF(V$5>0,1,0) -> 0 | W101: =SUM($G35:W35)/$C35*IF(W$5>0,1,0) -> 0 | X101: =SUM($G35:X35)/$C35*IF(X$5>0,1,0) -> 0 | Y101: =SUM($G35:Y35)/$C35*IF(Y$5>0,1,0) -> 0 | Z101: =SUM($G35:Z35)/$C35*IF(Z$5>0,1,0) -> 0 | AA101: =SUM($G35:AA35)/$C35*IF(AA$5>0,1,0) -> 0 | AB101: =SUM($G35:AB35)/$C35*IF(AB$5>0,1,0) -> 0 | AC101: =SUM($G35:AC35)/$C35*IF(AC$5>0,1,0) -> 0 | AD101: 1.08
A102: з них: Електронно-обчислювальні машини, інші машини для автоматичного оброблення інформації, пов'язані з ними засоби зчитування або друку інформації, пов'язані з ними комп'ютерні програми (крім програм, витрати на придбання яких визнаються роялті, та / або програм, які визнаються нематеріальним активів) , інші інформаційні системи, комутатори, маршрутизатори, модулі, модеми, джерела безперебійного живлення та засоби їх підключення до телекомунікаційних мереж, телефони (в тому числі мобільні), мікрофони і раці , Вартість яких перевищує 2500 гривень. | B102: 5 | C102: 10 | G102: =SUM($G36:G36)/$C36*IF(G$5>0,1,0) -> 0 | H102: =SUM($G36:H36)/$C36*IF(H$5>0,1,0) -> 0 | I102: =SUM($G36:I36)/$C36*IF(I$5>0,1,0) -> 0 | J102: =SUM($G36:J36)/$C36*IF(J$5>0,1,0) -> 0 | K102: =SUM($G36:K36)/$C36*IF(K$5>0,1,0) -> 0 | L102: =SUM($G36:L36)/$C36*IF(L$5>0,1,0) -> 0 | M102: =SUM($G36:M36)/$C36*IF(M$5>0,1,0) -> 0 | N102: =SUM($G36:N36)/$C36*IF(N$5>0,1,0) -> 0 | O102: =SUM($G36:O36)/$C36*IF(O$5>0,1,0) -> 0 | P102: =SUM($G36:P36)/$C36*IF(P$5>0,1,0) -> 0 | Q102: =SUM($G36:Q36)/$C36*IF(Q$5>0,1,0) -> 0 | R102: =SUM($G36:R36)/$C36*IF(R$5>0,1,0) -> 0 | S102: =SUM($G36:S36)/$C36*IF(S$5>0,1,0) -> 0 | T102: =SUM($G36:T36)/$C36*IF(T$5>0,1,0) -> 0 | U102: =SUM($G36:U36)/$C36*IF(U$5>0,1,0) -> 0 | V102: =SUM($G36:V36)/$C36*IF(V$5>0,1,0) -> 0 | W102: =SUM($G36:W36)/$C36*IF(W$5>0,1,0) -> 0 | X102: =SUM($G36:X36)/$C36*IF(X$5>0,1,0) -> 0 | Y102: =SUM($G36:Y36)/$C36*IF(Y$5>0,1,0) -> 0 | Z102: =SUM($G36:Z36)/$C36*IF(Z$5>0,1,0) -> 0 | AA102: =SUM($G36:AA36)/$C36*IF(AA$5>0,1,0) -> 0 | AB102: =SUM($G36:AB36)/$C36*IF(AB$5>0,1,0) -> 0 | AC102: =SUM($G36:AC36)/$C36*IF(AC$5>0,1,0) -> 0 | AD102: 0
A103: Група 5 - транспортні засоби | B103: 2 | C103: 10 | G103: =SUM($G37:G37)/$C37*IF(G$5>0,1,0) -> 0 | H103: =SUM($G37:H37)/$C37*IF(H$5>0,1,0) -> 0 | I103: =SUM($G37:I37)/$C37*IF(I$5>0,1,0) -> 0 | J103: =SUM($G37:J37)/$C37*IF(J$5>0,1,0) -> 0 | K103: =SUM($G37:K37)/$C37*IF(K$5>0,1,0) -> 0 | L103: =SUM($G37:L37)/$C37*IF(L$5>0,1,0) -> 0 | M103: =SUM($G37:M37)/$C37*IF(M$5>0,1,0) -> 0 | N103: =SUM($G37:N37)/$C37*IF(N$5>0,1,0) -> 0 | O103: =SUM($G37:O37)/$C37*IF(O$5>0,1,0) -> 0 | P103: =SUM($G37:P37)/$C37*IF(P$5>0,1,0) -> 0 | Q103: =SUM($G37:Q37)/$C37*IF(Q$5>0,1,0) -> 0 | R103: =SUM($G37:R37)/$C37*IF(R$5>0,1,0) -> 0 | S103: =SUM($G37:S37)/$C37*IF(S$5>0,1,0) -> 0 | T103: =SUM($G37:T37)/$C37*IF(T$5>0,1,0) -> 0 | U103: =SUM($G37:U37)/$C37*IF(U$5>0,1,0) -> 0 | V103: =SUM($G37:V37)/$C37*IF(V$5>0,1,0) -> 0 | W103: =SUM($G37:W37)/$C37*IF(W$5>0,1,0) -> 0 | X103: =SUM($G37:X37)/$C37*IF(X$5>0,1,0) -> 0 | Y103: =SUM($G37:Y37)/$C37*IF(Y$5>0,1,0) -> 0 | Z103: =SUM($G37:Z37)/$C37*IF(Z$5>0,1,0) -> 0 | AA103: =SUM($G37:AA37)/$C37*IF(AA$5>0,1,0) -> 0 | AB103: =SUM($G37:AB37)/$C37*IF(AB$5>0,1,0) -> 0 | AC103: =SUM($G37:AC37)/$C37*IF(AC$5>0,1,0) -> 0 | AD103: 0
A104: Група 6 - інструменти, прилади, інвентар (меблі) | B104: 5 | C104: 10 | G104: =SUM($G38:G38)/$C38*IF(G$5>0,1,0) -> 0 | H104: =SUM($G38:H38)/$C38*IF(H$5>0,1,0) -> 0 | I104: =SUM($G38:I38)/$C38*IF(I$5>0,1,0) -> 0 | J104: =SUM($G38:J38)/$C38*IF(J$5>0,1,0) -> 0 | K104: =SUM($G38:K38)/$C38*IF(K$5>0,1,0) -> 0.06 | L104: =SUM($G38:L38)/$C38*IF(L$5>0,1,0) -> 0.06 | M104: =SUM($G38:M38)/$C38*IF(M$5>0,1,0) -> 0.06 | N104: =SUM($G38:N38)/$C38*IF(N$5>0,1,0) -> 0.09 | O104: =SUM($G38:O38)/$C38*IF(O$5>0,1,0) -> 0.09 | P104: =SUM($G38:P38)/$C38*IF(P$5>0,1,0) -> 0.09 | Q104: =SUM($G38:Q38)/$C38*IF(Q$5>0,1,0) -> 0.09 | R104: =SUM($G38:R38)/$C38*IF(R$5>0,1,0) -> 0 | S104: =SUM($G38:S38)/$C38*IF(S$5>0,1,0) -> 0 | T104: =SUM($G38:T38)/$C38*IF(T$5>0,1,0) -> 0 | U104: =SUM($G38:U38)/$C38*IF(U$5>0,1,0) -> 0 | V104: =SUM($G38:V38)/$C38*IF(V$5>0,1,0) -> 0 | W104: =SUM($G38:W38)/$C38*IF(W$5>0,1,0) -> 0 | X104: =SUM($G38:X38)/$C38*IF(X$5>0,1,0) -> 0 | Y104: =SUM($G38:Y38)/$C38*IF(Y$5>0,1,0) -> 0 | Z104: =SUM($G38:Z38)/$C38*IF(Z$5>0,1,0) -> 0 | AA104: =SUM($G38:AA38)/$C38*IF(AA$5>0,1,0) -> 0 | AB104: =SUM($G38:AB38)/$C38*IF(AB$5>0,1,0) -> 0 | AC104: =SUM($G38:AC38)/$C38*IF(AC$5>0,1,0) -> 0 | AD104: 0.54
A105: Група 7 - тварини | B105: 4 | C105: 10 | G105: =SUM($G39:G39)/$C39*IF(G$5>0,1,0) -> 0 | H105: =SUM($G39:H39)/$C39*IF(H$5>0,1,0) -> 0 | I105: =SUM($G39:I39)/$C39*IF(I$5>0,1,0) -> 0 | J105: =SUM($G39:J39)/$C39*IF(J$5>0,1,0) -> 0 | K105: =SUM($G39:K39)/$C39*IF(K$5>0,1,0) -> 0 | L105: =SUM($G39:L39)/$C39*IF(L$5>0,1,0) -> 0 | M105: =SUM($G39:M39)/$C39*IF(M$5>0,1,0) -> 0 | N105: =SUM($G39:N39)/$C39*IF(N$5>0,1,0) -> 0 | O105: =SUM($G39:O39)/$C39*IF(O$5>0,1,0) -> 0 | P105: =SUM($G39:P39)/$C39*IF(P$5>0,1,0) -> 0 | Q105: =SUM($G39:Q39)/$C39*IF(Q$5>0,1,0) -> 0 | R105: =SUM($G39:R39)/$C39*IF(R$5>0,1,0) -> 0 | S105: =SUM($G39:S39)/$C39*IF(S$5>0,1,0) -> 0 | T105: =SUM($G39:T39)/$C39*IF(T$5>0,1,0) -> 0 | U105: =SUM($G39:U39)/$C39*IF(U$5>0,1,0) -> 0 | V105: =SUM($G39:V39)/$C39*IF(V$5>0,1,0) -> 0 | W105: =SUM($G39:W39)/$C39*IF(W$5>0,1,0) -> 0 | X105: =SUM($G39:X39)/$C39*IF(X$5>0,1,0) -> 0 | Y105: =SUM($G39:Y39)/$C39*IF(Y$5>0,1,0) -> 0 | Z105: =SUM($G39:Z39)/$C39*IF(Z$5>0,1,0) -> 0 | AA105: =SUM($G39:AA39)/$C39*IF(AA$5>0,1,0) -> 0 | AB105: =SUM($G39:AB39)/$C39*IF(AB$5>0,1,0) -> 0 | AC105: =SUM($G39:AC39)/$C39*IF(AC$5>0,1,0) -> 0 | AD105: 0
A106: Група 8 - багаторічні насадження | B106: 6 | C106: 10 | G106: =SUM($G40:G40)/$C40*IF(G$5>0,1,0) -> 0 | H106: =SUM($G40:H40)/$C40*IF(H$5>0,1,0) -> 0 | I106: =SUM($G40:I40)/$C40*IF(I$5>0,1,0) -> 0 | J106: =SUM($G40:J40)/$C40*IF(J$5>0,1,0) -> 0 | K106: =SUM($G40:K40)/$C40*IF(K$5>0,1,0) -> 0 | L106: =SUM($G40:L40)/$C40*IF(L$5>0,1,0) -> 0 | M106: =SUM($G40:M40)/$C40*IF(M$5>0,1,0) -> 0 | N106: =SUM($G40:N40)/$C40*IF(N$5>0,1,0) -> 0 | O106: =SUM($G40:O40)/$C40*IF(O$5>0,1,0) -> 0 | P106: =SUM($G40:P40)/$C40*IF(P$5>0,1,0) -> 0 | Q106: =SUM($G40:Q40)/$C40*IF(Q$5>0,1,0) -> 0 | R106: =SUM($G40:R40)/$C40*IF(R$5>0,1,0) -> 0 | S106: =SUM($G40:S40)/$C40*IF(S$5>0,1,0) -> 0 | T106: =SUM($G40:T40)/$C40*IF(T$5>0,1,0) -> 0 | U106: =SUM($G40:U40)/$C40*IF(U$5>0,1,0) -> 0 | V106: =SUM($G40:V40)/$C40*IF(V$5>0,1,0) -> 0 | W106: =SUM($G40:W40)/$C40*IF(W$5>0,1,0) -> 0 | X106: =SUM($G40:X40)/$C40*IF(X$5>0,1,0) -> 0 | Y106: =SUM($G40:Y40)/$C40*IF(Y$5>0,1,0) -> 0 | Z106: =SUM($G40:Z40)/$C40*IF(Z$5>0,1,0) -> 0 | AA106: =SUM($G40:AA40)/$C40*IF(AA$5>0,1,0) -> 0 | AB106: =SUM($G40:AB40)/$C40*IF(AB$5>0,1,0) -> 0 | AC106: =SUM($G40:AC40)/$C40*IF(AC$5>0,1,0) -> 0 | AD106: 0
A107: Група 9 - інші основні засоби | B107: 10 | C107: 10 | G107: =SUM($G41:G41)/$C41*IF(G$5>0,1,0) -> 0 | H107: =SUM($G41:H41)/$C41*IF(H$5>0,1,0) -> 0 | I107: =SUM($G41:I41)/$C41*IF(I$5>0,1,0) -> 0 | J107: =SUM($G41:J41)/$C41*IF(J$5>0,1,0) -> 0 | K107: =SUM($G41:K41)/$C41*IF(K$5>0,1,0) -> 0.01666666667 | L107: =SUM($G41:L41)/$C41*IF(L$5>0,1,0) -> 0.01666666667 | M107: =SUM($G41:M41)/$C41*IF(M$5>0,1,0) -> 0.01666666667 | N107: =SUM($G41:N41)/$C41*IF(N$5>0,1,0) -> 0.025 | O107: =SUM($G41:O41)/$C41*IF(O$5>0,1,0) -> 0.025 | P107: =SUM($G41:P41)/$C41*IF(P$5>0,1,0) -> 0.025 | Q107: =SUM($G41:Q41)/$C41*IF(Q$5>0,1,0) -> 0.025 | R107: =SUM($G41:R41)/$C41*IF(R$5>0,1,0) -> 0 | S107: =SUM($G41:S41)/$C41*IF(S$5>0,1,0) -> 0 | T107: =SUM($G41:T41)/$C41*IF(T$5>0,1,0) -> 0 | U107: =SUM($G41:U41)/$C41*IF(U$5>0,1,0) -> 0 | V107: =SUM($G41:V41)/$C41*IF(V$5>0,1,0) -> 0 | W107: =SUM($G41:W41)/$C41*IF(W$5>0,1,0) -> 0 | X107: =SUM($G41:X41)/$C41*IF(X$5>0,1,0) -> 0 | Y107: =SUM($G41:Y41)/$C41*IF(Y$5>0,1,0) -> 0 | Z107: =SUM($G41:Z41)/$C41*IF(Z$5>0,1,0) -> 0 | AA107: =SUM($G41:AA41)/$C41*IF(AA$5>0,1,0) -> 0 | AB107: =SUM($G41:AB41)/$C41*IF(AB$5>0,1,0) -> 0 | AC107: =SUM($G41:AC41)/$C41*IF(AC$5>0,1,0) -> 0 | AD107: 0.15
A108: Інші необоротні матеріальні активи: | G108: =SUM(G109:G115) -> 0 | H108: 0 | I108: 0 | J108: 0 | K108: 0 | L108: 0 | M108: 0 | N108: 0 | O108: 0 | P108: 0 | Q108: 0 | R108: 0 | S108: 0 | T108: 0 | U108: 0 | V108: 0 | W108: 0 | X108: 0 | Y108: 0 | Z108: 0 | AA108: 0 | AB108: 0 | AC108: 0 | AD108: 0
A109: Група 10 - бібліотечні фонди | B109: =B42 -> 0 | C109: 0 | G109: =G43*IF(G$5>0,1,0) -> 0 | H109: 0 | I109: 0 | J109: 0 | K109: 0 | L109: 0 | M109: 0 | N109: 0 | O109: 0 | P109: 0 | Q109: 0 | R109: 0 | S109: 0 | T109: 0 | U109: 0 | V109: 0 | W109: 0 | X109: 0 | Y109: 0 | Z109: 0 | AA109: 0 | AB109: 0 | AC109: 0 | AD109: 0
A110: Група 11 - малоцінні необоротні активи | B110: — | C110: — | G110: 0 | H110: 0 | I110: 0 | J110: 0 | K110: 0 | L110: 0 | M110: 0 | N110: 0 | O110: 0 | P110: 0 | Q110: 0 | R110: 0 | S110: 0 | T110: 0 | U110: 0 | V110: 0 | W110: 0 | X110: 0 | Y110: 0 | Z110: 0 | AA110: 0 | AB110: 0 | AC110: 0 | AD110: 0
A111: Група 12 - тимчасові (нетитульні) споруди | B111: — | C111: — | G111: =SUM($G45:G45)/$C45*IF(G$5>0,1,0) -> 0 | H111: =SUM($G45:H45)/$C45*IF(H$5>0,1,0) -> 0 | I111: =SUM($G45:I45)/$C45*IF(I$5>0,1,0) -> 0 | J111: =SUM($G45:J45)/$C45*IF(J$5>0,1,0) -> 0 | K111: =SUM($G45:K45)/$C45*IF(K$5>0,1,0) -> 0 | L111: =SUM($G45:L45)/$C45*IF(L$5>0,1,0) -> 0 | M111: =SUM($G45:M45)/$C45*IF(M$5>0,1,0) -> 0 | N111: =SUM($G45:N45)/$C45*IF(N$5>0,1,0) -> 0 | O111: =SUM($G45:O45)/$C45*IF(O$5>0,1,0) -> 0 | P111: =SUM($G45:P45)/$C45*IF(P$5>0,1,0) -> 0 | Q111: =SUM($G45:Q45)/$C45*IF(Q$5>0,1,0) -> 0 | R111: =SUM($G45:R45)/$C45*IF(R$5>0,1,0) -> 0 | S111: =SUM($G45:S45)/$C45*IF(S$5>0,1,0) -> 0 | T111: =SUM($G45:T45)/$C45*IF(T$5>0,1,0) -> 0 | U111: =SUM($G45:U45)/$C45*IF(U$5>0,1,0) -> 0 | V111: =SUM($G45:V45)/$C45*IF(V$5>0,1,0) -> 0 | W111: =SUM($G45:W45)/$C45*IF(W$5>0,1,0) -> 0 | X111: =SUM($G45:X45)/$C45*IF(X$5>0,1,0) -> 0 | Y111: =SUM($G45:Y45)/$C45*IF(Y$5>0,1,0) -> 0 | Z111: =SUM($G45:Z45)/$C45*IF(Z$5>0,1,0) -> 0 | AA111: =SUM($G45:AA45)/$C45*IF(AA$5>0,1,0) -> 0 | AB111: =SUM($G45:AB45)/$C45*IF(AB$5>0,1,0) -> 0 | AC111: =SUM($G45:AC45)/$C45*IF(AC$5>0,1,0) -> 0 | AD111: 0
A112: Група 13 - природні ресурси | B112: 5 | C112: 10 | G112: 0 | H112: 0 | I112: 0 | J112: 0 | K112: 0 | L112: 0 | M112: 0 | N112: 0 | O112: 0 | P112: 0 | Q112: 0 | R112: 0 | S112: 0 | T112: 0 | U112: 0 | V112: 0 | W112: 0 | X112: 0 | Y112: 0 | Z112: 0 | AA112: 0 | AB112: 0 | AC112: 0 | AD112: 0
A113: Група 14 - інвентарна тара | B113: — | C113: — | G113: =SUM($G47:G47)/$C47*IF(G$5>0,1,0) -> 0 | H113: =SUM($G47:H47)/$C47*IF(H$5>0,1,0) -> 0 | I113: =SUM($G47:I47)/$C47*IF(I$5>0,1,0) -> 0 | J113: =SUM($G47:J47)/$C47*IF(J$5>0,1,0) -> 0 | K113: =SUM($G47:K47)/$C47*IF(K$5>0,1,0) -> 0 | L113: =SUM($G47:L47)/$C47*IF(L$5>0,1,0) -> 0 | M113: =SUM($G47:M47)/$C47*IF(M$5>0,1,0) -> 0 | N113: =SUM($G47:N47)/$C47*IF(N$5>0,1,0) -> 0 | O113: =SUM($G47:O47)/$C47*IF(O$5>0,1,0) -> 0 | P113: =SUM($G47:P47)/$C47*IF(P$5>0,1,0) -> 0 | Q113: =SUM($G47:Q47)/$C47*IF(Q$5>0,1,0) -> 0 | R113: =SUM($G47:R47)/$C47*IF(R$5>0,1,0) -> 0 | S113: =SUM($G47:S47)/$C47*IF(S$5>0,1,0) -> 0 | T113: =SUM($G47:T47)/$C47*IF(T$5>0,1,0) -> 0 | U113: =SUM($G47:U47)/$C47*IF(U$5>0,1,0) -> 0 | V113: =SUM($G47:V47)/$C47*IF(V$5>0,1,0) -> 0 | W113: =SUM($G47:W47)/$C47*IF(W$5>0,1,0) -> 0 | X113: =SUM($G47:X47)/$C47*IF(X$5>0,1,0) -> 0 | Y113: =SUM($G47:Y47)/$C47*IF(Y$5>0,1,0) -> 0 | Z113: =SUM($G47:Z47)/$C47*IF(Z$5>0,1,0) -> 0 | AA113: =SUM($G47:AA47)/$C47*IF(AA$5>0,1,0) -> 0 | AB113: =SUM($G47:AB47)/$C47*IF(AB$5>0,1,0) -> 0 | AC113: =SUM($G47:AC47)/$C47*IF(AC$5>0,1,0) -> 0 | AD113: 0
A114: Група 15 - предмети прокату | B114: 6 | C114: 10 | G114: =SUM($G48:G48)/$C48*IF(G$5>0,1,0) -> 0 | H114: =SUM($G48:H48)/$C48*IF(H$5>0,1,0) -> 0 | I114: =SUM($G48:I48)/$C48*IF(I$5>0,1,0) -> 0 | J114: =SUM($G48:J48)/$C48*IF(J$5>0,1,0) -> 0 | K114: =SUM($G48:K48)/$C48*IF(K$5>0,1,0) -> 0 | L114: =SUM($G48:L48)/$C48*IF(L$5>0,1,0) -> 0 | M114: =SUM($G48:M48)/$C48*IF(M$5>0,1,0) -> 0 | N114: =SUM($G48:N48)/$C48*IF(N$5>0,1,0) -> 0 | O114: =SUM($G48:O48)/$C48*IF(O$5>0,1,0) -> 0 | P114: =SUM($G48:P48)/$C48*IF(P$5>0,1,0) -> 0 | Q114: =SUM($G48:Q48)/$C48*IF(Q$5>0,1,0) -> 0 | R114: =SUM($G48:R48)/$C48*IF(R$5>0,1,0) -> 0 | S114: =SUM($G48:S48)/$C48*IF(S$5>0,1,0) -> 0 | T114: =SUM($G48:T48)/$C48*IF(T$5>0,1,0) -> 0 | U114: =SUM($G48:U48)/$C48*IF(U$5>0,1,0) -> 0 | V114: =SUM($G48:V48)/$C48*IF(V$5>0,1,0) -> 0 | W114: =SUM($G48:W48)/$C48*IF(W$5>0,1,0) -> 0 | X114: =SUM($G48:X48)/$C48*IF(X$5>0,1,0) -> 0 | Y114: =SUM($G48:Y48)/$C48*IF(Y$5>0,1,0) -> 0 | Z114: =SUM($G48:Z48)/$C48*IF(Z$5>0,1,0) -> 0 | AA114: =SUM($G48:AA48)/$C48*IF(AA$5>0,1,0) -> 0 | AB114: =SUM($G48:AB48)/$C48*IF(AB$5>0,1,0) -> 0 | AC114: =SUM($G48:AC48)/$C48*IF(AC$5>0,1,0) -> 0 | AD114: 0
A115: Група 16 - довгострокові біологічні активи | B115: 5 | C115: 10 | G115: =SUM($G49:G49)/$C49*IF(G$5>0,1,0) -> 0 | H115: =SUM($G49:H49)/$C49*IF(H$5>0,1,0) -> 0 | I115: =SUM($G49:I49)/$C49*IF(I$5>0,1,0) -> 0 | J115: =SUM($G49:J49)/$C49*IF(J$5>0,1,0) -> 0 | K115: =SUM($G49:K49)/$C49*IF(K$5>0,1,0) -> 0 | L115: =SUM($G49:L49)/$C49*IF(L$5>0,1,0) -> 0 | M115: =SUM($G49:M49)/$C49*IF(M$5>0,1,0) -> 0 | N115: =SUM($G49:N49)/$C49*IF(N$5>0,1,0) -> 0 | O115: =SUM($G49:O49)/$C49*IF(O$5>0,1,0) -> 0 | P115: =SUM($G49:P49)/$C49*IF(P$5>0,1,0) -> 0 | Q115: =SUM($G49:Q49)/$C49*IF(Q$5>0,1,0) -> 0 | R115: =SUM($G49:R49)/$C49*IF(R$5>0,1,0) -> 0 | S115: =SUM($G49:S49)/$C49*IF(S$5>0,1,0) -> 0 | T115: =SUM($G49:T49)/$C49*IF(T$5>0,1,0) -> 0 | U115: =SUM($G49:U49)/$C49*IF(U$5>0,1,0) -> 0 | V115: =SUM($G49:V49)/$C49*IF(V$5>0,1,0) -> 0 | W115: =SUM($G49:W49)/$C49*IF(W$5>0,1,0) -> 0 | X115: =SUM($G49:X49)/$C49*IF(X$5>0,1,0) -> 0 | Y115: =SUM($G49:Y49)/$C49*IF(Y$5>0,1,0) -> 0 | Z115: =SUM($G49:Z49)/$C49*IF(Z$5>0,1,0) -> 0 | AA115: =SUM($G49:AA49)/$C49*IF(AA$5>0,1,0) -> 0 | AB115: =SUM($G49:AB49)/$C49*IF(AB$5>0,1,0) -> 0 | AC115: =SUM($G49:AC49)/$C49*IF(AC$5>0,1,0) -> 0 | AD115: =SUM(G115:AC115) -> 0
A116: ВСЬОГО АМОРТИЗАЦІЯ | G116: =G72+G94 -> 24.58333333 | H116: =H72+H94 -> 63.91666667 | I116: 63.91666667 | J116: 63.91666667 | K116: 64.11333333 | L116: 64.11333333 | M116: 64.11333333 | N116: 64.21166667 | O116: 64.21166667 | P116: 64.21166667 | Q116: 64.21166667 | R116: 0 | S116: 0 | T116: 0 | U116: 0 | V116: 0 | W116: 0 | X116: 0 | Y116: 0 | Z116: 0 | AA116: 0 | AB116: 0 | AC116: 0 | AD116: 665.52
A117: Ліквідаційна вартість | G117: =G118+G131 -> 0 | H117: =H118+H131 -> 0 | I117: 0 | J117: 0 | K117: 0 | L117: 0 | M117: 0 | N117: 0 | O117: 0 | P117: 0 | Q117: 0 | R117: -12.52 | S117: 0 | T117: 0 | U117: 0 | V117: 0 | W117: 0 | X117: 0 | Y117: 0 | Z117: 0 | AA117: 0 | AB117: 0 | AC117: 0 | AD117: -12.52
A118: =A95 -> Основні засоби: | G118: =SUM(G119:G130) -> 0 | H118: =SUM(H119:H130) -> 0 | I118: 0 | J118: 0 | K118: 0 | L118: 0 | M118: 0 | N118: 0 | O118: 0 | P118: 0 | Q118: 0 | R118: -12.52 | S118: 0 | T118: 0 | U118: 0 | V118: 0 | W118: 0 | X118: 0 | Y118: 0 | Z118: 0 | AA118: 0 | AB118: 0 | AC118: 0 | AD118: -12.52
A119: Група 1 - земельні ділянки | B119: =B29 -> 0 | C119: 0 | G119: =IF(AND(G$5=0,F$5>0),F52,0) -> 0 | H119: =IF(AND(H$5=0,G$5>0),G52,0) -> 0 | I119: 0 | J119: 0 | K119: 0 | L119: 0 | M119: 0 | N119: 0 | O119: 0 | P119: 0 | Q119: 0 | R119: 0 | S119: 0 | T119: 0 | U119: 0 | V119: 0 | W119: 0 | X119: 0 | Y119: 0 | Z119: 0 | AA119: 0 | AB119: 0 | AC119: 0 | AD119: 0
A120: Група 2 - капітальні витрати на поліпшення землі, не пов'язані з будівництвом | B120: — | C120: — | G120: =IF(AND(G$5=0,F$5>0),F53,0) -> 0 | H120: 0 | I120: 0 | J120: 0 | K120: 0 | L120: 0 | M120: 0 | N120: 0 | O120: 0 | P120: 0 | Q120: 0 | R120: 0 | S120: 0 | T120: 0 | U120: 0 | V120: 0 | W120: 0 | X120: 0 | Y120: 0 | Z120: 0 | AA120: 0 | AB120: 0 | AC120: 0 | AD120: 0
A121: Група 3 - будівлі | B121: 15 | C121: 15 | G121: 0 | H121: 0 | I121: 0 | J121: 0 | K121: 0 | L121: 0 | M121: 0 | N121: 0 | O121: 0 | P121: 0 | Q121: 0 | R121: 0 | S121: =IF(AND(S$5=0,R$5>0),R54,0) -> 0 | T121: 0 | U121: 0 | V121: 0 | W121: 0 | X121: 0 | Y121: 0 | Z121: 0 | AA121: 0 | AB121: 0 | AC121: 0 | AD121: 0
A122: споруди | B122: 20 | C122: 20 | G122: 0 | H122: 0 | I122: 0 | J122: 0 | K122: 0 | L122: 0 | M122: 0 | N122: 0 | O122: 0 | P122: 0 | Q122: 0 | R122: 0 | S122: 0 | T122: 0 | U122: 0 | V122: 0 | W122: 0 | X122: 0 | Y122: 0 | Z122: 0 | AA122: 0 | AB122: 0 | AC122: 0 | AD122: 0
A123: передавальні пристрої | B123: 15 | C123: 15 | G123: 0 | H123: 0 | I123: 0 | J123: 0 | K123: 0 | L123: 0 | M123: 0 | N123: 0 | O123: 0 | P123: 0 | Q123: 0 | R123: 0 | S123: 0 | T123: 0 | U123: 0 | V123: 0 | W123: 0 | X123: 0 | Y123: 0 | Z123: 0 | AA123: 0 | AB123: 0 | AC123: 0 | AD123: 0
A124: Група 4 - машини та обладнання | B124: 10 | C124: 10 | G124: 0 | H124: 0 | I124: 0 | J124: 0 | K124: 0 | L124: 0 | M124: 0 | N124: 0 | O124: 0 | P124: 0 | Q124: 0 | R124: -14.28 | S124: 0 | T124: 0 | U124: 0 | V124: 0 | W124: 0 | X124: 0 | Y124: 0 | Z124: 0 | AA124: 0 | AB124: 0 | AC124: 0 | AD124: -14.28
A125: з них: Електронно-обчислювальні машини, інші машини для автоматичного оброблення інформації, пов'язані з ними засоби зчитування або друку інформації, пов'язані з ними комп'ютерні програми (крім програм, витрати на придбання яких визнаються роялті, та / або програм, які визнаються нематеріальним активів) , інші інформаційні системи, комутатори, маршрутизатори, модулі, модеми, джерела безперебійного живлення та засоби їх підключення до телекомунікаційних мереж, телефони (в тому числі мобільні), мікрофони і раці , Вартість яких перевищує 2500 гривень. | B125: 5 | C125: 10 | G125: 0 | H125: 0 | I125: 0 | J125: 0 | K125: 0 | L125: 0 | M125: 0 | N125: 0 | O125: 0 | P125: 0 | Q125: 0 | R125: 0 | S125: 0 | T125: 0 | U125: 0 | V125: 0 | W125: 0 | X125: 0 | Y125: 0 | Z125: 0 | AA125: 0 | AB125: 0 | AC125: 0 | AD125: 0
A126: Група 5 - транспортні засоби | B126: 2 | C126: 10 | G126: 0 | H126: 0 | I126: 0 | J126: 0 | K126: 0 | L126: 0 | M126: 0 | N126: 0 | O126: 0 | P126: 0 | Q126: 0 | R126: 0 | S126: 0 | T126: 0 | U126: 0 | V126: 0 | W126: 0 | X126: 0 | Y126: 0 | Z126: 0 | AA126: 0 | AB126: 0 | AC126: 0 | AD126: 0
A127: Група 6 - інструменти, прилади, інвентар (меблі) | B127: 5 | C127: 10 | G127: 0 | H127: 0 | I127: 0 | J127: 0 | K127: 0 | L127: 0 | M127: 0 | N127: 0 | O127: 0 | P127: 0 | Q127: 0 | R127: -7.14 | S127: 0 | T127: 0 | U127: 0 | V127: 0 | W127: 0 | X127: 0 | Y127: 0 | Z127: 0 | AA127: 0 | AB127: 0 | AC127: 0 | AD127: -7.14
A128: Група 7 - тварини | B128: 4 | C128: 10 | G128: 0 | H128: 0 | I128: 0 | J128: 0 | K128: 0 | L128: 0 | M128: 0 | N128: 0 | O128: 0 | P128: 0 | Q128: 0 | R128: 0 | S128: 0 | T128: 0 | U128: 0 | V128: 0 | W128: 0 | X128: 0 | Y128: 0 | Z128: 0 | AA128: 0 | AB128: 0 | AC128: 0 | AD128: 0
A129: Група 8 - багаторічні насадження | B129: 6 | C129: 10 | G129: 0 | H129: 0 | I129: 0 | J129: 0 | K129: 0 | L129: 0 | M129: 0 | N129: 0 | O129: 0 | P129: 0 | Q129: 0 | R129: 0 | S129: 0 | T129: 0 | U129: 0 | V129: 0 | W129: 0 | X129: 0 | Y129: 0 | Z129: 0 | AA129: 0 | AB129: 0 | AC129: 0 | AD129: 0
A130: Група 9 - інші основні засоби | B130: 10 | C130: 10 | G130: 0 | H130: 0 | I130: 0 | J130: 0 | K130: 0 | L130: 0 | M130: 0 | N130: 0 | O130: 0 | P130: 0 | Q130: 0 | R130: 8.9 | S130: 0 | T130: 0 | U130: 0 | V130: 0 | W130: 0 | X130: 0 | Y130: 0 | Z130: 0 | AA130: 0 | AB130: 0 | AC130: 0 | AD130: 8.9
A131: Інші необоротні матеріальні активи: | G131: =SUM(G132:G138) -> 0 | H131: =SUM(H132:H138) -> 0 | I131: 0 | J131: 0 | K131: 0 | L131: 0 | M131: 0 | N131: 0 | O131: 0 | P131: 0 | Q131: 0 | R131: 0 | S131: 0 | T131: 0 | U131: 0 | V131: 0 | W131: 0 | X131: 0 | Y131: 0 | Z131: 0 | AA131: 0 | AB131: 0 | AC131: 0 | AD131: 0
A132: Група 10 - бібліотечні фонди | B132: =B42 -> 0 | C132: 0 | G132: =IF(AND(G$5=0,F$5>0),F65,0) -> 0 | H132: 0 | I132: 0 | J132: 0 | K132: 0 | L132: 0 | M132: 0 | N132: 0 | O132: 0 | P132: 0 | Q132: 0 | R132: 0 | S132: 0 | T132: 0 | U132: 0 | V132: 0 | W132: 0 | X132: 0 | Y132: 0 | Z132: 0 | AA132: 0 | AB132: 0 | AC132: 0 | AD132: 0
A133: Група 11 - малоцінні необоротні активи | B133: — | C133: — | G133: 0 | H133: 0 | I133: 0 | J133: 0 | K133: 0 | L133: 0 | M133: 0 | N133: 0 | O133: 0 | P133: 0 | Q133: 0 | R133: 0 | S133: 0 | T133: 0 | U133: 0 | V133: 0 | W133: 0 | X133: 0 | Y133: 0 | Z133: 0 | AA133: 0 | AB133: 0 | AC133: 0 | AD133: 0
A134: Група 12 - тимчасові (нетитульні) споруди | B134: — | C134: — | G134: 0 | H134: 0 | I134: 0 | J134: 0 | K134: 0 | L134: 0 | M134: 0 | N134: 0 | O134: 0 | P134: 0 | Q134: 0 | R134: 0 | S134: 0 | T134: 0 | U134: 0 | V134: 0 | W134: 0 | X134: 0 | Y134: 0 | Z134: 0 | AA134: 0 | AB134: 0 | AC134: 0 | AD134: 0
A135: Група 13 - природні ресурси | B135: 5 | C135: 10 | G135: 0 | H135: 0 | I135: 0 | J135: 0 | K135: 0 | L135: 0 | M135: 0 | N135: 0 | O135: 0 | P135: 0 | Q135: 0 | R135: 0 | S135: 0 | T135: 0 | U135: 0 | V135: 0 | W135: 0 | X135: 0 | Y135: 0 | Z135: 0 | AA135: 0 | AB135: 0 | AC135: 0 | AD135: 0
A136: Група 14 - інвентарна тара | B136: — | C136: — | G136: 0 | H136: 0 | I136: 0 | J136: 0 | K136: 0 | L136: 0 | M136: 0 | N136: 0 | O136: 0 | P136: 0 | Q136: 0 | R136: 0 | S136: 0 | T136: 0 | U136: 0 | V136: 0 | W136: 0 | X136: 0 | Y136: 0 | Z136: 0 | AA136: 0 | AB136: 0 | AC136: 0 | AD136: 0
A137: Група 15 - предмети прокату | B137: 6 | C137: 10 | G137: 0 | H137: 0 | I137: 0 | J137: 0 | K137: 0 | L137: 0 | M137: 0 | N137: 0 | O137: 0 | P137: 0 | Q137: 0 | R137: 0 | S137: 0 | T137: 0 | U137: 0 | V137: 0 | W137: 0 | X137: 0 | Y137: 0 | Z137: 0 | AA137: 0 | AB137: 0 | AC137: 0 | AD137: 0
A138: Група 16 - довгострокові біологічні активи | B138: 5 | C138: 10 | F138: =F27 -> 0 | G138: 0 | H138: 0 | I138: 0 | J138: 0 | K138: 0 | L138: 0 | M138: 0 | N138: 0 | O138: 0 | P138: 0 | Q138: 0 | R138: 0 | S138: 0 | T138: 0 | U138: 0 | V138: 0 | W138: 0 | X138: 0 | Y138: 0 | Z138: 0 | AA138: 0 | AB138: 0 | AC138: 0 | AD138: 0
AD139: 0
A142: Примітки:
A144: * В разі якщо в рамках проекту створюються необоротні фонди різних груп ОЗ, то сума капіталізованих витрат розноситься по відповідним групам ОЗ (в деяких випадках, з різними термінами корисного використання)
A146: Первісна вартість об'єкта основних засобів складається з таких витрат:
A147: - суми, що сплачують постачальникам активів та підрядникам за виконання будівельно-монтажних робіт (без непрямих податків);
A148: - реєстраційні збори, державне мито та аналогічні платежі, що здійснюються у зв'язку з придбанням / отриманням прав на об'єкт основних засобів;
A149: - суми ввізного мита;
A150: - суми непрямих податків у зв'язку з придбанням (створенням) основних засобів (якщо вони не відшкодовуються платнику);
A151: - витрати на страхування ризиків доставки основних засобів;
A152: - витрати на транспортування, установку, монтаж, налагодження основних засобів;
A153: - фінансові витрати, включення яких до собівартості кваліфікаційних активів передбачено положеннями (стандартами) бухгалтерського обліку;
A154: - інші витрати, безпосередньо пов'язані з доведенням основних засобів до стану, придатного для їх використання із запланованою метою.
A156: Ліквідаційна вартість - це сума коштів або вартість інших активів, яку підприємство очікує отримати від реалізації (ліквідації) необоротних активів після закінчення строку їх корисного використання (експлуатації), за вирахуванням витрат, пов'язаних з продажем (ліквідацією)

Sheet Sensitivity analysis
B2: Аналіз чутливості
B4: Аналіз беззбитковості
B6: показник | C6: од.виміру | D6: Базові значення показнику | E6: Базові значення NPV, тис.грн. | F6: При якому значені NPV=0 | G6: Відхилення показнику, абс. | H6: Відхилення показнику, % | I6: Пов'язані показники:
B7: Ціна на послугу (середня за період прогнозування) | C7: грн./од. | D7: =AVERAGE(Net_cost!$F$91:$R$91,Net_cost!$E$10:$R$10,Net_cost!$E$13:$R$13) -> 20544.24494 | E7: =Cash_Flow!$F$42 -> 188.5796859 | F7: 19991.97665 | G7: =F7-D7 -> -552.2682911 | H7: =ROUND(IFERROR(G7/D7,""),2) -> -0.03 | I7: =1+C21 -> 1
B8: Інкрементальний обсяг наданих послуг | C8: од. | D8: =(SUM(Net_cost!E84:R84)-SUM(Net_cost!E9:R9))+(SUM(Net_cost!E87:R87)-SUM(Net_cost!E12:R12))+(SUM(Net_cost!E90:R90)-SUM(Net_cost!E15:R15)) -> 386 | F8: 350.0909091 | G8: -35.90909091 | H8: -0.09 | I8: =1+C23 -> 1
B9: Заробітня платня | C9: грн./год. | D9: =AVERAGE(Net_cost!F136:R136,Net_cost!E123:R123,Net_cost!E110:R110) -> 9.500646905 | F9: 13.77427926 | G9: 4.273632359 | H9: 0.45 | I9: =1+C25 -> 1
B10: Бюджет проекту | C10: тис. грн. | D10: =Fin.costs!AB8 -> 650 | F10: 730.5588853 | G10: 80.55888535 | H10: 0.12 | I10: =1+C27 -> 1
B11: Витрати на кап. ремонти (капіталізовані і некап.) | C11: тис. грн. | D11: =Fin.costs!AB23+Fin.costs!AB25 -> 6 | F11: 177.8662022 | G11: 171.8662022 | H11: 28.64 | I11: =1+C29 -> 1
B12: показник 6 | G12: 0 | H12: =IFERROR(G12/D12,"") ->  | I12: =1+C31 -> 1
B13: показник 7 | G13: 0 | I13: =1+C33 -> 1
B14: показник 8 | G14: 0 | I14: =1+C35 -> 1
B15: показник 9 | G15: 0 | I15: =1+C37 -> 1
B16: показник 10 | G16: 0 | I16: =1+C39 -> 1
B18: Аналіз Чутливості (Spider Graph)
B20: Фактори | D20: NPV (тис.грн.) при зміні факторів на:
D21: =E21-0.05 -> -0.25 | E21: -0.2 | F21: -0.15 | G21: -0.1 | H21: -0.05 | I21: 0 | J21: =I21+0.05 -> 0.05 | K21: =J21+0.05 -> 0.1 | L21: 0.15 | M21: 0.2 | N21: 0.25
B22: =B7 -> Ціна на послугу (середня за період прогнозування) | C22: =Cash_Flow!$F$42 -> 188.5796859 | D22: -513.5510536 | E22: -373.1249057 | F22: -232.6987578 | G22: -92.27260991 | H22: 48.153538 | I22: 188.5796859 | J22: 329.0058338 | K22: 469.4319817 | L22: 609.8581297 | M22: 750.2842776 | N22: 890.7104255
D23: =D$21 -> -0.25 | E23: =E$21 -> -0.2 | F23: -0.15 | G23: -0.1 | H23: -0.05 | I23: 0 | J23: 0.05 | K23: 0.1 | L23: 0.15 | M23: 0.2 | N23: 0.25
B24: =B8 -> Інкрементальний обсяг наданих послуг | C24: =Cash_Flow!$F$42 -> 188.5796859 | D24: -116.2855704 | E24: -50.85123532 | F24: 19.62491222 | G24: 96.45416097 | H24: 134.9162783 | I24: 188.5796859 | J24: 192.1940749 | K24: 234.2297312 | L24: 290.1756221 | M24: 336.0390607 | N24: 397.8998568
D25: =D$21 -> -0.25 | E25: -0.2 | F25: -0.15 | G25: -0.1 | H25: -0.05 | I25: 0 | J25: 0.05 | K25: 0.1 | L25: 0.15 | M25: 0.2 | N25: 0.25
B26: =B9 -> Заробітня платня | C26: =Cash_Flow!$F$42 -> 188.5796859 | D26: 229.6451211 | E26: 221.432034 | F26: 213.218947 | G26: 205.00586 | H26: 196.7927729 | I26: 188.5796859 | J26: 180.3665989 | K26: 172.1535119 | L26: 163.9404248 | M26: 155.7273378 | N26: 147.5142508
D27: =D$21 -> -0.25 | E27: -0.2 | F27: -0.15 | G27: -0.1 | H27: -0.05 | I27: 0 | J27: 0.05 | K27: 0.1 | L27: 0.15 | M27: 0.2 | N27: 0.25
B28: =B10 -> Бюджет проекту | C28: =Cash_Flow!$F$42 -> 188.5796859 | D28: 324.6812773 | E28: 297.460959 | F28: 270.2406407 | G28: 243.0203225 | H28: 215.8000042 | I28: 188.5796859 | J28: 161.3593676 | K28: 134.1390494 | L28: 106.9187311 | M28: 79.69841281 | N28: 52.47809453
D29: =D$21 -> -0.25 | E29: -0.2 | F29: -0.15 | G29: -0.1 | H29: -0.05 | I29: 0 | J29: 0.05 | K29: 0.1 | L29: 0.15 | M29: 0.2 | N29: 0.25
B30: =B11 -> Витрати на кап. ремонти (капіталізовані і некап.) | C30: =Cash_Flow!$F$42 -> 188.5796859 | D30: 189.1703128 | E30: 189.0521874 | F30: 188.934062 | G30: 188.8159367 | H30: 188.6978113 | I30: 188.5796859 | J30: 188.4615605 | K30: 188.3434352 | L30: 188.2253098 | M30: 188.1071844 | N30: 187.9890591
D31: =D$21 -> -0.25 | E31: -0.2 | F31: -0.15 | G31: -0.1 | H31: -0.05 | I31: 0 | J31: 0.05 | K31: 0.1 | L31: 0.15 | M31: 0.2 | N31: 0.25
B32: =B12 -> показник 6 | C32: =Cash_Flow!$F$42 -> 188.5796859 | D32: 188.5796859 | E32: 188.5796859 | F32: 188.5796859 | G32: 188.5796859 | H32: 188.5796859 | I32: 188.5796859 | J32: 188.5796859 | K32: 188.5796859 | L32: 188.5796859 | M32: 188.5796859 | N32: 188.5796859
D33: =D$21 -> -0.25 | E33: -0.2 | F33: -0.15 | G33: -0.1 | H33: -0.05 | I33: 0 | J33: 0.05 | K33: 0.1 | L33: 0.15 | M33: 0.2 | N33: 0.25
B34: =B13 -> показник 7 | C34: =Cash_Flow!$F$42 -> 188.5796859 | D34: 188.5796859 | E34: 188.5796859 | F34: 188.5796859 | G34: 188.5796859 | H34: 188.5796859 | I34: 188.5796859 | J34: 188.5796859 | K34: 188.5796859 | L34: 188.5796859 | M34: 188.5796859 | N34: 188.5796859
D35: =D$21 -> -0.25 | E35: -0.2 | F35: -0.15 | G35: -0.1 | H35: -0.05 | I35: 0 | J35: 0.05 | K35: 0.1 | L35: 0.15 | M35: 0.2 | N35: 0.25
B36: =B14 -> показник 8 | C36: =Cash_Flow!$F$42 -> 188.5796859 | D36: 188.5796859 | E36: 188.5796859 | F36: 188.5796859 | G36: 188.5796859 | H36: 188.5796859 | I36: 188.5796859 | J36: 188.5796859 | K36: 188.5796859 | L36: 188.5796859 | M36: 188.5796859 | N36: 188.5796859
D37: =D$21 -> -0.25 | E37: -0.2 | F37: -0.15 | G37: -0.1 | H37: -0.05 | I37: 0 | J37: 0.05 | K37: 0.1 | L37: 0.15 | M37: 0.2 | N37: 0.25
B38: =B15 -> показник 9 | C38: =Cash_Flow!$F$42 -> 188.5796859 | D38: 188.5796859 | E38: 188.5796859 | F38: 188.5796859 | G38: 188.5796859 | H38: 188.5796859 | I38: 188.5796859 | J38: 188.5796859 | K38: 188.5796859 | L38: 188.5796859 | M38: 188.5796859 | N38: 188.5796859
D39: =D$21 -> -0.25 | E39: -0.2 | F39: -0.15 | G39: -0.1 | H39: -0.05 | I39: 0 | J39: 0.05 | K39: 0.1 | L39: 0.15 | M39: 0.2 | N39: 0.25
B40: =B16 -> показник 10 | C40: =Cash_Flow!$F$42 -> 188.5796859 | D40: 188.5796859 | E40: 188.5796859 | F40: 188.5796859 | G40: 188.5796859 | H40: 188.5796859 | I40: 188.5796859 | J40: 188.5796859 | K40: 188.5796859 | L40: 188.5796859 | M40: 188.5796859 | N40: 188.5796859
B42: Висновки за результатами аналізу чутливості

Sheet directory
A1: Показник | B1: опис | C1: Одиниці виміру | D1: 2017 | E1: 2018 | F1: =E1+1 -> 2019 | G1: =F1+1 -> 2020 | H1: 2021 | I1: 2022 | J1: 2023 | K1: 2024 | L1: 2025 | M1: 2026 | N1: 2027 | O1: 2028 | P1: 2029 | Q1: 2030
A2: Індекс промислових цін UAH (PPI), % | C2: PPI UAH (%) | D2: 0.19 | E2: 0.037 | F2: -0.001 | G2: 0.171 | H2: 0.36 | I2: 0.205 | J2: 0.264 | K2: 0.124 | L2: 0.09278143322 | M2: 0.0775973054 | N2: 0.06834511019 | O2: 0.06319262948 | P2: 0.06335459351 | Q2: 0.06288894693
A3: Середня місячна заробітня (UAH) | C3: Avg. montly salary (UAH) | D3: 7105 | E3: 8629 | F3: 9540 | G3: 10537 | H3: 11509.86699 | I3: 12511.92176 | J3: 13603.2879 | K3: 14783.37312 | L3: 16065.83074 | M3: 17459.54156 | N3: 18974.15679 | O3: 20620.16489 | P3: 22408.96419 | Q3: 24352.94184
A4: Середня заробітня плата на годину (UAH) | C4: Avg. hourly salary (UAH) | D4: =D3/52/40 -> 3.415865385 | E4: =E3/52/40 -> 4.148557692 | F4: 4.586538462 | G4: 5.065865385 | H4: 5.533589897 | I4: 6.015347 | J4: 6.540042259 | K4: 7.107390925 | L4: 7.723957087 | M4: 8.394010365 | N4: 9.122190764 | O4: 9.913540813 | P4: 10.77354048 | Q4: 11.70814511
A5: Індекс росту заробітної плати | C5: Avg. annual salary, index | E5: =E3/D3 -> 1.214496833 | F5: =F3/E3 -> 1.105574226 | G5: 1.104507338 | H5: 1.09232865 | I5: 1.0870605 | J5: 1.0872261 | K5: 1.08675 | L5: 1.08675 | M5: 1.08675 | N5: 1.08675 | O5: 1.08675 | P5: 1.08675 | Q5: 1.08675
A7: Загальна система оподаткування | B7: Ставка податку на прибуток | C7: % | D7: 0.18 | E7: 0.18 | F7: 0.18 | G7: 0.18 | H7: 0.18 | I7: 0.18 | J7: 0.18 | K7: 0.18 | L7: 0.18 | M7: 0.18 | N7: 0.18 | O7: 0.18 | P7: 0.18 | Q7: 0.18
A8: Спрощена система оподаткування. 3-я група | B8: Ставка податку на прибуток | C8: % | E8: 0.05 | F8: 0.05 | G8: 0.05 | H8: 0.05 | I8: 0.05 | J8: 0.05 | K8: 0.05 | L8: 0.05 | M8: 0.05 | N8: 0.05 | O8: 0.05 | P8: 0.05 | Q8: 0.05
A9: Спрощена система оподаткування. 3-я група | B9: Ліміт доходів для 3-ої групи | C9: тис. грн./рік | E9: =4999999.99/1000 -> 4999.99999 | F9: =4999999.99/1000 -> 4999.99999 | G9: 4999.99999 | H9: 4999.99999 | I9: 4999.99999 | J9: 4999.99999 | K9: 4999.99999 | L9: 4999.99999 | M9: 4999.99999 | N9: 4999.99999 | O9: 4999.99999 | P9: 4999.99999 | Q9: 4999.99999

Sheet Servises (hidden)
B2: Назва послуги | C2: Стислий опис | E2: Трудовитрати на виконання одиниці послуги, людино-годин | F2: Вид послуги (соціальна, комерційна) | G2: тариф для компенсації витрат, грн / год | H2: Собівартість послуги, тис. грн. | J2: Ринкова вартість послуги, тис. грн. | K2: Замовник | M2: Кількість послуг наданих у 2017 р., од. | N2: Вартість наданих послуг, тис.грн.
B3: Пошук та залучення інвестицій | C3: Замовнику пропонується комплексна послуга із оцінки та вибору джерел фінансування, розробки, подачі та узгодження всіх необхідних документів до моменту отримання інвестицій.
B4: Тематичне навчання | C4: Проведення тематичних тренінгів, семінарів та інших навчальних заходів стосовно тематики підвищення енергоефективності.
B5: Технічний супровід реалізації проектів | C5: Замовнику гарантується правильно встановлене (змонтоване) обладнання в рамках реалізації енергоефективного проекту. Незалежність Виконавця від постачальника обладнання дозволяє ефективно вибирати як постачальників енергоефективних рішень так і їх монтажників.
B6: Впровадження енергетичного моніторингу та менеджменту | C6: Впровадження в муніципалітеті системи енергетичного моніторингу на базі запропонованого програмного забезпечення з навчанням та контролем Виконавця та впровадження енергетичного менеджменту, наприклад, відповідно ISO 50001.
B7: Енергетичний аудит | C7: Проведення всіх видів енергетичних аудитів, зокрема експрес-енергоаудит, інструментальний енергоаудит, інвестиційний енергоаудит (використовуються для стратегічного планування енергетичної модернізації) тощо.
B8: Розробка ТЕО | C8: Розробка технічно-економічного обґрунтування проекту робиться вже під запланований (попередньо відібраний) проект. Задача компанії-виконавця зводиться до коректного розрахунку всіх економічних і технічних показників енергоефективного проекту.
B9: Розробка бізнес-планів | C9: Послуга з розробки бізнес-планів в основному надається Замовникам, які планують залучити фінансування від міжнародних спеціалізованих програм. В послугу входить розробка самого бізнес-плану, його узгодження із кредитно-донорською організацією. Результатом роботи компанії має стати отримання Замовником фінансування по обраній програмі.
B10: Тепловізійна зйомка | C10: Тепловізійна зйомка як послуга інколи користується попитом для визначення втрат енергії в будівлях.
B11: Енергосервісні контракти | C11: Розробка та впровадження енергоефективних проектів приватним інвесторам на засадах енергосервісного контракту, коли інвестор повертає вкладені інвестиції за рахунок отриманої економії.
